Workbook

Sheet SkillConfig
A1: ID | B1: PieceID | C1: power | D1: name | E1: dec | H1: attribute | I1: icon | J1: scriptName | K1: IDGroup | L1: timelineName | M1: cd | N1: addcd | O1: SkillType | P1: level | Q1: effectValue | R1: intensifierIndex | S1: addPropertyType | T1: addPropertyValue | U1: PromoteLan | V1: PromoteLanPara | W1: PromoteLanPara
A2: int | B2: int | C2: float | D2: int | E2: int | H2: int | I2: string | J2: string | K2: int | L2: string | M2: float | N2: float | O2: int | P2: int | Q2: float[] | R2: int[] | S2: int[] | T2: float[] | U2: int | V2: float[] | W2: float[]
AP3: =SUMIFS(AP5:AP10095,$A5:$A10095,"<>"&"",$P5:$P10095,6) -> 174 | AQ3: =SUMIFS(AQ5:AQ10095,$A5:$A10095,"<>"&"",$P5:$P10095,6) -> 308 | AR3: 166 | AS3: 10 | AT3: 10 | AU3: 20 | AV3: 20 | AW3: 10
A4: 技能ID IDGroup+技能等级 | B4: 对应的碎片ID | C4: 功法强度 基于标准强度的百分比 50=50% | D4: 名称语言表ID | E4: 描述语言表ID | F4: 技能名称 | G4: 技能效果 | H4: 技能属性 1=金 2=水 4=木 8=火 16=土 | I4: 图标 | J4: 脚本名称 | K4: 技能组 | L4: 技能的timeline表现，没得就不填，这个可以程序填 | M4: 功法：多少圈释放1次 法宝：CD多少秒 | N4: 功法上阵后，大道增加的CD 大道的默认CD | O4: 技能类型: 1=主动功法 2=被动功法 3=法宝技能 4=大道 | P4: 星级 | Q4: 效果值 | R4: 允许被加强的效果下表 | S4: 属性ID表内对应 101=生命百分比 102=攻击百分比 103=防御百分比 106~110=金木水火土灵根 | T4: 具体效果值 | U4: 升星简短描述 | V4: 升星简短描述参数 | W4: 哪边的法宝被影响 0=无 1=前方 -1=后方 | X4: 数值1 | Y4: 数值2 | Z4: 数值3 | AA4: 数值4 | AB4: 数值5 | AC4: 数值6 | AD4: 数值7 | AE4: 升星描述 | AH4: 总威力 | AI4: 段数 | AJ4: 单段伤害 | AK4: buff占比 | AL4: 额外占比 | AM4: 恢复能力 | AN4: 恢复类型 0=攻击力 1=最大生命值 | AO4: 技能生效最大次数 | AP4: 101 | AQ4: 102 | AR4: 103 | AS4: 106 | AT4: 107 | AU4: 108 | AV4: 109 | AW4: 110
B5: 英雄-主动功法区域
A6: =K6*10+P6-1 -> 11010 | B6: 13001 | C6: 100 | D6: 316 | E6: 739 | F6: 太虚幻剑经 | G6: 身体周围幻化出{0}柄细剑，每柄细剑对敌人造成{1}%伤害，并有{2}几率对敌人造成1层流血。 | H6: 1 | I6: =CONCATENATE("icon_s",K6) -> icon_s1101 | J6: =CONCATENATE("S",K6) -> S1101 | K6: 1101 | L6: 1101_timeline_TD | M6: 1 | N6: 1 | O6: 1 | P6: 1 | Q6: =_xlfn.TEXTJOIN(";",1,X6:AD6) -> 6;18;100 | R6: 2 | S6: =_xlfn.TEXTJOIN(";",1,IF(AP6="","",101),IF(AQ6="","",102),IF(AR6="","",103),IF(AS6="","",106),IF(AT6="","",107),IF(AU6="","",108),IF(AV6="","",109),IF(AW6="","",110)) ->  | T6: =_xlfn.TEXTJOIN(";",1,AP6:AW6) ->  | U6: -1 | X6: 6 | Y6: =ROUND(异常状态效果值!G9*(1-AK6)/AI6,0) -> 18 | Z6: 100 | AF6: =IF(F6="","",CONCATENATE(F6,"·",CHOOSE(P6,"壹","贰","叁","肆","伍","陆"))) -> 太虚幻剑经·壹 | AH6: =IF(A6="","",AI6*AJ6/(1-AK6-AL6)) -> 154.2857143 | AI6: =X6 -> 6 | AJ6: =Y6 -> 18 | AK6: =AI6*5/100 -> 0.3
A7: =K7*10+P7-1 -> 11011 | B7: 13001 | C7: 150 | D7: 317 | E7: 740 | F7: 太虚幻剑经 | G7: 身体周围幻化出{0}柄细剑，每柄细剑对敌人造成{1}%伤害，并有{2}几率对敌人造成1层流血。 | H7: 1 | I7: icon_s1101 | J7: =CONCATENATE("S",K7) -> S1101 | K7: 1101 | L7: 1101_timeline_TD | M7: 1 | N7: 1 | O7: 1 | P7: 2 | Q7: =_xlfn.TEXTJOIN(";",1,X7:AD7) -> 6;23;100 | R7: 2 | S7: =_xlfn.TEXTJOIN(";",1,IF(AP7="","",101),IF(AQ7="","",102),IF(AR7="","",103),IF(AS7="","",106),IF(AT7="","",107),IF(AU7="","",108),IF(AV7="","",109),IF(AW7="","",110)) ->  | T7: =_xlfn.TEXTJOIN(";",1,AP7:AW7) ->  | U7: 1100 | V7: 2 | X7: 6 | Y7: =ROUND(异常状态效果值!G10*(1-AK7)/AI7,0) -> 23 | Z7: 100 | AE7: =CONCATENATE("飞剑数量+",V7) -> 飞剑数量+2 | AF7: =IF(F7="","",CONCATENATE(F7,"·",CHOOSE(P7,"壹","贰","叁","肆","伍","陆"))) -> 太虚幻剑经·贰 | AH7: =IF(A7="","",AI7*AJ7/(1-AK7-AL7)) -> 197.1428571 | AI7: =X7 -> 6 | AJ7: =Y7 -> 23 | AK7: =AI7*5/100 -> 0.3
A8: 11012 | B8: 13001 | C8: 225 | D8: 318 | E8: 741 | F8: 太虚幻剑经 | G8: 身体周围幻化出{0}柄细剑，每柄细剑对敌人造成{1}%伤害，并有{2}几率对敌人造成1层流血。 | H8: 1 | I8: icon_s1101 | J8: S1101 | K8: 1101 | L8: 1101_timeline_TD | M8: 1 | N8: 1 | O8: 1 | P8: 3 | Q8: 6;30;100 | R8: 2 | S8: 101 | T8: 10 | U8: 1101 | V8: 10 | X8: 6 | Y8: =ROUND(异常状态效果值!G11*(1-AK8)/AI8,0) -> 30 | Z8: 100 | AE8: =CONCATENATE(CHOOSE(S8-100,"生命","攻击","防御"),"+",V8,"%") -> 生命+10% | AF8: 太虚幻剑经·叁 | AH8: 257.1428571 | AI8: 6 | AJ8: 30 | AK8: =AI8*5/100 -> 0.3 | AP8: 10
A9: 11013 | B9: 13001 | C9: 337.5 | D9: 319 | E9: 742 | F9: 太虚幻剑经 | G9: 身体周围幻化出{0}柄细剑，每柄细剑对敌人造成{1}%伤害，并有{2}几率对敌人造成1层流血。 如果敌人有减益状态，则虚剑伤害提升{3}%。 | H9: 1 | I9: icon_s1101 | J9: S1101 | K9: 1101 | L9: 1101_timeline_TD | M9: 1 | N9: 1 | O9: 1 | P9: 4 | Q9: 6;34;100;10 | R9: 2 | S9: 101 | T9: 10 | U9: 1102 | V9: 1 | X9: 6 | Y9: =ROUND(异常状态效果值!G12*(1-AK9)/AI9,0) -> 34 | Z9: 100 | AA9: 10 | AE9: =CONCATENATE("飞剑数量+",V9,"，对带减益的敌人增伤") -> 飞剑数量+1，对带减益的敌人增伤 | AF9: 太虚幻剑经·肆 | AH9: 340 | AI9: 6 | AJ9: 34 | AK9: =AI9*5/100+AA9/100 -> 0.4 | AP9: 10
A10: 11014 | B10: 13001 | C10: 506.25 | D10: 320 | E10: 743 | F10: 太虚幻剑经 | G10: 身体周围幻化出{0}柄细剑，每柄细剑对敌人造成{1}%伤害，并有{2}几率对敌人造成1层流血。 如果敌人有减益状态，则虚剑伤害提升{3}%。 | H10: 1 | I10: icon_s1101 | J10: S1101 | K10: 1101 | L10: 1101_timeline_TD | M10: 1 | N10: 1 | O10: 1 | P10: 5 | Q10: 6;41;100;10 | R10: 2 | S10: 101 | T10: 20 | U10: 1103 | V10: 10 | X10: 6 | Y10: =ROUND(异常状态效果值!G13*(1-AK10)/AI10,0) -> 41 | Z10: 100 | AA10: 10 | AE10: =CONCATENATE(CHOOSE(S10-100,"生命","攻击","防御"),"+",V10,"%") -> 生命+10% | AF10: 太虚幻剑经·伍 | AH10: 410 | AI10: 6 | AJ10: 41 | AK10: =AI10*5/100+AA10/100 -> 0.4 | AP10: 20
A11: 11015 | B11: 13001 | C11: 759.375 | D11: 321 | E11: 744 | F11: 太虚幻剑经 | G11: 身体周围幻化出{0}柄更大体型的虚剑，每柄虚剑对敌人造成{1}%伤害，并有{2}几率对敌人造成1层流血。 如果敌人有减益状态，则虚剑伤害提升{3}%。 | H11: 1 | I11: icon_s1101 | J11: S1101 | K11: 1101 | L11: 1101_timeline_TD | M11: 1 | N11: 1 | O11: 1 | P11: 6 | Q11: 7;41;100;10 | R11: 2 | S11: 101 | T11: 20 | U11: 1104 | X11: 7 | Y11: =ROUND(异常状态效果值!G14*(1-AK11)/AI11,0) -> 41 | Z11: 100 | AA11: 10 | AE11: 发射伤害更高的幻剑 | AF11: 太虚幻剑经·陆 | AH11: 521.8181818 | AI11: 7 | AJ11: 41 | AK11: =AI11*5/100+AA11/100 -> 0.45 | AP11: 20
N12: 1
A13: =K13*10+P13-1 -> 11020 | B13: =B6+1 -> 13002 | C13: 100 | D13: 322 | E13: 745 | F13: 天罡剑气诀 | G13: 吸收自身灵气凝聚{0}柄大剑，大剑旋转快速穿透敌人对敌人照成{1}%伤害 | H13: 1 | I13: =CONCATENATE("icon_s",K13) -> icon_s1102 | J13: =CONCATENATE("S",K13) -> S1102 | K13: =K6+1 -> 1102 | L13: 1102_timeline_TD | M13: 1 | N13: 1 | O13: 1 | P13: 1 | Q13: =_xlfn.TEXTJOIN(";",1,X13:AD13) -> 1;150 | R13: 2 | S13: =_xlfn.TEXTJOIN(";",1,IF(AP13="","",101),IF(AQ13="","",102),IF(AR13="","",103),IF(AS13="","",106),IF(AT13="","",107),IF(AU13="","",108),IF(AV13="","",109),IF(AW13="","",110)) ->  | T13: =_xlfn.TEXTJOIN(";",1,AP13:AW13) ->  | U13: -1 | X13: 1 | Y13: =ROUND(异常状态效果值!G9*(1-AK13)/AI13,0) -> 150 | AF13: 天罡剑气诀·壹 | AH13: 150 | AI13: =X13 -> 1 | AJ13: =Y13 -> 150
A14: =K14*10+P14-1 -> 11021 | B14: =B7+1 -> 13002 | C14: 150 | D14: 323 | E14: 746 | F14: 天罡剑气诀 | G14: 吸收自身灵气凝聚{0}柄大剑，大剑旋转快速穿透敌人对敌人照成{1}%伤害 敌人如果在流血或放血状态，对敌人造成的伤害+{2}% | H14: 1 | I14: =CONCATENATE("icon_s",K14) -> icon_s1102 | J14: =CONCATENATE("S",K14) -> S1102 | K14: =K7+1 -> 1102 | L14: 1102_timeline_TD | M14: 1 | N14: 1 | O14: 1 | P14: 2 | Q14: =_xlfn.TEXTJOIN(";",1,X14:AD14) -> 1;150;25 | R14: 2 | S14: =_xlfn.TEXTJOIN(";",1,IF(AP14="","",101),IF(AQ14="","",102),IF(AR14="","",103),IF(AS14="","",106),IF(AT14="","",107),IF(AU14="","",108),IF(AV14="","",109),IF(AW14="","",110)) ->  | T14: =_xlfn.TEXTJOIN(";",1,AP14:AW14) ->  | U14: 1105 | V14: 2 | X14: 1 | Y14: =ROUND(异常状态效果值!G10*(1-AK14)/AI14,0) -> 150 | Z14: 25 | AE14: 对流血或放血敌人增伤 | AF14: 天罡剑气诀·贰 | AH14: 200 | AI14: =X14 -> 1 | AJ14: =Y14 -> 150 | AK14: =Z14/100 -> 0.25
A15: 11022 | B15: 13002 | C15: 225 | D15: 324 | E15: 747 | F15: 天罡剑气诀 | G15: 吸收自身灵气凝聚{0}柄大剑，大剑旋转快速穿透敌人对敌人照成{1}%伤害 敌人如果在流血或放血状态，对敌人造成的伤害+{2}% | H15: 1 | I15: icon_s1102 | J15: S1102 | K15: 1102 | L15: 1102_timeline_TD | M15: 1 | N15: 1 | O15: 1 | P15: 3 | Q15: 1;195;25 | R15: 2 | S15: 102 | T15: 10 | U15: 1106 | V15: 10 | X15: 1 | Y15: =ROUND(异常状态效果值!G11*(1-AK15)/AI15,0) -> 195 | Z15: 25 | AE15: =CONCATENATE(CHOOSE(S15-100,"生命","攻击","防御"),"+",V15,"%") -> 攻击+10% | AF15: 天罡剑气诀·叁 | AH15: 260 | AI15: 1 | AJ15: =Y15 -> 195 | AK15: =Z15/100 -> 0.25 | AQ15: 10
A16: 11023 | B16: 13002 | C16: 337.5 | D16: 325 | E16: 748 | F16: 天罡剑气诀 | G16: 吸收自身灵气凝聚{0}柄大剑，大剑旋转快速穿透敌人对敌人照成{1}%伤害 敌人如果在流血或放血状态，对敌人造成的伤害+{2}% 重伤敌人后，如果目标没在放血状态，直接放血且不消耗流血层数 | H16: 1 | I16: icon_s1102 | J16: S1102 | K16: 1102 | L16: 1102_timeline_TD | M16: 1 | N16: 1 | O16: 1 | P16: 4 | Q16: 1;221;25 | R16: 2 | S16: 102 | T16: 10 | U16: 1107 | V16: 1 | X16: 1 | Y16: =ROUND(异常状态效果值!G12*(1-AK16)/AI16,0) -> 221 | Z16: 25 | AE16: 无条件放血 | AF16: 天罡剑气诀·肆 | AH16: 340 | AI16: 1 | AJ16: 221 | AK16: =Z16/100+0.1 -> 0.35 | AQ16: 10
A17: 11024 | B17: 13002 | C17: 506.25 | D17: 326 | E17: 749 | F17: 天罡剑气诀 | G17: 吸收自身灵气凝聚{0}柄大剑，大剑旋转快速穿透敌人对敌人照成{1}%伤害 敌人如果在流血或放血状态，对敌人造成的伤害+{2}% 重伤敌人后，如果目标没在放血状态，直接放血且不消耗流血层数 | H17: 1 | I17: icon_s1102 | J17: S1102 | K17: 1102 | L17: 1102_timeline_TD | M17: 1 | N17: 1 | O17: 1 | P17: 5 | Q17: 1;267;25 | R17: 2 | S17: 102 | T17: 20 | U17: 1108 | V17: 10 | X17: 1 | Y17: =ROUND(异常状态效果值!G13*(1-AK17)/AI17,0) -> 267 | Z17: 25 | AE17: =CONCATENATE(CHOOSE(S17-100,"生命","攻击","防御"),"+",V17,"%") -> 攻击+10% | AF17: 天罡剑气诀·伍 | AH17: 410.7692308 | AI17: 1 | AJ17: 267 | AK17: =Z17/100+0.1 -> 0.35 | AQ17: 20
A18: 11025 | B18: 13002 | C18: 759.375 | D18: 327 | E18: 750 | F18: 天罡剑气诀 | G18: 吸收自身灵气凝聚{0}柄大剑，大剑旋转快速穿透敌人对敌人照成{1}%伤害 敌人如果在流血或放血状态，对敌人造成的伤害+{2}% 重伤敌人后，如果目标没在放血状态，直接放血且不消耗流血层数 全盛状态，剑的体型变大，对拼强度+{3}%，伤害提升{4}% | H18: 1 | I18: icon_s1102 | J18: S1102 | K18: 1102 | L18: 1102_timeline_TD | M18: 1 | N18: 1 | O18: 1 | P18: 6 | Q18: 1;338;25;100 | R18: 2 | S18: 102 | T18: 20 | U18: 1109 | X18: 1 | Y18: =ROUND(异常状态效果值!G14*(1-AK18)/AI18,0) -> 338 | Z18: 25 | AA18: 100 | AE18: 对拼强度和伤害提升 | AF18: 天罡剑气诀·陆 | AH18: 520 | AI18: 1 | AJ18: 338 | AK18: =(Z18+AB18)/100+0.1 -> 0.35 | AQ18: 20
N19: 1
A20: =K20*10+P20-1 -> 11030 | B20: =B13+1 -> 13003 | C20: 100 | D20: 328 | E20: 751 | F20: 血刃金煌功 | G20: 向前方挥动{0}次，每次挥动形成一道血刃刀气，对敌人{1}造成伤害，并有{2}%概率对敌人造成流血。 | H20: 1 | I20: =CONCATENATE("icon_s",K20) -> icon_s1103 | J20: =CONCATENATE("S",K20) -> S1103 | K20: =K13+1 -> 1103 | L20: 1103_timeline_TD | M20: 1 | N20: 1 | O20: 1 | P20: 1 | Q20: =_xlfn.TEXTJOIN(";",1,X20:AD20) -> 3;47;100 | R20: 2 | S20: =_xlfn.TEXTJOIN(";",1,IF(AP20="","",101),IF(AQ20="","",102),IF(AR20="","",103),IF(AS20="","",106),IF(AT20="","",107),IF(AU20="","",108),IF(AV20="","",109),IF(AW20="","",110)) ->  | T20: =_xlfn.TEXTJOIN(";",1,AP20:AW20) ->  | U20: -1 | X20: 3 | Y20: =ROUND(异常状态效果值!G9*(1-AK20-AM20*0.1)/AI20,0) -> 47 | Z20: 100 | AF20: 血刃金煌功·壹 | AH20: 150 | AI20: =X20 -> 3 | AJ20: =Y20 -> 47 | AK20: =AI20*异常状态效果值!B1/100 -> 0.06
A21: =K21*10+P21-1 -> 11031 | B21: =B14+1 -> 13003 | C21: 150 | D21: 329 | E21: 752 | F21: 血刃金煌功 | G21: 向前方挥动{0}次，每次挥动形成一道血刃刀气，对敌人{1}造成伤害，并有{2}%概率对敌人造成流血。 刀气命中目标后，恢复本次伤害{3}%的生命。 | H21: 1 | I21: icon_s1103 | J21: =CONCATENATE("S",K21) -> S1103 | K21: =K14+1 -> 1103 | L21: 1103_timeline_TD | M21: 1 | N21: 1 | O21: 1 | P21: 2 | Q21: =_xlfn.TEXTJOIN(";",1,X21:AD21) -> 3;56;100;10 | R21: 2 | S21: =_xlfn.TEXTJOIN(";",1,IF(AP21="","",101),IF(AQ21="","",102),IF(AR21="","",103),IF(AS21="","",106),IF(AT21="","",107),IF(AU21="","",108),IF(AV21="","",109),IF(AW21="","",110)) ->  | T21: =_xlfn.TEXTJOIN(";",1,AP21:AW21) ->  | U21: 1110 | X21: 3 | Y21: =ROUND(异常状态效果值!G10*(1-AK21-0.1)/AI21,0) -> 56 | Z21: 100 | AA21: 10 | AE21: 刀气命中回血 | AF21: 血刃金煌功·贰 | AH21: 178.7234043 | AI21: =X21 -> 3 | AJ21: =Y21 -> 56 | AK21: =AI21*异常状态效果值!B1/100 -> 0.06 | AM21: =Y21*X21*AA21/10000 -> 0.168
A22: 11032 | B22: 13003 | C22: 225 | D22: 330 | E22: 753 | F22: 血刃金煌功 | G22: 向前方挥动{0}次，每次挥动形成一道血刃刀气，对敌人{1}造成伤害，并有{2}%概率对敌人造成流血。 刀气命中目标后，恢复本次伤害{3}%的生命。 | H22: 1 | I22: icon_s1103 | J22: S1103 | K22: 1103 | L22: 1103_timeline_TD | M22: 1 | N22: 1 | O22: 1 | P22: 3 | Q22: 3;73;100;10 | R22: 2 | S22: 103 | T22: 10 | U22: 1111 | V22: 10 | X22: 3 | Y22: =ROUND(异常状态效果值!G11*(1-AK22-0.1)/AI22,0) -> 73 | Z22: 100 | AA22: 10 | AE22: =CONCATENATE(CHOOSE(S22-100,"生命","攻击","防御"),"+",V22,"%") -> 防御+10% | AF22: 血刃金煌功·叁 | AH22: 232.9787234 | AI22: 3 | AJ22: 73 | AK22: =AI22*异常状态效果值!B1/100 -> 0.06 | AM22: =Y22*X22*AA22/10000 -> 0.219 | AR22: 10
A23: 11033 | B23: 13003 | C23: 337.5 | D23: 331 | E23: 754 | F23: 血刃金煌功 | G23: 向前方挥动{0}次，每次挥动形成一道血刃刀气，对敌人{1}造成伤害，并有{2}%概率对敌人造成流血。 刀气命中目标后，恢复本次伤害{3}%的生命。 | H23: 1 | I23: icon_s1103 | J23: S1103 | K23: 1103 | L23: 1103_timeline_TD | M23: 1 | N23: 1 | O23: 1 | P23: 4 | Q23: 3;95;100;10 | R23: 2 | S23: 103 | T23: 10 | U23: 1112 | V23: 2 | X23: 3 | Y23: =ROUND(异常状态效果值!G12*(1-AK23-0.1)/AI23,0) -> 95 | Z23: 100 | AA23: 10 | AE23: =CONCATENATE("刀气+",V23) -> 刀气+2 | AF23: 血刃金煌功·肆 | AH23: 303.1914894 | AI23: 3 | AJ23: 95 | AK23: =AI23*异常状态效果值!B1/100 -> 0.06 | AM23: =Y23*X23*AA23/10000 -> 0.285 | AR23: 10
A24: 11034 | B24: 13003 | C24: 506.25 | D24: 332 | E24: 755 | F24: 血刃金煌功 | G24: 向前方挥动{0}次，每次挥动形成一道血刃刀气，对敌人{1}造成伤害，并有{2}%概率对敌人造成流血。 刀气命中目标后，恢复本次伤害{3}%的生命。 | H24: 1 | I24: icon_s1103 | J24: S1103 | K24: 1103 | L24: 1103_timeline_TD | M24: 1 | N24: 1 | O24: 1 | P24: 5 | Q24: 3;115;100;10 | R24: 2 | S24: 103 | T24: 20 | U24: 1113 | V24: 10 | X24: 3 | Y24: =ROUND(异常状态效果值!G13*(1-AK24-0.1)/AI24,0) -> 115 | Z24: 100 | AA24: 10 | AE24: =CONCATENATE(CHOOSE(S24-100,"生命","攻击","防御"),"+",V24,"%") -> 防御+10% | AF24: 血刃金煌功·伍 | AH24: 367.0212766 | AI24: 3 | AJ24: 115 | AK24: =AI24*异常状态效果值!B1/100 -> 0.06 | AM24: =Y24*X24*AA24/10000 -> 0.345 | AR24: 20
A25: 11035 | B25: 13003 | C25: 759.375 | D25: 333 | E25: 756 | F25: 血刃金煌功 | G25: 向前方挥动{0}次，每次挥动形成一道血刃刀气，对敌人{1}造成伤害，并有{2}%概率对敌人造成流血。 刀气命中目标后，恢复本次伤害{3}%的生命。 刀气对流血的敌人额外造成{4}%伤害，且再施加1层流血。 | H25: 1 | I25: icon_s1103 | J25: S1103 | K25: 1103 | L25: 1103_timeline_TD | M25: 1 | N25: 1 | O25: 1 | P25: 6 | Q25: 3;111;100;10;20 | R25: 2 | S25: 103 | T25: 20 | U25: 1114 | X25: 3 | Y25: =ROUND(异常状态效果值!G14*(1-AK25-0.1)/AI25,0) -> 111 | Z25: 100 | AA25: 10 | AB25: 20 | AE25: 对流血目标增伤，再次放血 | AF25: 血刃金煌功·陆 | AH25: 450 | AI25: 3 | AJ25: 111 | AK25: =AI25*异常状态效果值!B1/100+AB25/100 -> 0.26 | AM25: =Y25*X25*AA25/10000 -> 0.333 | AR25: 20
N26: 1
A27: =K27*10+P27-1 -> 11040 | B27: =B20+1 -> 13004 | C27: 100 | D27: 334 | E27: 757 | F27: 飞刃 | G27: 发射{0}枚飞刀，对敌人造成{1}%伤害。 | H27: 1 | I27: =CONCATENATE("icon_s",K27) -> icon_s1104 | J27: =CONCATENATE("S",K27) -> S1104 | K27: =K20+1 -> 1104 | L27: 1104_timeline_TD | M27: 1 | N27: 1 | O27: 1 | P27: 1 | Q27: =_xlfn.TEXTJOIN(";",1,X27:AD27) -> 5;30 | R27: 2 | S27: =_xlfn.TEXTJOIN(";",1,IF(AP27="","",101),IF(AQ27="","",102),IF(AR27="","",103),IF(AS27="","",106),IF(AT27="","",107),IF(AU27="","",108),IF(AV27="","",109),IF(AW27="","",110)) ->  | T27: =_xlfn.TEXTJOIN(";",1,AP27:AW27) ->  | U27: -1 | X27: 5 | Y27: =ROUND(异常状态效果值!H9*(1-AK27-AM27*0.1)/AI27,0) -> 30 | AF27: 飞刃·壹 | AH27: 150 | AI27: =X27 -> 5 | AJ27: =Y27 -> 30
A28: =K28*10+P28-1 -> 11041 | B28: =B21+1 -> 13004 | C28: 150 | D28: 335 | E28: 758 | F28: 飞刃 | G28: 发射{0}枚飞刀，对敌人造成{1}%伤害。 | H28: 1 | I28: icon_s1104 | J28: =CONCATENATE("S",K28) -> S1104 | K28: =K21+1 -> 1104 | L28: 1104_timeline_TD | M28: 1 | N28: 1 | O28: 1 | P28: 2 | Q28: =_xlfn.TEXTJOIN(";",1,X28:AD28) -> 5;40 | R28: 2 | S28: =_xlfn.TEXTJOIN(";",1,IF(AP28="","",101),IF(AQ28="","",102),IF(AR28="","",103),IF(AS28="","",106),IF(AT28="","",107),IF(AU28="","",108),IF(AV28="","",109),IF(AW28="","",110)) -> 102 | T28: =_xlfn.TEXTJOIN(";",1,AP28:AW28) -> 5 | U28: 1115 | V28: 5 | X28: 5 | Y28: =ROUND(异常状态效果值!H10*(1-AK28-AM28*0.1)/AI28,0) -> 40 | AE28: =CONCATENATE(CHOOSE(S28-100,"生命","攻击","防御"),"+",V28,"%") -> 攻击+5% | AF28: 飞刃·贰 | AH28: 200 | AI28: =X28 -> 5 | AJ28: =Y28 -> 40 | AQ28: 5
A29: 11042 | B29: 13004 | C29: 225 | D29: 336 | E29: 759 | F29: 飞刃 | G29: 发射{0}枚飞刀，对敌人造成{1}%伤害。 | H29: 1 | I29: icon_s1104 | J29: S1104 | K29: 1104 | L29: 1104_timeline_TD | M29: 1 | N29: 1 | O29: 1 | P29: 3 | Q29: 5;50 | R29: 2 | S29: 102 | T29: 5 | U29: 1116 | V29: 2 | X29: 5 | Y29: =ROUND(异常状态效果值!H11*(1-AK29-AM29*0.1)/AI29,0) -> 50 | AE29: =CONCATENATE("飞刀数量+",V29) -> 飞刀数量+2 | AF29: 飞刃·叁 | AH29: 250 | AI29: 5 | AJ29: 50 | AQ29: 5
A30: 11043 | B30: 13004 | C30: 337.5 | D30: 337 | E30: 760 | F30: 飞刃 | G30: 发射{0}枚飞刀，对敌人造成{1}%伤害。 | H30: 1 | I30: icon_s1104 | J30: S1104 | K30: 1104 | L30: 1104_timeline_TD | M30: 1 | N30: 1 | O30: 1 | P30: 4 | Q30: 5;60 | R30: 2 | S30: 102 | T30: 10 | U30: 1117 | V30: 5 | X30: 5 | Y30: =ROUND(异常状态效果值!H12*(1-AK30-AM30*0.1)/AI30,0) -> 60 | AE30: =CONCATENATE(CHOOSE(S30-100,"生命","攻击","防御"),"+",V30,"%") -> 攻击+5% | AF30: 飞刃·肆 | AH30: 300 | AI30: 5 | AJ30: 60 | AQ30: 10
A31: 11044 | B31: 13004 | C31: 506.25 | D31: 338 | E31: 761 | F31: 飞刃 | G31: 发射{0}枚飞刀，对敌人造成{1}%伤害。 | H31: 1 | I31: icon_s1104 | J31: S1104 | K31: 1104 | L31: 1104_timeline_TD | M31: 1 | N31: 1 | O31: 1 | P31: 5 | Q31: 5;70 | R31: 2 | S31: 102 | T31: 10 | U31: 1118 | V31: 2 | X31: 5 | Y31: =ROUND(异常状态效果值!H13*(1-AK31-AM31*0.1)/AI31,0) -> 70 | AE31: =CONCATENATE("飞刀数量+",V31) -> 飞刀数量+2 | AF31: 飞刃·伍 | AH31: 350 | AI31: 5 | AJ31: 70 | AQ31: 10
A32: 11045 | B32: 13004 | C32: 759.375 | D32: 339 | E32: 762 | F32: 飞刃 | G32: 发射{0}枚飞刀，对敌人造成{1}%伤害。 | H32: 1 | I32: icon_s1104 | J32: S1104 | K32: 1104 | L32: 1104_timeline_TD | M32: 1 | N32: 1 | O32: 1 | P32: 6 | Q32: 5;80 | R32: 2 | S32: 102 | T32: 15 | U32: 1119 | V32: 5 | X32: 5 | Y32: =ROUND(异常状态效果值!H14*(1-AK32-AM32*0.1)/AI32,0) -> 80 | AE32: =CONCATENATE(CHOOSE(S32-100,"生命","攻击","防御"),"+",V32,"%") -> 攻击+5% | AF32: 飞刃·陆 | AH32: 400 | AI32: 5 | AJ32: 80 | AQ32: 15
N33: 1
A34: =K34*10+P34-1 -> 11050 | B34: =B27+1 -> 13005 | C34: 100 | D34: 340 | E34: 763 | F34: 金针 | G34: 手中快速发射{0}%枚金针，对敌人造成{1}%伤害，并有{2}%概率施加1层流血。 | H34: 1 | I34: =CONCATENATE("icon_s",K34) -> icon_s1105 | J34: =CONCATENATE("S",K34) -> S1105 | K34: =K27+1 -> 1105 | L34: 1105_timeline_TD | M34: 1 | N34: 1 | O34: 1 | P34: 1 | Q34: =_xlfn.TEXTJOIN(";",1,X34:AD34) -> 4;35;40 | R34: 2 | S34: =_xlfn.TEXTJOIN(";",1,IF(AP34="","",101),IF(AQ34="","",102),IF(AR34="","",103),IF(AS34="","",106),IF(AT34="","",107),IF(AU34="","",108),IF(AV34="","",109),IF(AW34="","",110)) ->  | T34: =_xlfn.TEXTJOIN(";",1,AP34:AW34) ->  | U34: -1 | X34: 4 | Y34: =ROUND(异常状态效果值!H9*(1-AK34-AM34*0.1)/AI34,0) -> 35 | Z34: 40 | AF34: 金针·壹 | AH34: 152.173913 | AI34: =X34 -> 4 | AJ34: =Y34 -> 35 | AK34: =X34*异常状态效果值!B1/100 -> 0.08
A35: =K35*10+P35-1 -> 11051 | B35: =B28+1 -> 13005 | C35: 150 | D35: 341 | E35: 764 | F35: 金针 | G35: 手中快速发射{0}%枚金针，对敌人造成{1}%伤害，并有{2}%概率施加1层流血。 | H35: 1 | I35: icon_s1105 | J35: =CONCATENATE("S",K35) -> S1105 | K35: =K28+1 -> 1105 | L35: 1105_timeline_TD | M35: 1 | N35: 1 | O35: 1 | P35: 2 | Q35: =_xlfn.TEXTJOIN(";",1,X35:AD35) -> 4;46;40 | R35: 2 | S35: =_xlfn.TEXTJOIN(";",1,IF(AP35="","",101),IF(AQ35="","",102),IF(AR35="","",103),IF(AS35="","",106),IF(AT35="","",107),IF(AU35="","",108),IF(AV35="","",109),IF(AW35="","",110)) -> 103 | T35: =_xlfn.TEXTJOIN(";",1,AP35:AW35) -> 5 | U35: 1120 | V35: 5 | X35: 4 | Y35: =ROUND(异常状态效果值!H10*(1-AK35-AM35*0.1)/AI35,0) -> 46 | Z35: 40 | AE35: =CONCATENATE(CHOOSE(S35-100,"生命","攻击","防御"),"+",V35,"%") -> 防御+5% | AF35: 金针·贰 | AH35: 200 | AI35: 4 | AJ35: 46 | AK35: =X35*异常状态效果值!B1/100 -> 0.08 | AR35: 5
A36: 11052 | B36: 13005 | C36: 225 | D36: 342 | E36: 765 | F36: 金针 | G36: 手中快速发射{0}%枚金针，对敌人造成{1}%伤害，并有{2}%概率施加1层流血。 | H36: 1 | I36: icon_s1105 | J36: S1105 | K36: 1105 | L36: 1105_timeline_TD | M36: 1 | N36: 1 | O36: 1 | P36: 3 | Q36: 4;58;40 | R36: 2 | S36: 103 | T36: 5 | U36: 1121 | V36: 1 | X36: 4 | Y36: =ROUND(异常状态效果值!H11*(1-AK36-AM36*0.1)/AI36,0) -> 58 | Z36: 40 | AE36: =CONCATENATE("金针数量+",V36) -> 金针数量+1 | AF36: 金针·叁 | AH36: 252.173913 | AI36: 4 | AJ36: 58 | AK36: =X36*异常状态效果值!B1/100 -> 0.08 | AR36: 5
A37: 11053 | B37: 13005 | C37: 337.5 | D37: 343 | E37: 766 | F37: 金针 | G37: 手中快速发射{0}%枚金针，对敌人造成{1}%伤害，并有{2}%概率施加1层流血。 | H37: 1 | I37: icon_s1105 | J37: S1105 | K37: 1105 | L37: 1105_timeline_TD | M37: 1 | N37: 1 | O37: 1 | P37: 4 | Q37: 4;69;40 | R37: 2 | S37: 103 | T37: 10 | U37: 1122 | V37: 5 | X37: 4 | Y37: =ROUND(异常状态效果值!H12*(1-AK37-AM37*0.1)/AI37,0) -> 69 | Z37: 40 | AE37: =CONCATENATE(CHOOSE(S37-100,"生命","攻击","防御"),"+",V37,"%") -> 防御+5% | AF37: 金针·肆 | AH37: 300 | AI37: 4 | AJ37: 69 | AK37: =X37*异常状态效果值!B1/100 -> 0.08 | AR37: 10
A38: 11054 | B38: 13005 | C38: 506.25 | D38: 344 | E38: 767 | F38: 金针 | G38: 手中快速发射{0}%枚金针，对敌人造成{1}%伤害，并有{2}%概率施加1层流血。 | H38: 1 | I38: icon_s1105 | J38: S1105 | K38: 1105 | L38: 1105_timeline_TD | M38: 1 | N38: 1 | O38: 1 | P38: 5 | Q38: 4;81;40 | R38: 2 | S38: 103 | T38: 10 | U38: 1123 | V38: 1 | X38: 4 | Y38: =ROUND(异常状态效果值!H13*(1-AK38-AM38*0.1)/AI38,0) -> 81 | Z38: 40 | AE38: =CONCATENATE("金针数量+",V38) -> 金针数量+1 | AF38: 金针·伍 | AH38: 352.173913 | AI38: 4 | AJ38: 81 | AK38: =X38*异常状态效果值!B1/100 -> 0.08 | AR38: 10
A39: 11055 | B39: 13005 | C39: 759.375 | D39: 345 | E39: 768 | F39: 金针 | G39: 手中快速发射{0}%枚金针，对敌人造成{1}%伤害，并有{2}%概率施加1层流血。 | H39: 1 | I39: icon_s1105 | J39: S1105 | K39: 1105 | L39: 1105_timeline_TD | M39: 1 | N39: 1 | O39: 1 | P39: 6 | Q39: 4;92;40 | R39: 2 | S39: 103 | T39: 15 | U39: 1124 | V39: 5 | X39: 4 | Y39: =ROUND(异常状态效果值!H14*(1-AK39-AM39*0.1)/AI39,0) -> 92 | Z39: 40 | AE39: =CONCATENATE(CHOOSE(S39-100,"生命","攻击","防御"),"+",V39,"%") -> 防御+5% | AF39: 金针·陆 | AH39: 400 | AI39: 4 | AJ39: 92 | AK39: =X39*异常状态效果值!B1/100 -> 0.08 | AR39: 15
N40: 1
A41: =K41*10+P41-1 -> 12010 | B41: =B34+1 -> 13006 | C41: 100 | D41: 346 | E41: 769 | F41: 碧落幽冥劲 | G41: 发出{0}道寒气冰锥，对敌人照成{1}%伤害，每到冰锥有{2}%概率对敌人施加1层寒气 | H41: 2 | I41: =CONCATENATE("icon_s",K41) -> icon_s1201 | J41: =CONCATENATE("S",K41) -> S1201 | K41: 1201 | L41: 1201_timeline_TD | M41: 1 | N41: 1 | O41: 1 | P41: 1 | Q41: =_xlfn.TEXTJOIN(";",1,X41:AD41) -> 4;36;100 | R41: 2 | S41: =_xlfn.TEXTJOIN(";",1,IF(AP41="","",101),IF(AQ41="","",102),IF(AR41="","",103),IF(AS41="","",106),IF(AT41="","",107),IF(AU41="","",108),IF(AV41="","",109),IF(AW41="","",110)) ->  | T41: =_xlfn.TEXTJOIN(";",1,AP41:AW41) ->  | U41: -1 | X41: 4 | Y41: =ROUND(异常状态效果值!G9*(1-AK41-AM41*0.1)/AI41,0) -> 36 | Z41: 100 | AF41: 碧落幽冥劲·壹 | AH41: 150 | AI41: =X41 -> 4 | AJ41: =Y41 -> 36 | AK41: =X41*异常状态效果值!B2/100 -> 0.04
A42: =K42*10+P42-1 -> 12011 | B42: =B35+1 -> 13006 | C42: 150 | D42: 347 | E42: 770 | F42: 碧落幽冥劲 | G42: 发出{0}道寒气冰锥，对敌人照成{1}%伤害，每到冰锥有{2}%概率对敌人施加1层寒气 | H42: 2 | I42: icon_s1201 | J42: =CONCATENATE("S",K42) -> S1201 | K42: 1201 | L42: 1201_timeline_TD | M42: 1 | N42: 1 | O42: 1 | P42: 2 | Q42: =_xlfn.TEXTJOIN(";",1,X42:AD42) -> 4;48;100 | R42: 2 | S42: =_xlfn.TEXTJOIN(";",1,IF(AP42="","",101),IF(AQ42="","",102),IF(AR42="","",103),IF(AS42="","",106),IF(AT42="","",107),IF(AU42="","",108),IF(AV42="","",109),IF(AW42="","",110)) ->  | T42: =_xlfn.TEXTJOIN(";",1,AP42:AW42) ->  | U42: 1125 | V42: 1 | X42: 4 | Y42: =ROUND(异常状态效果值!G10*(1-AK42-AM42*0.1)/AI42,0) -> 48 | Z42: 100 | AE42: =CONCATENATE("冰锥数量+",V42) -> 冰锥数量+1 | AF42: 碧落幽冥劲·贰 | AH42: 200 | AI42: 4 | AJ42: 48 | AK42: =X42*异常状态效果值!B2/100 -> 0.04
A43: 12012 | B43: 13006 | C43: 225 | D43: 348 | E43: 771 | F43: 碧落幽冥劲 | G43: 发出{0}道寒气冰锥，对敌人照成{1}%伤害，每到冰锥有{2}%概率对敌人施加1层寒气 | H43: 2 | I43: icon_s1201 | J43: S1201 | K43: 1201 | L43: 1201_timeline_TD | M43: 1 | N43: 1 | O43: 1 | P43: 3 | Q43: 4;62;100 | R43: 2 | S43: 101 | T43: 10 | U43: 1126 | V43: 10 | X43: 4 | Y43: =ROUND(异常状态效果值!G11*(1-AK43-AM43*0.1)/AI43,0) -> 62 | Z43: 100 | AE43: =CONCATENATE(CHOOSE(S43-100,"生命","攻击","防御"),"+",V43,"%") -> 生命+10% | AF43: 碧落幽冥劲·叁 | AH43: 258.3333333 | AI43: 4 | AJ43: 62 | AK43: =X43*异常状态效果值!B2/100 -> 0.04 | AP43: 10
A44: 12013 | B44: 13006 | C44: 337.5 | D44: 349 | E44: 772 | F44: 碧落幽冥劲 | G44: 发出{0}道寒气冰锥，对敌人照成{1}%伤害，每到冰锥有{2}%概率对敌人施加1层寒气 | H44: 2 | I44: icon_s1201 | J44: S1201 | K44: 1201 | L44: 1201_timeline_TD | M44: 1 | N44: 1 | O44: 1 | P44: 4 | Q44: 4;82;100 | R44: 2 | S44: 101 | T44: 10 | U44: 1127 | V44: 1 | X44: 4 | Y44: =ROUND(异常状态效果值!G12*(1-AK44-AM44*0.1)/AI44,0) -> 82 | Z44: 100 | AE44: =CONCATENATE("冰锥数量+",V44) -> 冰锥数量+1 | AF44: 碧落幽冥劲·肆 | AH44: 341.6666667 | AI44: 4 | AJ44: 82 | AK44: =X44*异常状态效果值!B2/100 -> 0.04 | AP44: 10
A45: 12014 | B45: 13006 | C45: 506.25 | D45: 350 | E45: 773 | F45: 碧落幽冥劲 | G45: 发出{0}道寒气冰锥，对敌人照成{1}%伤害，每到冰锥有{2}%概率对敌人施加1层寒气 | H45: 2 | I45: icon_s1201 | J45: S1201 | K45: 1201 | L45: 1201_timeline_TD | M45: 1 | N45: 1 | O45: 1 | P45: 5 | Q45: 4;98;100 | R45: 2 | S45: 101 | T45: 20 | U45: 1128 | V45: 10 | X45: 4 | Y45: =ROUND(异常状态效果值!G13*(1-AK45-AM45*0.1)/AI45,0) -> 98 | Z45: 100 | AE45: =CONCATENATE(CHOOSE(S45-100,"生命","攻击","防御"),"+",V45,"%") -> 生命+10% | AF45: 碧落幽冥劲·伍 | AH45: 408.3333333 | AI45: 4 | AJ45: 98 | AK45: =X45*异常状态效果值!B2/100 -> 0.04 | AP45: 20
A46: 12015 | B46: 13006 | C46: 759.375 | D46: 351 | E46: 774 | F46: 碧落幽冥劲 | G46: 发出{0}道寒气冰锥，对敌人照成{1}%伤害，每到冰锥有{2}%概率对敌人施加1层寒气 | H46: 2 | I46: icon_s1201 | J46: S1201 | K46: 1201 | L46: 1201_timeline_TD | M46: 1 | N46: 1 | O46: 1 | P46: 6 | Q46: 5;99;100 | R46: 2 | S46: 101 | T46: 20 | U46: 1129 | V46: 1 | X46: 5 | Y46: =ROUND(异常状态效果值!G14*(1-AK46-AM46*0.1)/AI46,0) -> 99 | Z46: 100 | AE46: =CONCATENATE("冰锥数量+",V46) -> 冰锥数量+1 | AF46: 碧落幽冥劲·陆 | AH46: 521.0526316 | AI46: 5 | AJ46: 99 | AK46: =X46*异常状态效果值!B2/100 -> 0.05 | AP46: 20
N47: 1
A48: =K48*10+P48-1 -> 12020 | B48: =B41+1 -> 13007 | C48: 100 | D48: 352 | E48: 775 | F48: 雾隐千流法 | G48: 身体散发出一团迷雾。从迷雾中飞出{0}个冰球，每个冰球对敌人照成{1}%伤害，并有{2}%概率施加1层寒气 | H48: 2 | I48: =CONCATENATE("icon_s",K48) -> icon_s1202 | J48: =CONCATENATE("S",K48) -> S1202 | K48: =K41+1 -> 1202 | L48: 1202_timeline_TD | M48: 1 | N48: 1 | O48: 1 | P48: 1 | Q48: =_xlfn.TEXTJOIN(";",1,X48:AD48) -> 5;29;100 | R48: 2 | S48: =_xlfn.TEXTJOIN(";",1,IF(AP48="","",101),IF(AQ48="","",102),IF(AR48="","",103),IF(AS48="","",106),IF(AT48="","",107),IF(AU48="","",108),IF(AV48="","",109),IF(AW48="","",110)) ->  | T48: =_xlfn.TEXTJOIN(";",1,AP48:AW48) ->  | U48: -1 | X48: 5 | Y48: =ROUND(异常状态效果值!G9*(1-AK48-AM48*0.1)/AI48,0) -> 29 | Z48: 100 | AF48: 雾隐千流法·壹 | AH48: =IF(A48="","",AI48*AJ48/(1-AK48-AL48)) -> 152.6315789 | AI48: =X48 -> 5 | AJ48: =Y48 -> 29 | AK48: =X48*异常状态效果值!B2/100 -> 0.05
A49: =K49*10+P49-1 -> 12021 | B49: =B42+1 -> 13007 | C49: 150 | D49: 353 | E49: 776 | F49: 雾隐千流法 | G49: 身体散发出一团迷雾。从迷雾中飞出{0}个冰球，每个冰球对敌人照成{1}%伤害，并有{2}%概率施加1层寒气 | H49: 2 | I49: icon_s1202 | J49: =CONCATENATE("S",K49) -> S1202 | K49: =K42+1 -> 1202 | L49: 1202_timeline_TD | M49: 1 | N49: 1 | O49: 1 | P49: 2 | Q49: =_xlfn.TEXTJOIN(";",1,X49:AD49) -> 5;38;100 | R49: 2 | S49: =_xlfn.TEXTJOIN(";",1,IF(AP49="","",101),IF(AQ49="","",102),IF(AR49="","",103),IF(AS49="","",106),IF(AT49="","",107),IF(AU49="","",108),IF(AV49="","",109),IF(AW49="","",110)) ->  | T49: =_xlfn.TEXTJOIN(";",1,AP49:AW49) ->  | U49: 1130 | V49: 1 | X49: 5 | Y49: =ROUND(异常状态效果值!G10*(1-AK49-AM49*0.1)/AI49,0) -> 38 | Z49: 100 | AE49: =CONCATENATE("冰球数量+",V49) -> 冰球数量+1 | AF49: 雾隐千流法·贰 | AH49: 200 | AI49: 5 | AJ49: 38 | AK49: =X49*异常状态效果值!B2/100 -> 0.05
A50: 12022 | B50: 13007 | C50: 225 | D50: 354 | E50: 777 | F50: 雾隐千流法 | G50: 身体散发出一团迷雾。从迷雾中飞出{0}个冰球，每个冰球对敌人照成{1}%伤害，并有{2}%概率施加1层寒气 | H50: 2 | I50: icon_s1202 | J50: S1202 | K50: 1202 | L50: 1202_timeline_TD | M50: 1 | N50: 1 | O50: 1 | P50: 3 | Q50: 5;49;100 | R50: 2 | S50: 103 | T50: 10 | U50: 1131 | V50: 10 | X50: 5 | Y50: =ROUND(异常状态效果值!G11*(1-AK50-AM50*0.1)/AI50,0) -> 49 | Z50: 100 | AE50: =CONCATENATE(CHOOSE(S50-100,"生命","攻击","防御"),"+",V50,"%") -> 防御+10% | AF50: 雾隐千流法·叁 | AH50: 257.8947368 | AI50: 5 | AJ50: 49 | AK50: =X50*异常状态效果值!B2/100 -> 0.05 | AR50: 10
A51: 12023 | B51: 13007 | C51: 337.5 | D51: 355 | E51: 778 | F51: 雾隐千流法 | G51: 身体散发出一团迷雾。从迷雾中飞出{0}个冰球，每个冰球对敌人照成{1}%伤害，并有{2}%概率施加1层寒气 | H51: 2 | I51: icon_s1202 | J51: S1202 | K51: 1202 | L51: 1202_timeline_TD | M51: 1 | N51: 1 | O51: 1 | P51: 4 | Q51: 5;65;100 | R51: 2 | S51: 103 | T51: 10 | U51: 1132 | V51: 1 | X51: 5 | Y51: =ROUND(异常状态效果值!G12*(1-AK51-AM51*0.1)/AI51,0) -> 65 | Z51: 100 | AE51: =CONCATENATE("冰球数量+",V51) -> 冰球数量+1 | AF51: 雾隐千流法·肆 | AH51: 342.1052632 | AI51: 5 | AJ51: 65 | AK51: =X51*异常状态效果值!B2/100 -> 0.05 | AR51: 10
A52: 12024 | B52: 13007 | C52: 506.25 | D52: 356 | E52: 779 | F52: 雾隐千流法 | G52: 身体散发出一团迷雾。从迷雾中飞出{0}个冰球，每个冰球对敌人照成{1}%伤害，并有{2}%概率施加1层寒气 | H52: 2 | I52: icon_s1202 | J52: S1202 | K52: 1202 | L52: 1202_timeline_TD | M52: 1 | N52: 1 | O52: 1 | P52: 5 | Q52: 5;78;100 | R52: 2 | S52: 103 | T52: 20 | U52: 1133 | V52: 10 | X52: 5 | Y52: =ROUND(异常状态效果值!G13*(1-AK52-AM52*0.1)/AI52,0) -> 78 | Z52: 100 | AE52: =CONCATENATE(CHOOSE(S52-100,"生命","攻击","防御"),"+",V52,"%") -> 防御+10% | AF52: 雾隐千流法·伍 | AH52: 410.5263158 | AI52: 5 | AJ52: 78 | AK52: =X52*异常状态效果值!B2/100 -> 0.05 | AR52: 20
A53: 12025 | B53: 13007 | C53: 759.375 | D53: 357 | E53: 780 | F53: 雾隐千流法 | G53: 身体散发出一团迷雾。从迷雾中飞出{0}个冰球，每个冰球对敌人照成{1}%伤害，并有{2}%概率施加1层寒气 | H53: 2 | I53: icon_s1202 | J53: S1202 | K53: 1202 | L53: 1202_timeline_TD | M53: 1 | N53: 1 | O53: 1 | P53: 6 | Q53: 6;81;100 | R53: 2 | S53: 103 | T53: 20 | U53: 1134 | V53: 1 | X53: 6 | Y53: =ROUND(异常状态效果值!G14*(1-AK53-AM53*0.1)/AI53,0) -> 81 | Z53: 100 | AE53: =CONCATENATE("冰球数量+",V53) -> 冰球数量+1 | AF53: 雾隐千流法·陆 | AH53: 517.0212766 | AI53: 6 | AJ53: 81 | AK53: =X53*异常状态效果值!B2/100 -> 0.06 | AR53: 20
N54: 1
B55: =B48+1 -> 13008 | C55: 100 | D55: 358 | E55: 781 | G55: 占位 | H55: 2 | I55: =CONCATENATE("icon_s",K55) -> icon_s1203 | J55: =CONCATENATE("S",K55) -> S1203 | K55: =K48+1 -> 1203 | L55: bingqiu_timeline_TD | M55: 1 | N55: 1 | O55: 1 | P55: 1 | Q55: =_xlfn.TEXTJOIN(";",1,X55:AD55) -> 4;120;30 | R55: 2 | S55: =_xlfn.TEXTJOIN(";",1,IF(AP55="","",101),IF(AQ55="","",102),IF(AR55="","",103),IF(AS55="","",106),IF(AT55="","",107),IF(AU55="","",108),IF(AV55="","",109),IF(AW55="","",110)) ->  | T55: =_xlfn.TEXTJOIN(";",1,AP55:AW55) ->  | U55: -1 | X55: 4 | Y55: 120 | Z55: 30 | AF55: =IF(F55="","",CONCATENATE(F55,"·",CHOOSE(P55,"壹","贰","叁","肆","伍","陆"))) ->  | AI55: =X55 -> 4 | AJ55: =Y55 -> 120
B56: =B49+1 -> 13008 | C56: 150 | D56: 359 | E56: 782 | G56: 占位 | H56: 2 | I56: icon_s1203 | J56: =CONCATENATE("S",K56) -> S1203 | K56: =K49+1 -> 1203 | L56: bingqiu_timeline_TD | M56: 1 | N56: 1 | O56: 1 | P56: 2 | Q56: =_xlfn.TEXTJOIN(";",1,X56:AD56) -> 4;120;30 | R56: 2 | S56: =_xlfn.TEXTJOIN(";",1,IF(AP56="","",101),IF(AQ56="","",102),IF(AR56="","",103),IF(AS56="","",106),IF(AT56="","",107),IF(AU56="","",108),IF(AV56="","",109),IF(AW56="","",110)) -> 102 | T56: =_xlfn.TEXTJOIN(";",1,AP56:AW56) -> 10 | U56: 1135 | V56: 1 | X56: 4 | Y56: 120 | Z56: 30 | AE56: =CONCATENATE("冰球数量+",V56) -> 冰球数量+1 | AI56: 4 | AJ56: 120 | AQ56: 10
B57: 13008 | C57: 225 | D57: 360 | E57: 783 | G57: 占位 | H57: 2 | I57: icon_s1203 | J57: S1203 | K57: 1203 | L57: bingqiu_timeline_TD | M57: 1 | N57: 1 | O57: 1 | P57: 3 | Q57: 4;120;30 | R57: 2 | S57: 102 | T57: 10 | U57: 1136 | V57: 10 | X57: 4 | Y57: 120 | Z57: 30 | AE57: =CONCATENATE(CHOOSE(S57-100,"生命","攻击","防御"),"+",V57,"%") -> 攻击+10% | AI57: 4 | AJ57: 120 | AK57: 0.2 | AQ57: 10
B58: 13008 | C58: 337.5 | D58: 361 | E58: 784 | G58: 占位 | H58: 2 | I58: icon_s1203 | J58: S1203 | K58: 1203 | L58: bingqiu_timeline_TD | M58: 1 | N58: 1 | O58: 1 | P58: 4 | Q58: 5;120;30 | R58: 2 | S58: 102 | T58: 20 | U58: 1137 | V58: 1 | X58: 5 | Y58: 120 | Z58: 30 | AE58: =CONCATENATE("冰球数量+",V58) -> 冰球数量+1 | AI58: 5 | AJ58: 120 | AK58: 0.2 | AQ58: 20
B59: 13008 | C59: 506.25 | D59: 362 | E59: 785 | G59: 占位 | H59: 2 | I59: icon_s1203 | J59: S1203 | K59: 1203 | L59: bingqiu_timeline_TD | M59: 1 | N59: 1 | O59: 1 | P59: 5 | Q59: 5;120;30 | R59: 2 | S59: 102 | T59: 20 | U59: 1138 | V59: 10 | X59: 5 | Y59: 120 | Z59: 30 | AE59: =CONCATENATE(CHOOSE(S59-100,"生命","攻击","防御"),"+",V59,"%") -> 攻击+10% | AI59: 5 | AJ59: 120 | AK59: 0.2 | AQ59: 20
B60: 13008 | C60: 759.375 | D60: 363 | E60: 786 | G60: 占位 | H60: 2 | I60: icon_s1203 | J60: S1203 | K60: 1203 | L60: bingqiu_timeline_TD | M60: 1 | N60: 1 | O60: 1 | P60: 6 | Q60: 6;120;30 | R60: 2 | U60: 1139 | V60: 1 | X60: 6 | Y60: 120 | Z60: 30 | AE60: =CONCATENATE("冰球数量+",V60) -> 冰球数量+1 | AI60: 6 | AJ60: 120 | AK60: 0.2
I61: =CONCATENATE("icon_s",K61) -> icon_s | N61: 1
A62: =K62*10+P62-1 -> 12040 | B62: =B55+1 -> 13009 | C62: 100 | D62: 358 | E62: 781 | F62: 水球 | G62: 发射{0}枚水波，对敌人造成{1}%伤害。 | H62: 2 | I62: icon_s1204 | J62: =CONCATENATE("S",K62) -> S1204 | K62: 1204 | L62: 1204_timeline_TD | M62: 1 | N62: 1 | O62: 1 | P62: 1 | Q62: =_xlfn.TEXTJOIN(";",1,X62:AD62) -> 3;50 | R62: 2 | S62: =_xlfn.TEXTJOIN(";",1,IF(AP62="","",101),IF(AQ62="","",102),IF(AR62="","",103),IF(AS62="","",106),IF(AT62="","",107),IF(AU62="","",108),IF(AV62="","",109),IF(AW62="","",110)) ->  | T62: =_xlfn.TEXTJOIN(";",1,AP62:AW62) ->  | U62: -1 | X62: 3 | Y62: =ROUND(异常状态效果值!H9*(1-AK62-AM62*0.1)/AI62,0) -> 50 | AF62: 水球·壹 | AH62: 150 | AI62: =X62 -> 3 | AJ62: =Y62 -> 50
A63: =K63*10+P63-1 -> 12041 | B63: =B56+1 -> 13009 | C63: 150 | D63: 359 | E63: 782 | F63: 水球 | G63: 发射{0}枚水波，对敌人造成{1}%伤害。 | H63: 2 | I63: icon_s1204 | J63: =CONCATENATE("S",K63) -> S1204 | K63: 1204 | L63: 1204_timeline_TD | M63: 1 | N63: 1 | O63: 1 | P63: 2 | Q63: =_xlfn.TEXTJOIN(";",1,X63:AD63) -> 3;67 | R63: 2 | S63: =_xlfn.TEXTJOIN(";",1,IF(AP63="","",101),IF(AQ63="","",102),IF(AR63="","",103),IF(AS63="","",106),IF(AT63="","",107),IF(AU63="","",108),IF(AV63="","",109),IF(AW63="","",110)) -> 102 | T63: =_xlfn.TEXTJOIN(";",1,AP63:AW63) -> 5 | U63: 1140 | V63: 5 | X63: 3 | Y63: =ROUND(异常状态效果值!H10*(1-AK63-AM63*0.1)/AI63,0) -> 67 | AE63: =CONCATENATE(CHOOSE(S63-100,"生命","攻击","防御"),"+",V63,"%") -> 攻击+5% | AF63: 水球·贰 | AH63: 201 | AI63: 3 | AJ63: 67 | AQ63: 5
A64: 12042 | B64: 13009 | C64: 225 | D64: 360 | E64: 783 | F64: 水球 | G64: 发射{0}枚水波，对敌人造成{1}%伤害。 | H64: 2 | I64: icon_s1204 | J64: S1204 | K64: 1204 | L64: 1204_timeline_TD | M64: 1 | N64: 1 | O64: 1 | P64: 3 | Q64: 3;83 | R64: 2 | S64: 102 | T64: 5 | U64: 1141 | V64: 1 | X64: 3 | Y64: =ROUND(异常状态效果值!H11*(1-AK64-AM64*0.1)/AI64,0) -> 83 | AE64: =CONCATENATE("水波数量+",V64) -> 水波数量+1 | AF64: 水球·叁 | AH64: 249 | AI64: 3 | AJ64: 83 | AQ64: 5
A65: 12043 | B65: 13009 | C65: 337.5 | D65: 361 | E65: 784 | F65: 水球 | G65: 发射{0}枚水波，对敌人造成{1}%伤害。 | H65: 2 | I65: icon_s1204 | J65: S1204 | K65: 1204 | L65: 1204_timeline_TD | M65: 1 | N65: 1 | O65: 1 | P65: 4 | Q65: 3;100 | R65: 2 | S65: 102 | T65: 10 | U65: 1142 | V65: 10 | X65: 3 | Y65: =ROUND(异常状态效果值!H12*(1-AK65-AM65*0.1)/AI65,0) -> 100 | AE65: =CONCATENATE(CHOOSE(S65-100,"生命","攻击","防御"),"+",V65,"%") -> 攻击+10% | AF65: 水球·肆 | AH65: 300 | AI65: 3 | AJ65: 100 | AQ65: 10
A66: 12044 | B66: 13009 | C66: 506.25 | D66: 362 | E66: 785 | F66: 水球 | G66: 发射{0}枚水波，对敌人造成{1}%伤害。 | H66: 2 | I66: icon_s1204 | J66: S1204 | K66: 1204 | L66: 1204_timeline_TD | M66: 1 | N66: 1 | O66: 1 | P66: 5 | Q66: 3;117 | R66: 2 | S66: 102 | T66: 10 | U66: 1143 | V66: 1 | X66: 3 | Y66: =ROUND(异常状态效果值!H13*(1-AK66-AM66*0.1)/AI66,0) -> 117 | AE66: =CONCATENATE("水波数量+",V66) -> 水波数量+1 | AF66: 水球·伍 | AH66: 351 | AI66: 3 | AJ66: 117 | AQ66: 10
A67: 12045 | B67: 13009 | C67: 759.375 | D67: 363 | E67: 786 | F67: 水球 | G67: 发射{0}枚水波，对敌人造成{1}%伤害。 | H67: 2 | I67: =CONCATENATE("icon_s",K67) -> icon_s1204 | J67: S1204 | K67: 1204 | L67: 1204_timeline_TD | M67: 1 | N67: 1 | O67: 1 | P67: 6 | Q67: 3;133 | R67: 2 | S67: 102 | T67: 15 | U67: 1144 | V67: 15 | X67: 3 | Y67: =ROUND(异常状态效果值!H14*(1-AK67-AM67*0.1)/AI67,0) -> 133 | AE67: =CONCATENATE(CHOOSE(S67-100,"生命","攻击","防御"),"+",V67,"%") -> 攻击+15% | AF67: 水球·陆 | AH67: 399 | AI67: 3 | AJ67: 133 | AQ67: 15
I68: icon_s | N68: 1
A69: =K69*10+P69-1 -> 12050 | B69: =B62+1 -> 13010 | C69: 100 | D69: 364 | E69: 787 | F69: 冰刀 | G69: 发射{0}枚冰刀，对敌人造成{1}%伤害。 | H69: 2 | I69: icon_s1205 | J69: =CONCATENATE("S",K69) -> S1205 | K69: 1205 | L69: 1205_timeline_TD | M69: 1 | N69: 1 | O69: 1 | P69: 1 | Q69: =_xlfn.TEXTJOIN(";",1,X69:AD69) -> 4;38 | R69: 2 | S69: =_xlfn.TEXTJOIN(";",1,IF(AP69="","",101),IF(AQ69="","",102),IF(AR69="","",103),IF(AS69="","",106),IF(AT69="","",107),IF(AU69="","",108),IF(AV69="","",109),IF(AW69="","",110)) ->  | T69: =_xlfn.TEXTJOIN(";",1,AP69:AW69) ->  | U69: -1 | X69: 4 | Y69: =ROUND(异常状态效果值!H9*(1-AK69-AM69*0.1)/AI69,0) -> 38 | AF69: 冰刀·壹 | AH69: =IF(A69="","",AI69*AJ69/(1-AK69-AL69)) -> 152 | AI69: =X69 -> 4 | AJ69: =Y69 -> 38
A70: =K70*10+P70-1 -> 12051 | B70: =B63+1 -> 13010 | C70: 150 | D70: 365 | E70: 788 | F70: 冰刀 | G70: 发射{0}枚冰刀，对敌人造成{1}%伤害。 | H70: 2 | I70: icon_s1205 | J70: =CONCATENATE("S",K70) -> S1205 | K70: 1205 | L70: 1205_timeline_TD | M70: 1 | N70: 1 | O70: 1 | P70: 2 | Q70: =_xlfn.TEXTJOIN(";",1,X70:AD70) -> 4;50 | R70: 2 | S70: =_xlfn.TEXTJOIN(";",1,IF(AP70="","",101),IF(AQ70="","",102),IF(AR70="","",103),IF(AS70="","",106),IF(AT70="","",107),IF(AU70="","",108),IF(AV70="","",109),IF(AW70="","",110)) -> 103 | T70: =_xlfn.TEXTJOIN(";",1,AP70:AW70) -> 5 | U70: 1145 | V70: 5 | X70: 4 | Y70: =ROUND(异常状态效果值!H10*(1-AK70-AM70*0.1)/AI70,0) -> 50 | AE70: =CONCATENATE(CHOOSE(S70-100,"生命","攻击","防御"),"+",V70,"%") -> 防御+5% | AF70: 冰刀·贰 | AH70: 200 | AI70: 4 | AJ70: 50 | AR70: 5
A71: 12052 | B71: 13010 | C71: 225 | D71: 366 | E71: 789 | F71: 冰刀 | G71: 发射{0}枚冰刀，对敌人造成{1}%伤害。 | H71: 2 | I71: icon_s1205 | J71: S1205 | K71: 1205 | L71: 1205_timeline_TD | M71: 1 | N71: 1 | O71: 1 | P71: 3 | Q71: 4;63 | R71: 2 | S71: 103 | T71: 5 | U71: 1146 | V71: 2 | X71: 4 | Y71: =ROUND(异常状态效果值!H11*(1-AK71-AM71*0.1)/AI71,0) -> 63 | AE71: =CONCATENATE("冰刀数量+",V71) -> 冰刀数量+2 | AF71: 冰刀·叁 | AH71: 252 | AI71: 4 | AJ71: 63 | AR71: 5
A72: 12053 | B72: 13010 | C72: 337.5 | D72: 367 | E72: 790 | F72: 冰刀 | G72: 发射{0}枚冰刀，对敌人造成{1}%伤害。 | H72: 2 | I72: icon_s1205 | J72: S1205 | K72: 1205 | L72: 1205_timeline_TD | M72: 1 | N72: 1 | O72: 1 | P72: 4 | Q72: 4;75 | R72: 2 | S72: 103 | T72: 10 | U72: 1147 | V72: 5 | X72: 4 | Y72: =ROUND(异常状态效果值!H12*(1-AK72-AM72*0.1)/AI72,0) -> 75 | AE72: =CONCATENATE(CHOOSE(S72-100,"生命","攻击","防御"),"+",V72,"%") -> 防御+5% | AF72: 冰刀·肆 | AH72: 300 | AI72: 4 | AJ72: 75 | AR72: 10
A73: 12054 | B73: 13010 | C73: 506.25 | D73: 368 | E73: 791 | F73: 冰刀 | G73: 发射{0}枚冰刀，对敌人造成{1}%伤害。 | H73: 2 | I73: icon_s1205 | J73: S1205 | K73: 1205 | L73: 1205_timeline_TD | M73: 1 | N73: 1 | O73: 1 | P73: 5 | Q73: 4;88 | R73: 2 | S73: 103 | T73: 10 | U73: 1148 | V73: 2 | X73: 4 | Y73: =ROUND(异常状态效果值!H13*(1-AK73-AM73*0.1)/AI73,0) -> 88 | AE73: =CONCATENATE("冰刀数量+",V73) -> 冰刀数量+2 | AF73: 冰刀·伍 | AH73: 352 | AI73: 4 | AJ73: 88 | AR73: 10
A74: 12055 | B74: 13010 | C74: 759.375 | D74: 369 | E74: 792 | F74: 冰刀 | G74: 发射{0}枚冰刀，对敌人造成{1}%伤害。 | H74: 2 | I74: icon_s1205 | J74: S1205 | K74: 1205 | L74: 1205_timeline_TD | M74: 1 | N74: 1 | O74: 1 | P74: 6 | Q74: 4;100 | R74: 2 | S74: 103 | T74: 15 | U74: 1149 | V74: 5 | X74: 4 | Y74: =ROUND(异常状态效果值!H14*(1-AK74-AM74*0.1)/AI74,0) -> 100 | AE74: =CONCATENATE(CHOOSE(S74-100,"生命","攻击","防御"),"+",V74,"%") -> 防御+5% | AF74: 冰刀·陆 | AH74: 400 | AI74: 4 | AJ74: 100 | AR74: 15
I75: icon_s | N75: 1 | AH75: =IF(A75="","",AI75*AJ75/(1-AK75-AL75)) -> 
A76: =K76*10+P76-1 -> 13010 | B76: =B69+1 -> 13011 | C76: 100 | D76: 370 | E76: 793 | F76: 瘴影千丝术 | G76: 发出{0}条细细的毒针，每颗针对敌人照成{1}%金系伤害，每颗针有{2}%概率施加1层毒 | H76: 4 | I76: icon_s1301 | J76: =CONCATENATE("S",K76) -> S1301 | K76: 1301 | L76: 1301_timeline_TD | M76: 1 | N76: 1 | O76: 1 | P76: 1 | Q76: =_xlfn.TEXTJOIN(";",1,X76:AD76) -> 4;35;100 | R76: 2 | S76: =_xlfn.TEXTJOIN(";",1,IF(AP76="","",101),IF(AQ76="","",102),IF(AR76="","",103),IF(AS76="","",106),IF(AT76="","",107),IF(AU76="","",108),IF(AV76="","",109),IF(AW76="","",110)) ->  | T76: =_xlfn.TEXTJOIN(";",1,AP76:AW76) ->  | U76: -1 | X76: 4 | Y76: =ROUND(异常状态效果值!G9*(1-AK76-AM76*0.1)/AI76,0) -> 35 | Z76: 100 | AF76: 瘴影千丝术·壹 | AH76: 152.173913 | AI76: =X76 -> 4 | AJ76: =Y76 -> 35 | AK76: =AI76*异常状态效果值!B3/100 -> 0.08
A77: =K77*10+P77-1 -> 13011 | B77: =B70+1 -> 13011 | C77: 150 | D77: 371 | E77: 794 | F77: 瘴影千丝术 | G77: 发出{0}条细细的毒针，每颗针对敌人照成{1}%金系伤害，每颗针有{2}%概率施加1层毒 | H77: 4 | I77: icon_s1301 | J77: =CONCATENATE("S",K77) -> S1301 | K77: 1301 | L77: 1301_timeline_TD | M77: 1 | N77: 1 | O77: 1 | P77: 2 | Q77: =_xlfn.TEXTJOIN(";",1,X77:AD77) -> 4;46;100 | R77: 2 | S77: =_xlfn.TEXTJOIN(";",1,IF(AP77="","",101),IF(AQ77="","",102),IF(AR77="","",103),IF(AS77="","",106),IF(AT77="","",107),IF(AU77="","",108),IF(AV77="","",109),IF(AW77="","",110)) ->  | T77: =_xlfn.TEXTJOIN(";",1,AP77:AW77) ->  | U77: 1150 | V77: 1 | X77: 4 | Y77: =ROUND(异常状态效果值!G10*(1-AK77-AM77*0.1)/AI77,0) -> 46 | Z77: 100 | AE77: =CONCATENATE("毒针数量+",V77) -> 毒针数量+1 | AF77: 瘴影千丝术·贰 | AH77: 200 | AI77: 4 | AJ77: 46 | AK77: =AI77*异常状态效果值!B3/100 -> 0.08
A78: 13012 | B78: 13011 | C78: 225 | D78: 372 | E78: 795 | F78: 瘴影千丝术 | G78: 发出{0}条细细的毒针，每颗针对敌人照成{1}%金系伤害，每颗针有{2}%概率施加1层毒 | H78: 4 | I78: icon_s1301 | J78: S1301 | K78: 1301 | L78: 1301_timeline_TD | M78: 1 | N78: 1 | O78: 1 | P78: 3 | Q78: 4;60;100 | R78: 2 | S78: 101 | T78: 10 | U78: 1151 | V78: 10 | X78: 4 | Y78: =ROUND(异常状态效果值!G11*(1-AK78-AM78*0.1)/AI78,0) -> 60 | Z78: 100 | AE78: =CONCATENATE(CHOOSE(S78-100,"生命","攻击","防御"),"+",V78,"%") -> 生命+10% | AF78: =IF(F78="","",CONCATENATE(F78,"·",CHOOSE(P78,"壹","贰","叁","肆","伍","陆"))) -> 瘴影千丝术·叁 | AH78: 260.8695652 | AI78: 4 | AJ78: 60 | AK78: =AI78*异常状态效果值!B3/100 -> 0.08 | AP78: 10
A79: 13013 | B79: 13011 | C79: 337.5 | D79: 373 | E79: 796 | F79: 瘴影千丝术 | G79: 发出{0}条细细的毒针，每颗针对敌人照成{1}%金系伤害，每颗针有{2}%概率施加1层毒 | H79: 4 | I79: icon_s1301 | J79: S1301 | K79: 1301 | L79: 1301_timeline_TD | M79: 1 | N79: 1 | O79: 1 | P79: 4 | Q79: 4;78;100 | R79: 2 | S79: 101 | T79: 10 | U79: 1152 | V79: 1 | X79: 4 | Y79: =ROUND(异常状态效果值!G12*(1-AK79-AM79*0.1)/AI79,0) -> 78 | Z79: 100 | AE79: =CONCATENATE("毒针数量+",V79) -> 毒针数量+1 | AF79: 瘴影千丝术·肆 | AH79: 339.1304348 | AI79: 4 | AJ79: 78 | AK79: =AI79*异常状态效果值!B3/100 -> 0.08 | AP79: 10
A80: 13014 | B80: 13011 | C80: 506.25 | D80: 374 | E80: 797 | F80: 瘴影千丝术 | G80: 发出{0}条细细的毒针，每颗针对敌人照成{1}%金系伤害，每颗针有{2}%概率施加1层毒 | H80: 4 | I80: icon_s1301 | J80: S1301 | K80: 1301 | L80: 1301_timeline_TD | M80: 1 | N80: 1 | O80: 1 | P80: 5 | Q80: 4;94;100 | R80: 2 | S80: 101 | T80: 20 | U80: 1153 | V80: 10 | X80: 4 | Y80: =ROUND(异常状态效果值!G13*(1-AK80-AM80*0.1)/AI80,0) -> 94 | Z80: 100 | AE80: =CONCATENATE(CHOOSE(S80-100,"生命","攻击","防御"),"+",V80,"%") -> 生命+10% | AF80: 瘴影千丝术·伍 | AH80: 408.6956522 | AI80: 4 | AJ80: 94 | AK80: =AI80*异常状态效果值!B3/100 -> 0.08 | AP80: 20
A81: 13015 | B81: 13011 | C81: 759.375 | D81: 375 | E81: 798 | F81: 瘴影千丝术 | G81: 发出{0}条细细的毒针，每颗针对敌人照成{1}%金系伤害，每颗针有{2}%概率施加1层毒 | H81: 4 | I81: icon_s1301 | J81: S1301 | K81: 1301 | L81: 1301_timeline_TD | M81: 1 | N81: 1 | O81: 1 | P81: 6 | Q81: 5;94;100 | R81: 2 | S81: 101 | T81: 20 | U81: 1154 | V81: 1 | X81: 5 | Y81: =ROUND(异常状态效果值!G14*(1-AK81-AM81*0.1)/AI81,0) -> 94 | Z81: 100 | AE81: =CONCATENATE("毒针数量+",V81) -> 毒针数量+1 | AF81: 瘴影千丝术·陆 | AH81: 522.2222222 | AI81: 5 | AJ81: 94 | AK81: =AI81*异常状态效果值!B3/100 -> 0.1 | AP81: 20
I82: icon_s | N82: 1
A83: =K83*10+P83-1 -> 13020 | B83: =B76+1 -> 13012 | C83: 100 | D83: 376 | E83: 799 | F83: 蚀骨腐血掌 | G83: 快手释放{0}掌，对敌人造成{1}%伤害，并有{2}%几率对敌人施加1层毒，如果敌人毒超过{3}层，则每层毒对敌人的伤害提升{4}%，并有{5}%几率施加一层噬魂。 | H83: 4 | I83: icon_s1302 | J83: =CONCATENATE("S",K83) -> S1302 | K83: 1302 | L83: 1302_timeline_TD | M83: 1 | N83: 1 | O83: 1 | P83: 1 | Q83: =_xlfn.TEXTJOIN(";",1,X83:AD83) -> 3;47;30;5;6;100 | R83: 2 | S83: =_xlfn.TEXTJOIN(";",1,IF(AP83="","",101),IF(AQ83="","",102),IF(AR83="","",103),IF(AS83="","",106),IF(AT83="","",107),IF(AU83="","",108),IF(AV83="","",109),IF(AW83="","",110)) ->  | T83: =_xlfn.TEXTJOIN(";",1,AP83:AW83) ->  | U83: -1 | X83: 3 | Y83: =ROUND(异常状态效果值!G9*(1-AK83-AM83*0.1)/AI83,0) -> 47 | Z83: 30 | AA83: 5 | AB83: 6 | AC83: 100 | AF83: 蚀骨腐血掌·壹 | AH83: =IF(A83="","",AI83*AJ83/(1-AK83-AL83)) -> 150 | AI83: =X83 -> 3 | AJ83: =Y83 -> 47 | AK83: =AI83*异常状态效果值!B3/100 -> 0.06
A84: =K84*10+P84-1 -> 13021 | B84: =B77+1 -> 13012 | C84: 150 | D84: 377 | E84: 800 | F84: 蚀骨腐血掌 | G84: 快手释放{0}掌，对敌人造成{1}%伤害，并有{2}%几率对敌人施加1层毒，如果敌人毒超过{3}层，则每层毒对敌人的伤害提升{4}%，并有{5}%几率施加一层噬魂。 | H84: 4 | I84: icon_s1302 | J84: =CONCATENATE("S",K84) -> S1302 | K84: 1302 | L84: 1302_timeline_TD | M84: 1 | N84: 1 | O84: 1 | P84: 2 | Q84: =_xlfn.TEXTJOIN(";",1,X84:AD84) -> 3;63;30;5;6;100 | R84: 2 | S84: =_xlfn.TEXTJOIN(";",1,IF(AP84="","",101),IF(AQ84="","",102),IF(AR84="","",103),IF(AS84="","",106),IF(AT84="","",107),IF(AU84="","",108),IF(AV84="","",109),IF(AW84="","",110)) ->  | T84: =_xlfn.TEXTJOIN(";",1,AP84:AW84) ->  | U84: 1155 | V84: 1 | X84: 3 | Y84: =ROUND(异常状态效果值!G10*(1-AK84-AM84*0.1)/AI84,0) -> 63 | Z84: 30 | AA84: 5 | AB84: 6 | AC84: 100 | AE84: =CONCATENATE("手掌数量+",V84) -> 手掌数量+1 | AF84: 蚀骨腐血掌·贰 | AH84: 201.0638298 | AI84: 3 | AJ84: 63 | AK84: =AI84*异常状态效果值!B3/100 -> 0.06
A85: 13022 | B85: 13012 | C85: 225 | D85: 378 | E85: 801 | F85: 蚀骨腐血掌 | G85: 快手释放{0}掌，对敌人造成{1}%伤害，并有{2}%几率对敌人施加1层毒，如果敌人毒超过{3}层，则每层毒对敌人的伤害提升{4}%，并有{5}%几率施加一层噬魂。 | H85: 4 | I85: icon_s1302 | J85: S1302 | K85: 1302 | L85: 1302_timeline_TD | M85: 1 | N85: 1 | O85: 1 | P85: 3 | Q85: 3;81;30;5;6;100 | R85: 2 | S85: 103 | T85: 10 | U85: 1156 | V85: 10 | X85: 3 | Y85: =ROUND(异常状态效果值!G11*(1-AK85-AM85*0.1)/AI85,0) -> 81 | Z85: 30 | AA85: 5 | AB85: 6 | AC85: 100 | AE85: =CONCATENATE(CHOOSE(S85-100,"生命","攻击","防御"),"+",V85,"%") -> 防御+10% | AF85: 蚀骨腐血掌·叁 | AH85: 258.5106383 | AI85: 3 | AJ85: 81 | AK85: =AI85*异常状态效果值!B3/100 -> 0.06 | AR85: 10
A86: 13023 | B86: 13012 | C86: 337.5 | D86: 379 | E86: 802 | F86: 蚀骨腐血掌 | G86: 快手释放{0}掌，对敌人造成{1}%伤害，并有{2}%几率对敌人施加1层毒，如果敌人毒超过{3}层，则每层毒对敌人的伤害提升{4}%，并有{5}%几率施加一层噬魂。 | H86: 4 | I86: icon_s1302 | J86: S1302 | K86: 1302 | L86: 1302_timeline_TD | M86: 1 | N86: 1 | O86: 1 | P86: 4 | Q86: 3;107;30;5;6;100 | R86: 2 | S86: 103 | T86: 10 | U86: 1157 | V86: 1 | X86: 3 | Y86: =ROUND(异常状态效果值!G12*(1-AK86-AM86*0.1)/AI86,0) -> 107 | Z86: 30 | AA86: 5 | AB86: 6 | AC86: 100 | AE86: =CONCATENATE("手掌数量+",V86) -> 手掌数量+1 | AF86: 蚀骨腐血掌·肆 | AH86: 341.4893617 | AI86: 3 | AJ86: 107 | AK86: =AI86*异常状态效果值!B3/100 -> 0.06 | AR86: 10
A87: 13024 | B87: 13012 | C87: 506.25 | D87: 380 | E87: 803 | F87: 蚀骨腐血掌 | G87: 快手释放{0}掌，对敌人造成{1}%伤害，并有{2}%几率对敌人施加1层毒，如果敌人毒超过{3}层，则每层毒对敌人的伤害提升{4}%，并有{5}%几率施加一层噬魂。 | H87: 4 | I87: icon_s1302 | J87: S1302 | K87: 1302 | L87: 1302_timeline_TD | M87: 1 | N87: 1 | O87: 1 | P87: 5 | Q87: 3;128;30;5;6;100 | R87: 2 | S87: 103 | T87: 20 | U87: 1158 | V87: 10 | X87: 3 | Y87: =ROUND(异常状态效果值!G13*(1-AK87-AM87*0.1)/AI87,0) -> 128 | Z87: 30 | AA87: 5 | AB87: 6 | AC87: 100 | AE87: =CONCATENATE(CHOOSE(S87-100,"生命","攻击","防御"),"+",V87,"%") -> 防御+10% | AF87: 蚀骨腐血掌·伍 | AH87: 408.5106383 | AI87: 3 | AJ87: 128 | AK87: =AI87*异常状态效果值!B3/100 -> 0.06 | AR87: 20
A88: 13025 | B88: 13012 | C88: 759.375 | D88: 381 | E88: 804 | F88: 蚀骨腐血掌 | G88: 快手释放{0}掌，对敌人造成{1}%伤害，并有{2}%几率对敌人施加1层毒，如果敌人毒超过{3}层，则每层毒对敌人的伤害提升{4}%，并有{5}%几率施加一层噬魂。 | H88: 4 | I88: icon_s1302 | J88: S1302 | K88: 1302 | L88: 1302_timeline_TD | M88: 1 | N88: 1 | O88: 1 | P88: 6 | Q88: 4;120;30;5;6;100 | R88: 2 | S88: 103 | T88: 20 | U88: 1159 | V88: 1 | X88: 4 | Y88: =ROUND(异常状态效果值!G14*(1-AK88-AM88*0.1)/AI88,0) -> 120 | Z88: 30 | AA88: 5 | AB88: 6 | AC88: 100 | AE88: =CONCATENATE("手掌数量+",V88) -> 手掌数量+1 | AF88: 蚀骨腐血掌·陆 | AH88: 521.7391304 | AI88: 4 | AJ88: 120 | AK88: =AI88*异常状态效果值!B3/100 -> 0.08 | AR88: 20
I89: icon_s | N89: 1
B90: =B83+1 -> 13013 | C90: 100 | D90: 382 | E90: 805 | G90: 占位 | H90: 4 | I90: icon_s1303 | J90: =CONCATENATE("S",K90) -> S1303 | K90: 1303 | L90: duzhen_timeline_TD | M90: 1 | N90: 1 | O90: 1 | P90: 1 | Q90: =_xlfn.TEXTJOIN(";",1,X90:AD90) -> 3;90;45;5;6;100 | R90: 2 | S90: =_xlfn.TEXTJOIN(";",1,IF(AP90="","",101),IF(AQ90="","",102),IF(AR90="","",103),IF(AS90="","",106),IF(AT90="","",107),IF(AU90="","",108),IF(AV90="","",109),IF(AW90="","",110)) ->  | T90: =_xlfn.TEXTJOIN(";",1,AP90:AW90) ->  | U90: -1 | X90: 3 | Y90: 90 | Z90: 45 | AA90: 5 | AB90: 6 | AC90: 100 | AF90: =IF(F90="","",CONCATENATE(F90,"·",CHOOSE(P90,"壹","贰","叁","肆","伍","陆"))) ->  | AI90: =X90 -> 3 | AJ90: =Y90 -> 90
B91: =B84+1 -> 13013 | C91: 150 | D91: 383 | E91: 806 | G91: 占位 | H91: 4 | I91: icon_s1303 | J91: =CONCATENATE("S",K91) -> S1303 | K91: 1303 | L91: duzhen_timeline_TD | M91: 1 | N91: 1 | O91: 1 | P91: 2 | Q91: =_xlfn.TEXTJOIN(";",1,X91:AD91) -> 4;90;45;5;6;100 | R91: 2 | S91: =_xlfn.TEXTJOIN(";",1,IF(AP91="","",101),IF(AQ91="","",102),IF(AR91="","",103),IF(AS91="","",106),IF(AT91="","",107),IF(AU91="","",108),IF(AV91="","",109),IF(AW91="","",110)) ->  | T91: =_xlfn.TEXTJOIN(";",1,AP91:AW91) ->  | U91: 1160 | V91: 1 | X91: 4 | Y91: 90 | Z91: 45 | AA91: 5 | AB91: 6 | AC91: 100 | AE91: =CONCATENATE("手掌数量+",V91) -> 手掌数量+1 | AI91: 4 | AJ91: 90
B92: 13013 | C92: 225 | D92: 384 | E92: 807 | G92: 占位 | H92: 4 | I92: icon_s1303 | J92: S1303 | K92: 1303 | L92: duzhen_timeline_TD | M92: 1 | N92: 1 | O92: 1 | P92: 3 | Q92: 4;90;45;5;6;100 | R92: 2 | S92: 102 | T92: 10 | U92: 1161 | V92: 10 | X92: 4 | Y92: 90 | Z92: 45 | AA92: 5 | AB92: 6 | AC92: 100 | AE92: =CONCATENATE(CHOOSE(S92-100,"生命","攻击","防御"),"+",V92,"%") -> 攻击+10% | AI92: 4 | AJ92: 90 | AQ92: 10
B93: 13013 | C93: 337.5 | D93: 385 | E93: 808 | G93: 占位 | H93: 4 | I93: icon_s1303 | J93: S1303 | K93: 1303 | L93: duzhen_timeline_TD | M93: 1 | N93: 1 | O93: 1 | P93: 4 | Q93: 5;90;45;5;6;100 | R93: 2 | S93: 102 | T93: 10 | U93: 1162 | V93: 2 | X93: 5 | Y93: 90 | Z93: 45 | AA93: 5 | AB93: 6 | AC93: 100 | AE93: =CONCATENATE("手掌数量+",V93) -> 手掌数量+2 | AI93: 5 | AJ93: 90 | AQ93: 10
B94: 13013 | C94: 506.25 | D94: 386 | E94: 809 | G94: 占位 | H94: 4 | I94: icon_s1303 | J94: S1303 | K94: 1303 | L94: duzhen_timeline_TD | M94: 1 | N94: 1 | O94: 1 | P94: 5 | Q94: 5;90;45;5;6;100 | R94: 2 | S94: 102 | T94: 20 | U94: 1163 | V94: 10 | X94: 5 | Y94: 90 | Z94: 45 | AA94: 5 | AB94: 6 | AC94: 100 | AE94: =CONCATENATE(CHOOSE(S94-100,"生命","攻击","防御"),"+",V94,"%") -> 攻击+10% | AI94: 5 | AJ94: 90 | AQ94: 20
B95: 13013 | C95: 759.375 | D95: 387 | E95: 810 | G95: 占位 | H95: 4 | I95: icon_s1303 | J95: S1303 | K95: 1303 | L95: duzhen_timeline_TD | M95: 1 | N95: 1 | O95: 1 | P95: 6 | Q95: 6;90;45;5;6;100 | R95: 2 | S95: 102 | T95: 20 | U95: 1164 | V95: 3 | X95: 6 | Y95: 90 | Z95: 45 | AA95: 5 | AB95: 6 | AC95: 100 | AE95: =CONCATENATE("手掌数量+",V95) -> 手掌数量+3 | AI95: 6 | AJ95: 90 | AQ95: 20
I96: icon_s | N96: 1
A97: =K97*10+P97-1 -> 13040 | B97: =B90+1 -> 13014 | C97: 100 | D97: 382 | E97: 805 | F97: 竹刺 | G97: 发射{0}枚竹刺，对敌人造成{1}%伤害。 | H97: 4 | I97: icon_s1304 | J97: =CONCATENATE("S",K97) -> S1304 | K97: 1304 | L97: 1304_timeline_TD | M97: 1 | N97: 1 | O97: 1 | P97: 1 | Q97: =_xlfn.TEXTJOIN(";",1,X97:AD97) -> 5;30 | R97: 2 | S97: =_xlfn.TEXTJOIN(";",1,IF(AP97="","",101),IF(AQ97="","",102),IF(AR97="","",103),IF(AS97="","",106),IF(AT97="","",107),IF(AU97="","",108),IF(AV97="","",109),IF(AW97="","",110)) ->  | T97: =_xlfn.TEXTJOIN(";",1,AP97:AW97) ->  | U97: -1 | X97: 5 | Y97: =ROUND(异常状态效果值!H9*(1-AK97-AM97*0.1)/AI97,0) -> 30 | AF97: 竹刺·壹 | AH97: 150 | AI97: =X97 -> 5 | AJ97: =Y97 -> 30
A98: =K98*10+P98-1 -> 13041 | B98: =B91+1 -> 13014 | C98: 150 | D98: 383 | E98: 806 | F98: 竹刺 | G98: 发射{0}枚竹刺，对敌人造成{1}%伤害。 | H98: 4 | I98: icon_s1304 | J98: =CONCATENATE("S",K98) -> S1304 | K98: 1304 | L98: 1304_timeline_TD | M98: 1 | N98: 1 | O98: 1 | P98: 2 | Q98: =_xlfn.TEXTJOIN(";",1,X98:AD98) -> 5;40 | R98: 2 | S98: =_xlfn.TEXTJOIN(";",1,IF(AP98="","",101),IF(AQ98="","",102),IF(AR98="","",103),IF(AS98="","",106),IF(AT98="","",107),IF(AU98="","",108),IF(AV98="","",109),IF(AW98="","",110)) -> 101 | T98: =_xlfn.TEXTJOIN(";",1,AP98:AW98) -> 5 | U98: 1165 | V98: 5 | X98: 5 | Y98: =ROUND(异常状态效果值!H10*(1-AK98-AM98*0.1)/AI98,0) -> 40 | AE98: =CONCATENATE(CHOOSE(S98-100,"生命","攻击","防御"),"+",V98,"%") -> 生命+5% | AF98: 竹刺·贰 | AH98: 200 | AI98: 5 | AJ98: 40 | AP98: 5
A99: 13042 | B99: 13014 | C99: 225 | D99: 384 | E99: 807 | F99: 竹刺 | G99: 发射{0}枚竹刺，对敌人造成{1}%伤害。 | H99: 4 | I99: icon_s1304 | J99: S1304 | K99: 1304 | L99: 1304_timeline_TD | M99: 1 | N99: 1 | O99: 1 | P99: 3 | Q99: 5;50 | R99: 2 | S99: 101 | T99: 5 | U99: 1166 | V99: 2 | X99: 5 | Y99: =ROUND(异常状态效果值!H11*(1-AK99-AM99*0.1)/AI99,0) -> 50 | AE99: =CONCATENATE("竹刺数量+",V99) -> 竹刺数量+2 | AF99: 竹刺·叁 | AH99: 250 | AI99: 5 | AJ99: 50 | AP99: 5
A100: 13043 | B100: 13014 | C100: 337.5 | D100: 385 | E100: 808 | F100: 竹刺 | G100: 发射{0}枚竹刺，对敌人造成{1}%伤害。 | H100: 4 | I100: icon_s1304 | J100: S1304 | K100: 1304 | L100: 1304_timeline_TD | M100: 1 | N100: 1 | O100: 1 | P100: 4 | Q100: 5;60 | R100: 2 | S100: 101 | T100: 10 | U100: 1167 | V100: 5 | X100: 5 | Y100: =ROUND(异常状态效果值!H12*(1-AK100-AM100*0.1)/AI100,0) -> 60 | AE100: =CONCATENATE(CHOOSE(S100-100,"生命","攻击","防御"),"+",V100,"%") -> 生命+5% | AF100: 竹刺·肆 | AH100: 300 | AI100: 5 | AJ100: 60 | AP100: 10
A101: 13044 | B101: 13014 | C101: 506.25 | D101: 386 | E101: 809 | F101: 竹刺 | G101: 发射{0}枚竹刺，对敌人造成{1}%伤害。 | H101: 4 | I101: icon_s1304 | J101: S1304 | K101: 1304 | L101: 1304_timeline_TD | M101: 1 | N101: 1 | O101: 1 | P101: 5 | Q101: 5;70 | R101: 2 | S101: 101 | T101: 10 | U101: 1168 | V101: 2 | X101: 5 | Y101: =ROUND(异常状态效果值!H13*(1-AK101-AM101*0.1)/AI101,0) -> 70 | AE101: =CONCATENATE("竹刺数量+",V101) -> 竹刺数量+2 | AF101: 竹刺·伍 | AH101: 350 | AI101: 5 | AJ101: 70 | AP101: 10
A102: 13045 | B102: 13014 | C102: 759.375 | D102: 387 | E102: 810 | F102: 竹刺 | G102: 发射{0}枚竹刺，对敌人造成{1}%伤害。 | H102: 4 | I102: icon_s1304 | J102: S1304 | K102: 1304 | L102: 1304_timeline_TD | M102: 1 | N102: 1 | O102: 1 | P102: 6 | Q102: 5;80 | R102: 2 | S102: 101 | T102: 15 | U102: 1169 | V102: 5 | X102: 5 | Y102: =ROUND(异常状态效果值!H14*(1-AK102-AM102*0.1)/AI102,0) -> 80 | AE102: =CONCATENATE(CHOOSE(S102-100,"生命","攻击","防御"),"+",V102,"%") -> 生命+5% | AF102: 竹刺·陆 | AH102: 400 | AI102: 5 | AJ102: 80 | AP102: 15
I103: icon_s | N103: 1
A104: =K104*10+P104-1 -> 13050 | B104: =B97+1 -> 13015 | C104: 100 | D104: 388 | E104: 811 | F104: 飞叶 | G104: 发射{0}枚飞叶，对敌人造成{1}%伤害。 | H104: 4 | I104: icon_s1305 | J104: =CONCATENATE("S",K104) -> S1305 | K104: 1305 | L104: 1305_timeline_TD | M104: 1 | N104: 1 | O104: 1 | P104: 1 | Q104: =_xlfn.TEXTJOIN(";",1,X104:AD104) -> 4;38 | R104: 2 | S104: =_xlfn.TEXTJOIN(";",1,IF(AP104="","",101),IF(AQ104="","",102),IF(AR104="","",103),IF(AS104="","",106),IF(AT104="","",107),IF(AU104="","",108),IF(AV104="","",109),IF(AW104="","",110)) ->  | T104: =_xlfn.TEXTJOIN(";",1,AP104:AW104) ->  | U104: -1 | X104: 4 | Y104: =ROUND(异常状态效果值!H9*(1-AK104-AM104*0.1)/AI104,0) -> 38 | AF104: 飞叶·壹 | AH104: =IF(A104="","",AI104*AJ104/(1-AK104-AL104)) -> 152 | AI104: =X104 -> 4 | AJ104: =Y104 -> 38
A105: =K105*10+P105-1 -> 13051 | B105: =B98+1 -> 13015 | C105: 150 | D105: 389 | E105: 812 | F105: 飞叶 | G105: 发射{0}枚飞叶，对敌人造成{1}%伤害。 | H105: 4 | I105: icon_s1305 | J105: =CONCATENATE("S",K105) -> S1305 | K105: 1305 | L105: 1305_timeline_TD | M105: 1 | N105: 1 | O105: 1 | P105: 2 | Q105: =_xlfn.TEXTJOIN(";",1,X105:AD105) -> 4;50 | R105: 2 | S105: =_xlfn.TEXTJOIN(";",1,IF(AP105="","",101),IF(AQ105="","",102),IF(AR105="","",103),IF(AS105="","",106),IF(AT105="","",107),IF(AU105="","",108),IF(AV105="","",109),IF(AW105="","",110)) -> 102 | T105: =_xlfn.TEXTJOIN(";",1,AP105:AW105) -> 5 | U105: 1170 | V105: 5 | X105: 4 | Y105: =ROUND(异常状态效果值!H10*(1-AK105-AM105*0.1)/AI105,0) -> 50 | AE105: =CONCATENATE(CHOOSE(S105-100,"生命","攻击","防御"),"+",V105,"%") -> 攻击+5% | AF105: 飞叶·贰 | AH105: 200 | AI105: 4 | AJ105: 50 | AQ105: 5
A106: 13052 | B106: 13015 | C106: 225 | D106: 390 | E106: 813 | F106: 飞叶 | G106: 发射{0}枚飞叶，对敌人造成{1}%伤害。 | H106: 4 | I106: icon_s1305 | J106: S1305 | K106: 1305 | L106: 1305_timeline_TD | M106: 1 | N106: 1 | O106: 1 | P106: 3 | Q106: 4;63 | R106: 2 | S106: 102 | T106: 5 | U106: 1171 | V106: 3 | X106: 4 | Y106: =ROUND(异常状态效果值!H11*(1-AK106-AM106*0.1)/AI106,0) -> 63 | AE106: =CONCATENATE("飞叶数量+",V106) -> 飞叶数量+3 | AF106: 飞叶·叁 | AH106: 252 | AI106: 4 | AJ106: 63 | AQ106: 5
A107: 13053 | B107: 13015 | C107: 337.5 | D107: 391 | E107: 814 | F107: 飞叶 | G107: 发射{0}枚飞叶，对敌人造成{1}%伤害。 | H107: 4 | I107: icon_s1305 | J107: S1305 | K107: 1305 | L107: 1305_timeline_TD | M107: 1 | N107: 1 | O107: 1 | P107: 4 | Q107: 4;75 | R107: 2 | S107: 102 | T107: 10 | U107: 1172 | V107: 5 | X107: 4 | Y107: =ROUND(异常状态效果值!H12*(1-AK107-AM107*0.1)/AI107,0) -> 75 | AE107: =CONCATENATE(CHOOSE(S107-100,"生命","攻击","防御"),"+",V107,"%") -> 攻击+5% | AF107: 飞叶·肆 | AH107: 300 | AI107: 4 | AJ107: 75 | AQ107: 10
A108: 13054 | B108: 13015 | C108: 506.25 | D108: 392 | E108: 815 | F108: 飞叶 | G108: 发射{0}枚飞叶，对敌人造成{1}%伤害。 | H108: 4 | I108: icon_s1305 | J108: S1305 | K108: 1305 | L108: 1305_timeline_TD | M108: 1 | N108: 1 | O108: 1 | P108: 5 | Q108: 4;88 | R108: 2 | S108: 102 | T108: 10 | U108: 1173 | V108: 3 | X108: 4 | Y108: =ROUND(异常状态效果值!H13*(1-AK108-AM108*0.1)/AI108,0) -> 88 | AE108: =CONCATENATE("飞叶数量+",V108) -> 飞叶数量+3 | AF108: 飞叶·伍 | AH108: 352 | AI108: 4 | AJ108: 88 | AQ108: 10
A109: 13055 | B109: 13015 | C109: 759.375 | D109: 393 | E109: 816 | F109: 飞叶 | G109: 发射{0}枚飞叶，对敌人造成{1}%伤害。 | H109: 4 | I109: icon_s1305 | J109: S1305 | K109: 1305 | L109: 1305_timeline_TD | M109: 1 | N109: 1 | O109: 1 | P109: 6 | Q109: 4;100 | R109: 2 | S109: 102 | T109: 15 | U109: 1174 | V109: 5 | X109: 4 | Y109: =ROUND(异常状态效果值!H14*(1-AK109-AM109*0.1)/AI109,0) -> 100 | AE109: =CONCATENATE(CHOOSE(S109-100,"生命","攻击","防御"),"+",V109,"%") -> 攻击+5% | AF109: 飞叶·陆 | AH109: 400 | AI109: 4 | AJ109: 100 | AQ109: 15
I110: icon_s | N110: 1
A111: =K111*10+P111-1 -> 14010 | B111: =B104+1 -> 13016 | C111: 100 | D111: 394 | E111: 817 | F111: 烈焰剑 | G111: 向前方发出{0}柄剑，对敌人造成{1}%火系伤害，并有{2}%的概率施加1层灼烧。 | H111: 8 | I111: icon_s1401 | J111: =CONCATENATE("S",K111) -> S1401 | K111: 1401 | L111: 1401_timeline_TD | M111: 1 | N111: 1 | O111: 1 | P111: 1 | Q111: =_xlfn.TEXTJOIN(";",1,X111:AD111) -> 4;35;100 | R111: 2 | S111: =_xlfn.TEXTJOIN(";",1,IF(AP111="","",101),IF(AQ111="","",102),IF(AR111="","",103),IF(AS111="","",106),IF(AT111="","",107),IF(AU111="","",108),IF(AV111="","",109),IF(AW111="","",110)) ->  | T111: =_xlfn.TEXTJOIN(";",1,AP111:AW111) ->  | U111: -1 | X111: 4 | Y111: =ROUND(异常状态效果值!G9*(1-AK111-AM111*0.1)/AI111,0) -> 35 | Z111: 100 | AF111: 烈焰剑·壹 | AH111: 152.173913 | AI111: =X111 -> 4 | AJ111: =Y111 -> 35 | AK111: =X111*异常状态效果值!B4/100 -> 0.08
A112: =K112*10+P112-1 -> 14011 | B112: =B105+1 -> 13016 | C112: 150 | D112: 395 | E112: 818 | F112: 烈焰剑 | G112: 向前方发出{0}柄剑，对敌人造成{1}%火系伤害，并有{2}%的概率施加1层灼烧。 | H112: 8 | I112: icon_s1401 | J112: =CONCATENATE("S",K112) -> S1401 | K112: 1401 | L112: 1401_timeline_TD | M112: 1 | N112: 1 | O112: 1 | P112: 2 | Q112: =_xlfn.TEXTJOIN(";",1,X112:AD112) -> 4;46;100 | R112: 2 | S112: =_xlfn.TEXTJOIN(";",1,IF(AP112="","",101),IF(AQ112="","",102),IF(AR112="","",103),IF(AS112="","",106),IF(AT112="","",107),IF(AU112="","",108),IF(AV112="","",109),IF(AW112="","",110)) ->  | T112: =_xlfn.TEXTJOIN(";",1,AP112:AW112) ->  | U112: 1175 | V112: 2 | X112: 4 | Y112: =ROUND(异常状态效果值!G10*(1-AK112-AM112*0.1)/AI112,0) -> 46 | Z112: 100 | AE112: =CONCATENATE("剑柄数量+",V112) -> 剑柄数量+2 | AF112: 烈焰剑·贰 | AH112: 200 | AI112: 4 | AJ112: 46 | AK112: =X112*异常状态效果值!B4/100 -> 0.08
A113: 14012 | B113: 13016 | C113: 225 | D113: 396 | E113: 819 | F113: 烈焰剑 | G113: 向前方发出{0}柄剑，对敌人造成{1}%火系伤害，并有{2}%的概率施加1层灼烧。 | H113: 8 | I113: icon_s1401 | J113: S1401 | K113: 1401 | L113: 1401_timeline_TD | M113: 1 | N113: 1 | O113: 1 | P113: 3 | Q113: 4;60;100 | R113: 2 | S113: 101 | T113: 10 | U113: 1176 | V113: 10 | X113: 4 | Y113: =ROUND(异常状态效果值!G11*(1-AK113-AM113*0.1)/AI113,0) -> 60 | Z113: 100 | AE113: =CONCATENATE(CHOOSE(S113-100,"生命","攻击","防御"),"+",V113,"%") -> 生命+10% | AF113: 烈焰剑·叁 | AH113: 260.8695652 | AI113: 4 | AJ113: 60 | AK113: =X113*异常状态效果值!B4/100 -> 0.08 | AP113: 10
A114: 14013 | B114: 13016 | C114: 337.5 | D114: 397 | E114: 820 | F114: 烈焰剑 | G114: 向前方发出{0}柄剑，对敌人造成{1}%火系伤害，并有{2}%的概率施加1层灼烧。 | H114: 8 | I114: icon_s1401 | J114: S1401 | K114: 1401 | L114: 1401_timeline_TD | M114: 1 | N114: 1 | O114: 1 | P114: 4 | Q114: 4;78;100 | R114: 2 | S114: 101 | T114: 10 | U114: 1177 | V114: 4 | X114: 4 | Y114: =ROUND(异常状态效果值!G12*(1-AK114-AM114*0.1)/AI114,0) -> 78 | Z114: 100 | AE114: =CONCATENATE("剑柄数量+",V114) -> 剑柄数量+4 | AF114: 烈焰剑·肆 | AH114: 339.1304348 | AI114: 4 | AJ114: 78 | AK114: =X114*异常状态效果值!B4/100 -> 0.08 | AP114: 10
A115: 14014 | B115: 13016 | C115: 506.25 | D115: 398 | E115: 821 | F115: 烈焰剑 | G115: 向前方发出{0}柄剑，对敌人造成{1}%火系伤害，并有{2}%的概率施加1层灼烧。 | H115: 8 | I115: icon_s1401 | J115: S1401 | K115: 1401 | L115: 1401_timeline_TD | M115: 1 | N115: 1 | O115: 1 | P115: 5 | Q115: 4;94;100 | R115: 2 | S115: 101 | T115: 20 | U115: 1178 | V115: 10 | X115: 4 | Y115: =ROUND(异常状态效果值!G13*(1-AK115-AM115*0.1)/AI115,0) -> 94 | Z115: 100 | AE115: =CONCATENATE(CHOOSE(S115-100,"生命","攻击","防御"),"+",V115,"%") -> 生命+10% | AF115: 烈焰剑·伍 | AH115: 408.6956522 | AI115: 4 | AJ115: 94 | AK115: =X115*异常状态效果值!B4/100 -> 0.08 | AP115: 20
A116: 14015 | B116: 13016 | C116: 759.375 | D116: 399 | E116: 822 | F116: 烈焰剑 | G116: 向前方发出{0}柄剑，对敌人造成{1}%火系伤害，并有{2}%的概率施加1层灼烧。 每柄烈焰剑将会对敌人照成爆燃，爆燃额外受到{3}%伤害 | H116: 8 | I116: icon_s1401 | J116: S1401 | K116: 1401 | L116: 1401_timeline_TD | M116: 1 | N116: 1 | O116: 1 | P116: 6 | Q116: 4;100;100;20 | R116: 2 | S116: 101 | T116: 20 | U116: 1179 | X116: 4 | Y116: =ROUND(异常状态效果值!G14*(1-(AK116+AL116)-AM116*0.1)/AI116,0) -> 100 | Z116: 100 | AA116: 20 | AE116: 额外造成爆燃伤害 | AF116: 烈焰剑·陆 | AH116: 519.4805195 | AI116: 4 | AJ116: 100 | AK116: =X116*异常状态效果值!B4/100 -> 0.08 | AL116: 0.15 | AP116: 20
I117: icon_s | N117: 1
A118: =K118*10+P118-1 -> 14020 | B118: =B111+1 -> 13017 | C118: 100 | D118: 400 | E118: 823 | F118: 赤焰龙吟功 | G118: 飞出{0}道巨龙，对敌人造成{1}火系伤害。 | H118: 8 | I118: icon_s1402 | J118: =CONCATENATE("S",K118) -> S1402 | K118: 1402 | L118: 1402_timeline_TD | M118: 1 | N118: 1 | O118: 1 | P118: 1 | Q118: =_xlfn.TEXTJOIN(";",1,X118:AD118) -> 2;75 | R118: 2 | S118: =_xlfn.TEXTJOIN(";",1,IF(AP118="","",101),IF(AQ118="","",102),IF(AR118="","",103),IF(AS118="","",106),IF(AT118="","",107),IF(AU118="","",108),IF(AV118="","",109),IF(AW118="","",110)) ->  | T118: =_xlfn.TEXTJOIN(";",1,AP118:AW118) ->  | U118: -1 | X118: 2 | Y118: =ROUND(异常状态效果值!G9*(1-AK118-AM118*0.1)/AI118,0) -> 75 | AF118: 赤焰龙吟功·壹 | AH118: =IF(A118="","",AI118*AJ118/(1-AK118-AL118)) -> 150 | AI118: =X118 -> 2 | AJ118: =Y118 -> 75
A119: =K119*10+P119-1 -> 14021 | B119: =B112+1 -> 13017 | C119: 150 | D119: 401 | E119: 824 | F119: 赤焰龙吟功 | G119: 飞出{0}道巨龙，对敌人造成{1}火系伤害。 如果敌人处于灼烧中对其造成胆摄，眩晕敌人{2}秒。 | H119: 8 | I119: icon_s1402 | J119: =CONCATENATE("S",K119) -> S1402 | K119: 1402 | L119: 1402_timeline_TD | M119: 1 | N119: 1 | O119: 1 | P119: 2 | Q119: =_xlfn.TEXTJOIN(";",1,X119:AD119) -> 2;90;3 | R119: 2 | S119: =_xlfn.TEXTJOIN(";",1,IF(AP119="","",101),IF(AQ119="","",102),IF(AR119="","",103),IF(AS119="","",106),IF(AT119="","",107),IF(AU119="","",108),IF(AV119="","",109),IF(AW119="","",110)) ->  | T119: =_xlfn.TEXTJOIN(";",1,AP119:AW119) ->  | U119: 1180 | X119: 2 | Y119: =ROUND(异常状态效果值!G10*(1-AK119-AM119*0.1)/AI119,0) -> 90 | Z119: 3 | AE119: 眩晕处于灼烧中的敌人 | AF119: 赤焰龙吟功·贰 | AH119: 200 | AI119: 2 | AJ119: 90 | AK119: 0.1
A120: 14022 | B120: 13017 | C120: 225 | D120: 402 | E120: 825 | F120: 赤焰龙吟功 | G120: 飞出{0}道巨龙，对敌人造成{1}火系伤害。 如果敌人处于灼烧中对其造成胆摄，眩晕敌人{2}秒。 | H120: 8 | I120: icon_s1402 | J120: S1402 | K120: 1402 | L120: 1402_timeline_TD | M120: 1 | N120: 1 | O120: 1 | P120: 3 | Q120: 2;117;3 | R120: 2 | S120: 102 | T120: 10 | U120: 1181 | V120: 10 | X120: 2 | Y120: =ROUND(异常状态效果值!G11*(1-AK120-AM120*0.1)/AI120,0) -> 117 | Z120: 3 | AE120: =CONCATENATE(CHOOSE(S120-100,"生命","攻击","防御"),"+",V120,"%") -> 攻击+10% | AF120: 赤焰龙吟功·叁 | AH120: 260 | AI120: 2 | AJ120: 117 | AK120: 0.1 | AQ120: 10
A121: 14023 | B121: 13017 | C121: 337.5 | D121: 403 | E121: 826 | F121: 赤焰龙吟功 | G121: 飞出{0}道巨龙，对敌人造成{1}火系伤害并{3}%施加1层灼烧。 如果敌人处于灼烧中对其造成胆摄，眩晕敌人{2}秒。 | H121: 8 | I121: icon_s1402 | J121: S1402 | K121: 1402 | L121: 1402_timeline_TD | M121: 1 | N121: 1 | O121: 1 | P121: 4 | Q121: 2;146;3;100 | R121: 2 | S121: 102 | T121: 10 | U121: 1182 | V121: 1 | X121: 2 | Y121: =ROUND(异常状态效果值!G12*(1-AK121-AM121*0.1)/AI121,0) -> 146 | Z121: 3 | AA121: 100 | AE121: =CONCATENATE("飞龙数量+",V121,"，额外造成灼烧") -> 飞龙数量+1，额外造成灼烧 | AF121: 赤焰龙吟功·肆 | AH121: 339.5348837 | AI121: 2 | AJ121: 146 | AK121: =X121*异常状态效果值!B4/100+10/100 -> 0.14 | AQ121: 10
A122: 14024 | B122: 13017 | C122: 506.25 | D122: 404 | E122: 827 | F122: 赤焰龙吟功 | G122: 飞出{0}道巨龙，对敌人造成{1}火系伤害并{3}%施加1层灼烧。 如果敌人处于灼烧中对其造成胆摄，眩晕敌人{2}秒。 | H122: 8 | I122: icon_s1402 | J122: S1402 | K122: 1402 | L122: 1402_timeline_TD | M122: 1 | N122: 1 | O122: 1 | P122: 5 | Q122: 2;176;3;100 | R122: 2 | S122: 102 | T122: 20 | U122: 1183 | V122: 10 | X122: 2 | Y122: =ROUND(异常状态效果值!G13*(1-AK122-AM122*0.1)/AI122,0) -> 176 | Z122: 3 | AA122: 100 | AE122: =CONCATENATE(CHOOSE(S122-100,"生命","攻击","防御"),"+",V122,"%") -> 攻击+10% | AF122: 赤焰龙吟功·伍 | AH122: 409.3023256 | AI122: 2 | AJ122: 176 | AK122: =X122*异常状态效果值!B4/100+10/100 -> 0.14 | AQ122: 20
A123: 14025 | B123: 13017 | C123: 759.375 | D123: 405 | E123: 828 | F123: 赤焰龙吟功 | G123: 飞出{0}道巨龙，对敌人造成{1}火系伤害并{3}%施加1层灼烧。 如果敌人处于灼烧中对其造成胆摄，眩晕敌人{2}秒。 飞龙命中目标后引发天雷，对敌人额外造成{4}%伤害。 | H123: 8 | I123: icon_s1402 | J123: S1402 | K123: 1402 | L123: 1402_timeline_TD | M123: 1 | N123: 1 | O123: 1 | P123: 6 | Q123: 2;224;3;100;25 | R123: 2 | S123: 102 | T123: 20 | U123: 1184 | X123: 2 | Y123: =ROUND(异常状态效果值!G14*(1-AK123-AM123*0.1)/AI123,0) -> 224 | Z123: 3 | AA123: 100 | AB123: 25 | AE123: 额外引发天雷伤害 | AF123: 赤焰龙吟功·陆 | AH123: 520.9302326 | AI123: 2 | AJ123: 224 | AK123: =X123*异常状态效果值!B4/100+10/100 -> 0.14 | AQ123: 20
I124: icon_s | N124: 1
A125: =K125*10+P125-1 -> 14030 | B125: =B118+1 -> 13018 | C125: 100 | D125: 406 | E125: 829 | F125: 朱雀燎原指 | G125: 身后出现一只大手，每个手指发射{0}道烈焰，对敌人照成{1}伤害同时{2}%概率施加1层灼烧。 | H125: 8 | I125: icon_s1403 | J125: =CONCATENATE("S",K125) -> S1403 | K125: 1403 | L125: 1403_timeline_TD | M125: 1 | N125: 1 | O125: 1 | P125: 1 | Q125: =_xlfn.TEXTJOIN(";",1,X125:AD125) -> 1;27;25 | R125: 2 | S125: =_xlfn.TEXTJOIN(";",1,IF(AP125="","",101),IF(AQ125="","",102),IF(AR125="","",103),IF(AS125="","",106),IF(AT125="","",107),IF(AU125="","",108),IF(AV125="","",109),IF(AW125="","",110)) ->  | T125: =_xlfn.TEXTJOIN(";",1,AP125:AW125) ->  | U125: -1 | X125: 1 | Y125: =ROUND(异常状态效果值!G9*(1-(AK125+AL125)-AM125*0.1)/AI125,0) -> 27 | Z125: 25 | AF125: 朱雀燎原指·壹 | AH125: 150 | AI125: =X125*5 -> 5 | AJ125: =Y125 -> 27 | AK125: =AI125*异常状态效果值!B4/100 -> 0.1
A126: =K126*10+P126-1 -> 14031 | B126: =B119+1 -> 13018 | C126: 150 | D126: 407 | E126: 830 | F126: 朱雀燎原指 | G126: 身后出现一只大手，每个手指发射{0}道烈焰，对敌人照成{1}伤害同时{2}%概率施加1层灼烧。 对有灼烧的敌人额外造成{3}%最终伤害。 | H126: 8 | I126: icon_s1403 | J126: =CONCATENATE("S",K126) -> S1403 | K126: 1403 | L126: 1403_timeline_TD | M126: 1 | N126: 1 | O126: 1 | P126: 2 | Q126: =_xlfn.TEXTJOIN(";",1,X126:AD126) -> 1;36;25;30 | R126: 2 | S126: =_xlfn.TEXTJOIN(";",1,IF(AP126="","",101),IF(AQ126="","",102),IF(AR126="","",103),IF(AS126="","",106),IF(AT126="","",107),IF(AU126="","",108),IF(AV126="","",109),IF(AW126="","",110)) ->  | T126: =_xlfn.TEXTJOIN(";",1,AP126:AW126) ->  | U126: 1185 | X126: 1 | Y126: =ROUND(异常状态效果值!G10*(1-(AK126+AL126)-AM126*0.1)/AI126,0) -> 36 | Z126: 25 | AA126: 30 | AE126: 对灼烧的敌人额外增伤 | AF126: 朱雀燎原指·贰 | AH126: 200 | AI126: 5 | AJ126: 36 | AK126: =AI126*异常状态效果值!B4/100 -> 0.1
A127: 14032 | B127: 13018 | C127: 225 | D127: 408 | E127: 831 | F127: 朱雀燎原指 | G127: 身后出现一只大手，每个手指发射{0}道烈焰，对敌人照成{1}伤害同时{2}%概率施加1层灼烧。 对有灼烧的敌人额外造成{3}%最终伤害。 | H127: 8 | I127: icon_s1403 | J127: S1403 | K127: 1403 | L127: 1403_timeline_TD | M127: 1 | N127: 1 | O127: 1 | P127: 3 | Q127: 1;47;25;30 | R127: 2 | S127: 103 | T127: 10 | U127: 1186 | V127: 10 | X127: 1 | Y127: =ROUND(异常状态效果值!G11*(1-(AK127+AL127)-AM127*0.1)/AI127,0) -> 47 | Z127: 25 | AA127: 30 | AE127: =CONCATENATE(CHOOSE(S127-100,"生命","攻击","防御"),"+",V127,"%") -> 防御+10% | AF127: 朱雀燎原指·叁 | AH127: 261.1111111 | AI127: 5 | AJ127: 47 | AK127: =AI127*异常状态效果值!B4/100 -> 0.1 | AR127: 10
A128: 14033 | B128: 13018 | C128: 337.5 | D128: 409 | E128: 832 | F128: 朱雀燎原指 | G128: 身后出现一只大手，每个手指发射{0}道烈焰，对敌人照成{1}伤害同时{2}%概率施加1层灼烧。 对有灼烧的敌人额外造成{3}%最终伤害。 | H128: 8 | I128: icon_s1403 | J128: S1403 | K128: 1403 | L128: 1403_timeline_TD | M128: 1 | N128: 1 | O128: 1 | P128: 4 | Q128: 1;61;25;30 | R128: 2 | S128: 103 | T128: 10 | U128: 1187 | X128: 1 | Y128: =ROUND(异常状态效果值!G12*(1-(AK128+AL128)-AM128*0.1)/AI128,0) -> 61 | Z128: 25 | AA128: 30 | AE128: 烈焰伤害提升 | AF128: 朱雀燎原指·肆 | AH128: 338.8888889 | AI128: 5 | AJ128: 61 | AK128: =AI128*异常状态效果值!B4/100 -> 0.1 | AR128: 10
A129: 14034 | B129: 13018 | C129: 506.25 | D129: 410 | E129: 833 | F129: 朱雀燎原指 | G129: 身后出现一只大手，每个手指发射{0}道烈焰，对敌人照成{1}伤害同时{2}%概率施加1层灼烧。 对有灼烧的敌人额外造成{3}%最终伤害。 | H129: 8 | I129: icon_s1403 | J129: S1403 | K129: 1403 | L129: 1403_timeline_TD | M129: 1 | N129: 1 | O129: 1 | P129: 5 | Q129: 1;74;25;30 | R129: 2 | S129: 103 | T129: 20 | U129: 1188 | V129: 10 | X129: 1 | Y129: =ROUND(异常状态效果值!G13*(1-(AK129+AL129)-AM129*0.1)/AI129,0) -> 74 | Z129: 25 | AA129: 30 | AE129: =CONCATENATE(CHOOSE(S129-100,"生命","攻击","防御"),"+",V129,"%") -> 防御+10% | AF129: 朱雀燎原指·伍 | AH129: 411.1111111 | AI129: 5 | AJ129: 74 | AK129: =AI129*异常状态效果值!B4/100 -> 0.1 | AR129: 20
A130: 14035 | B130: 13018 | C130: 759.375 | D130: 411 | E130: 834 | F130: 朱雀燎原指 | G130: 身后出现一只大手，每个手指发射{0}道烈焰，对敌人照成{1}伤害同时{2}%概率施加1层灼烧。 对有灼烧的敌人额外造成{3}%最终伤害。 在左右各出现一只大手发射烈焰，但每道烈焰伤害降低{4}%。 | H130: 8 | I130: icon_s1403 | J130: S1403 | K130: 1403 | L130: 1403_timeline_TD | M130: 1 | N130: 1 | O130: 1 | P130: 6 | Q130: 1;94;25;40;40 | R130: 2 | S130: 103 | T130: 20 | U130: 1189 | X130: 1 | Y130: =ROUND(异常状态效果值!G14*(1-(AK130+AL130)-AM130*0.1)/AI130,0) -> 94 | Z130: 25 | AA130: 40 | AB130: 40 | AE130: 出现2只大手但单发伤害降低 | AF130: 朱雀燎原指·陆 | AH130: 522.2222222 | AI130: 5 | AJ130: 94 | AK130: =AI130*异常状态效果值!B4/100 -> 0.1 | AR130: 20
I131: =CONCATENATE("icon_s",K131) -> icon_s | N131: 1
A132: =K132*10+P132-1 -> 14040 | B132: =B125+1 -> 13019 | C132: 100 | D132: 412 | E132: 835 | F132: 火球 | G132: 发射{0}枚火球，对敌人造成{1}%伤害。又{2}概率对敌人施加1成灼烧 | H132: 8 | I132: icon_s1404 | J132: =CONCATENATE("S",K132) -> S1404 | K132: 1404 | L132: 1404_timeline_TD | M132: 1 | N132: 1 | O132: 1 | P132: 1 | Q132: =_xlfn.TEXTJOIN(";",1,X132:AD132) -> 5;27;100 | R132: 2 | S132: =_xlfn.TEXTJOIN(";",1,IF(AP132="","",101),IF(AQ132="","",102),IF(AR132="","",103),IF(AS132="","",106),IF(AT132="","",107),IF(AU132="","",108),IF(AV132="","",109),IF(AW132="","",110)) ->  | T132: =_xlfn.TEXTJOIN(";",1,AP132:AW132) ->  | U132: -1 | X132: 5 | Y132: =ROUND(异常状态效果值!H9*(1-(AK132+AL132)-AM132*0.1)/AI132,0) -> 27 | Z132: 100 | AF132: 火球·壹 | AH132: 150 | AI132: =X132 -> 5 | AJ132: =Y132 -> 27 | AK132: =AI132*异常状态效果值!B4/100 -> 0.1
A133: =K133*10+P133-1 -> 14041 | B133: =B126+1 -> 13019 | C133: 150 | D133: 413 | E133: 836 | F133: 火球 | G133: 发射{0}枚火球，对敌人造成{1}%伤害。又{2}概率对敌人施加1成灼烧 | H133: 8 | I133: icon_s1404 | J133: =CONCATENATE("S",K133) -> S1404 | K133: 1404 | L133: 1404_timeline_TD | M133: 1 | N133: 1 | O133: 1 | P133: 2 | Q133: =_xlfn.TEXTJOIN(";",1,X133:AD133) -> 5;36;100 | R133: 2 | S133: =_xlfn.TEXTJOIN(";",1,IF(AP133="","",101),IF(AQ133="","",102),IF(AR133="","",103),IF(AS133="","",106),IF(AT133="","",107),IF(AU133="","",108),IF(AV133="","",109),IF(AW133="","",110)) -> 103 | T133: =_xlfn.TEXTJOIN(";",1,AP133:AW133) -> 5 | U133: 1190 | V133: 5 | X133: 5 | Y133: =ROUND(异常状态效果值!H10*(1-(AK133+AL133)-AM133*0.1)/AI133,0) -> 36 | Z133: 100 | AE133: =CONCATENATE(CHOOSE(S133-100,"生命","攻击","防御"),"+",V133,"%") -> 防御+5% | AF133: 火球·贰 | AH133: 200 | AI133: 5 | AJ133: 36 | AK133: =AI133*异常状态效果值!B4/100 -> 0.1 | AR133: 5
A134: 14042 | B134: 13019 | C134: 225 | D134: 414 | E134: 837 | F134: 火球 | G134: 发射{0}枚火球，对敌人造成{1}%伤害。又{2}概率对敌人施加1成灼烧 | H134: 8 | I134: icon_s1404 | J134: S1404 | K134: 1404 | L134: 1404_timeline_TD | M134: 1 | N134: 1 | O134: 1 | P134: 3 | Q134: 5;45;100 | R134: 2 | S134: 103 | T134: 5 | U134: 1191 | V134: 1 | X134: 5 | Y134: =ROUND(异常状态效果值!H11*(1-(AK134+AL134)-AM134*0.1)/AI134,0) -> 45 | Z134: 100 | AE134: =CONCATENATE("火球数量+",V134) -> 火球数量+1 | AF134: 火球·叁 | AH134: 250 | AI134: 5 | AJ134: 45 | AK134: =AI134*异常状态效果值!B4/100 -> 0.1 | AR134: 5
A135: 14043 | B135: 13019 | C135: 337.5 | D135: 415 | E135: 838 | F135: 火球 | G135: 发射{0}枚火球，对敌人造成{1}%伤害。又{2}概率对敌人施加1成灼烧 | H135: 8 | I135: icon_s1404 | J135: S1404 | K135: 1404 | L135: 1404_timeline_TD | M135: 1 | N135: 1 | O135: 1 | P135: 4 | Q135: 5;54;100 | R135: 2 | S135: 103 | T135: 10 | U135: 1192 | V135: 5 | X135: 5 | Y135: =ROUND(异常状态效果值!H12*(1-(AK135+AL135)-AM135*0.1)/AI135,0) -> 54 | Z135: 100 | AE135: =CONCATENATE(CHOOSE(S135-100,"生命","攻击","防御"),"+",V135,"%") -> 防御+5% | AF135: 火球·肆 | AH135: =IF(A135="","",AI135*AJ135/(1-AK135-AL135)) -> 300 | AI135: 5 | AJ135: 54 | AK135: =AI135*异常状态效果值!B4/100 -> 0.1 | AR135: 10
A136: 14044 | B136: 13019 | C136: 506.25 | D136: 416 | E136: 839 | F136: 火球 | G136: 发射{0}枚火球，对敌人造成{1}%伤害。又{2}概率对敌人施加1成灼烧 | H136: 8 | I136: icon_s1404 | J136: S1404 | K136: 1404 | L136: 1404_timeline_TD | M136: 1 | N136: 1 | O136: 1 | P136: 5 | Q136: 6;51;100 | R136: 2 | S136: 103 | T136: 10 | U136: 1193 | V136: 2 | X136: 6 | Y136: =ROUND(异常状态效果值!H13*(1-(AK136+AL136)-AM136*0.1)/AI136,0) -> 51 | Z136: 100 | AE136: =CONCATENATE("火球数量+",V136) -> 火球数量+2 | AF136: 火球·伍 | AH136: 347.7272727 | AI136: 6 | AJ136: 51 | AK136: =AI136*异常状态效果值!B4/100 -> 0.12 | AR136: 10
A137: 14045 | B137: 13019 | C137: 759.375 | D137: 417 | E137: 840 | F137: 火球 | G137: 发射{0}枚火球，对敌人造成{1}%伤害。又{2}概率对敌人施加1成灼烧 | H137: 8 | I137: icon_s1404 | J137: S1404 | K137: 1404 | L137: 1404_timeline_TD | M137: 1 | N137: 1 | O137: 1 | P137: 6 | Q137: 6;59;100 | R137: 2 | S137: 103 | T137: 15 | U137: 1194 | V137: 5 | X137: 6 | Y137: =ROUND(异常状态效果值!H14*(1-(AK137+AL137)-AM137*0.1)/AI137,0) -> 59 | Z137: 100 | AE137: =CONCATENATE(CHOOSE(S137-100,"生命","攻击","防御"),"+",V137,"%") -> 防御+5% | AF137: 火球·陆 | AH137: 402.2727273 | AI137: 6 | AJ137: 59 | AK137: =AI137*异常状态效果值!B4/100 -> 0.12 | AR137: 15
I138: icon_s | N138: 1 | AH138: =IF(A138="","",AI138*AJ138/(1-AK138-AL138)) -> 
A139: =K139*10+P139-1 -> 14050 | B139: =B132+1 -> 13020 | C139: 100 | D139: 418 | E139: 841 | F139: 火刀 | G139: 发射{0}枚火刃，对敌人造成{1}%伤害。 | H139: 8 | I139: icon_s1405 | J139: =CONCATENATE("S",K139) -> S1405 | K139: 1405 | L139: 1405_timeline_TD | M139: 1 | N139: 1 | O139: 1 | P139: 1 | Q139: =_xlfn.TEXTJOIN(";",1,X139:AD139) -> 4;38 | R139: 2 | S139: =_xlfn.TEXTJOIN(";",1,IF(AP139="","",101),IF(AQ139="","",102),IF(AR139="","",103),IF(AS139="","",106),IF(AT139="","",107),IF(AU139="","",108),IF(AV139="","",109),IF(AW139="","",110)) ->  | T139: =_xlfn.TEXTJOIN(";",1,AP139:AW139) ->  | U139: -1 | X139: 4 | Y139: =ROUND(异常状态效果值!H9*(1-(AK139+AL139)-AM139*0.1)/AI139,0) -> 38 | AF139: 火刀·壹 | AH139: 152 | AI139: =X139 -> 4 | AJ139: =Y139 -> 38
A140: =K140*10+P140-1 -> 14051 | B140: =B133+1 -> 13020 | C140: 150 | D140: 419 | E140: 842 | F140: 火刀 | G140: 发射{0}枚火刃，对敌人造成{1}%伤害。 | H140: 8 | I140: icon_s1405 | J140: =CONCATENATE("S",K140) -> S1405 | K140: 1405 | L140: 1405_timeline_TD | M140: 1 | N140: 1 | O140: 1 | P140: 2 | Q140: =_xlfn.TEXTJOIN(";",1,X140:AD140) -> 4;50 | R140: 2 | S140: =_xlfn.TEXTJOIN(";",1,IF(AP140="","",101),IF(AQ140="","",102),IF(AR140="","",103),IF(AS140="","",106),IF(AT140="","",107),IF(AU140="","",108),IF(AV140="","",109),IF(AW140="","",110)) -> 101 | T140: =_xlfn.TEXTJOIN(";",1,AP140:AW140) -> 5 | U140: 1195 | V140: 5 | X140: 4 | Y140: =ROUND(异常状态效果值!H10*(1-(AK140+AL140)-AM140*0.1)/AI140,0) -> 50 | AE140: =CONCATENATE(CHOOSE(S140-100,"生命","攻击","防御"),"+",V140,"%") -> 生命+5% | AF140: 火刀·贰 | AH140: 200 | AI140: 4 | AJ140: 50 | AP140: 5
A141: 14052 | B141: 13020 | C141: 225 | D141: 420 | E141: 843 | F141: 火刀 | G141: 发射{0}枚火刃，对敌人造成{1}%伤害。 | H141: 8 | I141: icon_s1405 | J141: S1405 | K141: 1405 | L141: 1405_timeline_TD | M141: 1 | N141: 1 | O141: 1 | P141: 3 | Q141: 4;63 | R141: 2 | S141: 101 | T141: 5 | U141: 1196 | V141: 2 | X141: 4 | Y141: =ROUND(异常状态效果值!H11*(1-(AK141+AL141)-AM141*0.1)/AI141,0) -> 63 | AE141: =CONCATENATE("火刃数量+",V141) -> 火刃数量+2 | AF141: 火刀·叁 | AH141: 252 | AI141: 4 | AJ141: 63 | AP141: 5
A142: 14053 | B142: 13020 | C142: 337.5 | D142: 421 | E142: 844 | F142: 火刀 | G142: 发射{0}枚火刃，对敌人造成{1}%伤害。 | H142: 8 | I142: icon_s1405 | J142: S1405 | K142: 1405 | L142: 1405_timeline_TD | M142: 1 | N142: 1 | O142: 1 | P142: 4 | Q142: 4;75 | R142: 2 | S142: 101 | T142: 10 | U142: 1197 | V142: 5 | X142: 4 | Y142: =ROUND(异常状态效果值!H12*(1-(AK142+AL142)-AM142*0.1)/AI142,0) -> 75 | AE142: =CONCATENATE(CHOOSE(S142-100,"生命","攻击","防御"),"+",V142,"%") -> 生命+5% | AF142: 火刀·肆 | AH142: 300 | AI142: 4 | AJ142: 75 | AP142: 10
A143: 14054 | B143: 13020 | C143: 506.25 | D143: 422 | E143: 845 | F143: 火刀 | G143: 发射{0}枚火刃，对敌人造成{1}%伤害。 | H143: 8 | I143: icon_s1405 | J143: S1405 | K143: 1405 | L143: 1405_timeline_TD | M143: 1 | N143: 1 | O143: 1 | P143: 5 | Q143: 4;88 | R143: 2 | S143: 101 | T143: 10 | U143: 1198 | V143: 2 | X143: 4 | Y143: =ROUND(异常状态效果值!H13*(1-(AK143+AL143)-AM143*0.1)/AI143,0) -> 88 | AE143: =CONCATENATE("火刃数量+",V143) -> 火刃数量+2 | AF143: 火刀·伍 | AH143: 352 | AI143: 4 | AJ143: 88 | AP143: 10
A144: 14055 | B144: 13020 | C144: 759.375 | D144: 423 | E144: 846 | F144: 火刀 | G144: 发射{0}枚火刃，对敌人造成{1}%伤害。 | H144: 8 | I144: icon_s1405 | J144: S1405 | K144: 1405 | L144: 1405_timeline_TD | M144: 1 | N144: 1 | O144: 1 | P144: 6 | Q144: 4;100 | R144: 2 | S144: 101 | T144: 15 | U144: 1199 | V144: 5 | X144: 4 | Y144: =ROUND(异常状态效果值!H14*(1-(AK144+AL144)-AM144*0.1)/AI144,0) -> 100 | AE144: =CONCATENATE(CHOOSE(S144-100,"生命","攻击","防御"),"+",V144,"%") -> 生命+5% | AF144: 火刀·陆 | AH144: 400 | AI144: 4 | AJ144: 100 | AP144: 15
I145: icon_s | N145: 1
A146: =K146*10+P146-1 -> 15010 | B146: =B139+1 -> 13021 | C146: 100 | D146: 424 | E146: 847 | F146: 黄尘灭魂刺 | G146: 沙尘汇聚成{0}枚土刺，对敌人造成{1}%伤害，并有{2}%概率施加1层细尘。 | H146: 16 | I146: icon_s1501 | J146: =CONCATENATE("S",K146) -> S1501 | K146: 1501 | L146: 1501_timeline_TD | M146: 1 | N146: 1 | O146: 1 | P146: 1 | Q146: =_xlfn.TEXTJOIN(";",1,X146:AD146) -> 5;29;100 | R146: 2 | S146: =_xlfn.TEXTJOIN(";",1,IF(AP146="","",101),IF(AQ146="","",102),IF(AR146="","",103),IF(AS146="","",106),IF(AT146="","",107),IF(AU146="","",108),IF(AV146="","",109),IF(AW146="","",110)) ->  | T146: =_xlfn.TEXTJOIN(";",1,AP146:AW146) ->  | U146: -1 | X146: 5 | Y146: =ROUND(异常状态效果值!G9*(1-(AK146+AL146)-AM146*0.1)/AI146,0) -> 29 | Z146: 100 | AF146: 黄尘灭魂刺·壹 | AH146: 152.6315789 | AI146: =X146 -> 5 | AJ146: =Y146 -> 29 | AK146: =AI146*异常状态效果值!B5/100 -> 0.05
A147: =K147*10+P147-1 -> 15011 | B147: =B140+1 -> 13021 | C147: 150 | D147: 425 | E147: 848 | F147: 黄尘灭魂刺 | G147: 沙尘汇聚成{0}枚土刺，对敌人造成{1}%伤害，并有{2}%概率施加1层细尘。 | H147: 16 | I147: icon_s1501 | J147: =CONCATENATE("S",K147) -> S1501 | K147: 1501 | L147: 1501_timeline_TD | M147: 1 | N147: 1 | O147: 1 | P147: 2 | Q147: =_xlfn.TEXTJOIN(";",1,X147:AD147) -> 5;38;100 | R147: 2 | S147: =_xlfn.TEXTJOIN(";",1,IF(AP147="","",101),IF(AQ147="","",102),IF(AR147="","",103),IF(AS147="","",106),IF(AT147="","",107),IF(AU147="","",108),IF(AV147="","",109),IF(AW147="","",110)) ->  | T147: =_xlfn.TEXTJOIN(";",1,AP147:AW147) ->  | U147: 1200 | V147: 2 | X147: 5 | Y147: =ROUND(异常状态效果值!G10*(1-(AK147+AL147)-AM147*0.1)/AI147,0) -> 38 | Z147: 100 | AE147: =CONCATENATE("土刺数量+",V147) -> 土刺数量+2 | AF147: 黄尘灭魂刺·贰 | AH147: 200 | AI147: 5 | AJ147: 38 | AK147: =AI147*异常状态效果值!B5/100 -> 0.05
A148: 15012 | B148: 13021 | C148: 225 | D148: 426 | E148: 849 | F148: 黄尘灭魂刺 | G148: 沙尘汇聚成{0}枚土刺，对敌人造成{1}%伤害，并有{2}%概率施加1层细尘。 | H148: 16 | I148: icon_s1501 | J148: S1501 | K148: 1501 | L148: 1501_timeline_TD | M148: 1 | N148: 1 | O148: 1 | P148: 3 | Q148: 5;49;100 | R148: 2 | S148: 101 | T148: 10 | U148: 1201 | V148: 10 | X148: 5 | Y148: =ROUND(异常状态效果值!G11*(1-(AK148+AL148)-AM148*0.1)/AI148,0) -> 49 | Z148: 100 | AE148: =CONCATENATE(CHOOSE(S148-100,"生命","攻击","防御"),"+",V148,"%") -> 生命+10% | AF148: =IF(F148="","",CONCATENATE(F148,"·",CHOOSE(P148,"壹","贰","叁","肆","伍","陆"))) -> 黄尘灭魂刺·叁 | AH148: 257.8947368 | AI148: 5 | AJ148: 49 | AK148: =AI148*异常状态效果值!B5/100 -> 0.05 | AP148: 10
A149: 15013 | B149: 13021 | C149: 337.5 | D149: 427 | E149: 850 | F149: 黄尘灭魂刺 | G149: 沙尘汇聚成{0}枚土刺，对敌人造成{1}%伤害，并有{2}%概率施加1层细尘。 | H149: 16 | I149: icon_s1501 | J149: S1501 | K149: 1501 | L149: 1501_timeline_TD | M149: 1 | N149: 1 | O149: 1 | P149: 4 | Q149: 5;65;100 | R149: 2 | S149: 101 | T149: 10 | U149: 1202 | V149: 2 | X149: 5 | Y149: =ROUND(异常状态效果值!G12*(1-(AK149+AL149)-AM149*0.1)/AI149,0) -> 65 | Z149: 100 | AE149: =CONCATENATE("土刺数量+",V149) -> 土刺数量+2 | AF149: 黄尘灭魂刺·肆 | AH149: 342.1052632 | AI149: 5 | AJ149: 65 | AK149: =AI149*异常状态效果值!B5/100 -> 0.05 | AP149: 10
A150: 15014 | B150: 13021 | C150: 506.25 | D150: 428 | E150: 851 | F150: 黄尘灭魂刺 | G150: 沙尘汇聚成{0}枚土刺，对敌人造成{1}%伤害，并有{2}%概率施加1层细尘。 | H150: 16 | I150: icon_s1501 | J150: S1501 | K150: 1501 | L150: 1501_timeline_TD | M150: 1 | N150: 1 | O150: 1 | P150: 5 | Q150: 5;78;100 | R150: 2 | S150: 101 | T150: 20 | U150: 1203 | V150: 10 | X150: 5 | Y150: =ROUND(异常状态效果值!G13*(1-(AK150+AL150)-AM150*0.1)/AI150,0) -> 78 | Z150: 100 | AE150: =CONCATENATE(CHOOSE(S150-100,"生命","攻击","防御"),"+",V150,"%") -> 生命+10% | AF150: 黄尘灭魂刺·伍 | AH150: 410.5263158 | AI150: 5 | AJ150: 78 | AK150: =AI150*异常状态效果值!B5/100 -> 0.05 | AP150: 20
A151: 15015 | B151: 13021 | C151: 759.375 | D151: 429 | E151: 852 | F151: 黄尘灭魂刺 | G151: 沙尘汇聚成{0}枚土刺，对敌人造成{1}%伤害，并有{2}%概率施加1层细尘。 | H151: 16 | I151: icon_s1501 | J151: S1501 | K151: 1501 | L151: 1501_timeline_TD | M151: 1 | N151: 1 | O151: 1 | P151: 6 | Q151: 5;99;100 | R151: 2 | S151: 101 | T151: 20 | U151: 1204 | V151: 2 | X151: 5 | Y151: =ROUND(异常状态效果值!G14*(1-(AK151+AL151)-AM151*0.1)/AI151,0) -> 99 | Z151: 100 | AE151: =CONCATENATE("土刺数量+",V151) -> 土刺数量+2 | AF151: 黄尘灭魂刺·陆 | AH151: 521.0526316 | AI151: 5 | AJ151: 99 | AK151: =AI151*异常状态效果值!B5/100 -> 0.05 | AP151: 20
I152: icon_s | N152: 1
A153: =K153*10+P153-1 -> 15020 | B153: =B146+1 -> 13022 | C153: 100 | D153: 430 | E153: 853 | F153: 地裂屠龙斩 | G153: 一柄虚空形成的大刀，横空挥砍形成{0}个刀气，对敌人造成{1}%伤害，并有{2}%概率叠加1层破甲 | H153: 16 | I153: icon_s1502 | J153: =CONCATENATE("S",K153) -> S1502 | K153: 1502 | L153: 1502_timeline_TD | M153: 1 | N153: 1 | O153: 1 | P153: 1 | Q153: =_xlfn.TEXTJOIN(";",1,X153:AD153) -> 3;49;30 | R153: 2 | S153: =_xlfn.TEXTJOIN(";",1,IF(AP153="","",101),IF(AQ153="","",102),IF(AR153="","",103),IF(AS153="","",106),IF(AT153="","",107),IF(AU153="","",108),IF(AV153="","",109),IF(AW153="","",110)) ->  | T153: =_xlfn.TEXTJOIN(";",1,AP153:AW153) ->  | U153: -1 | X153: 3 | Y153: =ROUND(异常状态效果值!G9*(1-(AK153+AL153)-AM153*0.1)/AI153,0) -> 49 | Z153: 30 | AF153: 地裂屠龙斩·壹 | AH153: =IF(A153="","",AI153*AJ153/(1-AK153-AL153)) -> 151.5463918 | AI153: =X153 -> 3 | AJ153: =Y153 -> 49 | AK153: =AI153*异常状态效果值!B5/100 -> 0.03
A154: =K154*10+P154-1 -> 15021 | B154: =B147+1 -> 13022 | C154: 150 | D154: 431 | E154: 854 | F154: 地裂屠龙斩 | G154: 一柄虚空形成的大刀，横空挥砍形成{0}个刀气，对敌人造成{1}%伤害，并有{2}%概率叠加1层破甲 | H154: 16 | I154: icon_s1502 | J154: =CONCATENATE("S",K154) -> S1502 | K154: 1502 | L154: 1502_timeline_TD | M154: 1 | N154: 1 | O154: 1 | P154: 2 | Q154: =_xlfn.TEXTJOIN(";",1,X154:AD154) -> 3;65;30 | R154: 2 | S154: =_xlfn.TEXTJOIN(";",1,IF(AP154="","",101),IF(AQ154="","",102),IF(AR154="","",103),IF(AS154="","",106),IF(AT154="","",107),IF(AU154="","",108),IF(AV154="","",109),IF(AW154="","",110)) ->  | T154: =_xlfn.TEXTJOIN(";",1,AP154:AW154) ->  | U154: 1205 | V154: 1 | X154: 3 | Y154: =ROUND(异常状态效果值!G10*(1-(AK154+AL154)-AM154*0.1)/AI154,0) -> 65 | Z154: 30 | AE154: =CONCATENATE("刀气数量+",V154) -> 刀气数量+1 | AF154: 地裂屠龙斩·贰 | AH154: 201.0309278 | AI154: 3 | AJ154: 65 | AK154: =AI154*异常状态效果值!B5/100 -> 0.03
A155: 15022 | B155: 13022 | C155: 225 | D155: 432 | E155: 855 | F155: 地裂屠龙斩 | G155: 一柄虚空形成的大刀，横空挥砍形成{0}个刀气，对敌人造成{1}%伤害，并有{2}%概率叠加1层破甲 | H155: 16 | I155: icon_s1502 | J155: S1502 | K155: 1502 | L155: 1502_timeline_TD | M155: 1 | N155: 1 | O155: 1 | P155: 3 | Q155: 3;84;30 | R155: 2 | S155: 102 | T155: 10 | U155: 1206 | V155: 10 | X155: 3 | Y155: =ROUND(异常状态效果值!G11*(1-(AK155+AL155)-AM155*0.1)/AI155,0) -> 84 | Z155: 30 | AE155: =CONCATENATE(CHOOSE(S155-100,"生命","攻击","防御"),"+",V155,"%") -> 攻击+10% | AF155: 地裂屠龙斩·叁 | AH155: 259.7938144 | AI155: 3 | AJ155: 84 | AK155: =AI155*异常状态效果值!B5/100 -> 0.03 | AQ155: 10
A156: 15023 | B156: 13022 | C156: 337.5 | D156: 433 | E156: 856 | F156: 地裂屠龙斩 | G156: 一柄虚空形成的大刀，横空挥砍形成{0}个刀气，对敌人造成{1}%伤害，并有{2}%概率叠加1层破甲 | H156: 16 | I156: icon_s1502 | J156: S1502 | K156: 1502 | L156: 1502_timeline_TD | M156: 1 | N156: 1 | O156: 1 | P156: 4 | Q156: 3;110;30 | R156: 2 | S156: 102 | T156: 10 | U156: 1207 | V156: 1 | X156: 3 | Y156: =ROUND(异常状态效果值!G12*(1-(AK156+AL156)-AM156*0.1)/AI156,0) -> 110 | Z156: 30 | AE156: =CONCATENATE("刀气数量+",V156) -> 刀气数量+1 | AF156: 地裂屠龙斩·肆 | AH156: 340.2061856 | AI156: 3 | AJ156: 110 | AK156: =AI156*异常状态效果值!B5/100 -> 0.03 | AQ156: 10
A157: 15024 | B157: 13022 | C157: 506.25 | D157: 434 | E157: 857 | F157: 地裂屠龙斩 | G157: 一柄虚空形成的大刀，横空挥砍形成{0}个刀气，对敌人造成{1}%伤害，并有{2}%概率叠加1层破甲 | H157: 16 | I157: icon_s1502 | J157: S1502 | K157: 1502 | L157: 1502_timeline_TD | M157: 1 | N157: 1 | O157: 1 | P157: 5 | Q157: 3;133;30 | R157: 2 | S157: 102 | T157: 20 | U157: 1208 | V157: 10 | X157: 3 | Y157: =ROUND(异常状态效果值!G13*(1-(AK157+AL157)-AM157*0.1)/AI157,0) -> 133 | Z157: 30 | AE157: =CONCATENATE(CHOOSE(S157-100,"生命","攻击","防御"),"+",V157,"%") -> 攻击+10% | AF157: 地裂屠龙斩·伍 | AH157: 411.3402062 | AI157: 3 | AJ157: 133 | AK157: =AI157*异常状态效果值!B5/100 -> 0.03 | AQ157: 20
A158: 15025 | B158: 13022 | C158: 759.375 | D158: 435 | E158: 858 | F158: 地裂屠龙斩 | G158: 一柄虚空形成的大刀，横空挥砍形成{0}个刀气，对敌人造成{1}%伤害，并有{2}%概率叠加1层破甲 | H158: 16 | I158: icon_s1502 | J158: S1502 | K158: 1502 | L158: 1502_timeline_TD | M158: 1 | N158: 1 | O158: 1 | P158: 6 | Q158: 3;168;30 | R158: 2 | S158: 102 | T158: 20 | U158: 1209 | V158: 1 | X158: 3 | Y158: =ROUND(异常状态效果值!G14*(1-(AK158+AL158)-AM158*0.1)/AI158,0) -> 168 | Z158: 30 | AE158: =CONCATENATE("刀气数量+",V158) -> 刀气数量+1 | AF158: 地裂屠龙斩·陆 | AH158: 519.5876289 | AI158: 3 | AJ158: 168 | AK158: =AI158*异常状态效果值!B5/100 -> 0.03 | AQ158: 20
I159: icon_s | N159: 1
B160: =B153+1 -> 13023 | C160: 100 | D160: 436 | E160: 859 | G160: 占位 | H160: 16 | I160: icon_s1503 | J160: =CONCATENATE("S",K160) -> S1503 | K160: 1503 | L160: bingzhui_timeline_TD | M160: 1 | N160: 1 | O160: 1 | P160: 1 | Q160: =_xlfn.TEXTJOIN(";",1,X160:AD160) -> 3;120;30 | R160: 2 | S160: =_xlfn.TEXTJOIN(";",1,IF(AP160="","",101),IF(AQ160="","",102),IF(AR160="","",103),IF(AS160="","",106),IF(AT160="","",107),IF(AU160="","",108),IF(AV160="","",109),IF(AW160="","",110)) ->  | T160: =_xlfn.TEXTJOIN(";",1,AP160:AW160) ->  | U160: -1 | X160: 3 | Y160: 120 | Z160: 30 | AF160: =IF(F160="","",CONCATENATE(F160,"·",CHOOSE(P160,"壹","贰","叁","肆","伍","陆"))) ->  | AI160: =X160 -> 3 | AJ160: =Y160 -> 120
B161: =B154+1 -> 13023 | C161: 150 | D161: 437 | E161: 860 | G161: 占位 | H161: 16 | I161: icon_s1503 | J161: =CONCATENATE("S",K161) -> S1503 | K161: 1503 | L161: bingzhui_timeline_TD | M161: 1 | N161: 1 | O161: 1 | P161: 2 | Q161: =_xlfn.TEXTJOIN(";",1,X161:AD161) -> 4;120;30 | R161: 2 | S161: =_xlfn.TEXTJOIN(";",1,IF(AP161="","",101),IF(AQ161="","",102),IF(AR161="","",103),IF(AS161="","",106),IF(AT161="","",107),IF(AU161="","",108),IF(AV161="","",109),IF(AW161="","",110)) ->  | T161: =_xlfn.TEXTJOIN(";",1,AP161:AW161) ->  | U161: 1210 | V161: 1 | X161: 4 | Y161: 120 | Z161: 30 | AE161: =CONCATENATE("刀气数量+",V161) -> 刀气数量+1 | AI161: 4 | AJ161: 120
B162: 13023 | C162: 225 | D162: 438 | E162: 861 | G162: 占位 | H162: 16 | I162: icon_s1503 | J162: S1503 | K162: 1503 | L162: bingzhui_timeline_TD | M162: 1 | N162: 1 | O162: 1 | P162: 3 | Q162: 4;120;30 | R162: 2 | S162: 103 | T162: 10 | U162: 1211 | V162: 10 | X162: 4 | Y162: 120 | Z162: 30 | AE162: =CONCATENATE(CHOOSE(S162-100,"生命","攻击","防御"),"+",V162,"%") -> 防御+10% | AI162: 4 | AJ162: 120 | AR162: 10
B163: 13023 | C163: 337.5 | D163: 439 | E163: 862 | G163: 占位 | H163: 16 | I163: icon_s1503 | J163: S1503 | K163: 1503 | L163: bingzhui_timeline_TD | M163: 1 | N163: 1 | O163: 1 | P163: 4 | Q163: 5;120;30 | R163: 2 | S163: 103 | T163: 10 | U163: 1212 | V163: 2 | X163: 5 | Y163: 120 | Z163: 30 | AE163: =CONCATENATE("刀气数量+",V163) -> 刀气数量+2 | AI163: 5 | AJ163: 120 | AR163: 10
B164: 13023 | C164: 506.25 | D164: 440 | E164: 863 | G164: 占位 | H164: 16 | I164: icon_s1503 | J164: S1503 | K164: 1503 | L164: bingzhui_timeline_TD | M164: 1 | N164: 1 | O164: 1 | P164: 5 | Q164: 5;120;30 | R164: 2 | S164: 103 | T164: 20 | U164: 1213 | V164: 10 | X164: 5 | Y164: 120 | Z164: 30 | AE164: =CONCATENATE(CHOOSE(S164-100,"生命","攻击","防御"),"+",V164,"%") -> 防御+10% | AI164: 5 | AJ164: 120 | AR164: 20
B165: 13023 | C165: 759.375 | D165: 441 | E165: 864 | G165: 占位 | H165: 16 | I165: icon_s1503 | J165: S1503 | K165: 1503 | L165: bingzhui_timeline_TD | M165: 1 | N165: 1 | O165: 1 | P165: 6 | Q165: 6;120;30 | R165: 2 | S165: 103 | T165: 20 | U165: 1214 | V165: 3 | X165: 6 | Y165: 120 | Z165: 30 | AE165: =CONCATENATE("刀气数量+",V165) -> 刀气数量+3 | AI165: 6 | AJ165: 120 | AR165: 20
I166: icon_s | N166: 1
A167: =K167*10+P167-1 -> 15040 | B167: =B160+1 -> 13024 | C167: 100 | D167: 436 | E167: 859 | F167: 落石 | G167: 从天而降{0}枚落石，对敌人造成{1}%伤害。 | H167: 16 | I167: icon_s1504 | J167: =CONCATENATE("S",K167) -> S1504 | K167: 1504 | L167: 1504_timeline_TD | M167: 1 | N167: 1 | O167: 1 | P167: 1 | Q167: =_xlfn.TEXTJOIN(";",1,X167:AD167) -> 3;50 | R167: 2 | S167: =_xlfn.TEXTJOIN(";",1,IF(AP167="","",101),IF(AQ167="","",102),IF(AR167="","",103),IF(AS167="","",106),IF(AT167="","",107),IF(AU167="","",108),IF(AV167="","",109),IF(AW167="","",110)) ->  | T167: =_xlfn.TEXTJOIN(";",1,AP167:AW167) ->  | U167: -1 | X167: 3 | Y167: =ROUND(异常状态效果值!H9*(1-(AK167+AL167)-AM167*0.1)/AI167,0) -> 50 | AF167: 落石·壹 | AH167: 150 | AI167: =X167 -> 3 | AJ167: =Y167 -> 50
A168: =K168*10+P168-1 -> 15041 | B168: =B161+1 -> 13024 | C168: 150 | D168: 437 | E168: 860 | F168: 落石 | G168: 从天而降{0}枚落石，对敌人造成{1}%伤害。 | H168: 16 | I168: icon_s1504 | J168: =CONCATENATE("S",K168) -> S1504 | K168: 1504 | L168: 1504_timeline_TD | M168: 1 | N168: 1 | O168: 1 | P168: 2 | Q168: =_xlfn.TEXTJOIN(";",1,X168:AD168) -> 3;67 | R168: 2 | S168: =_xlfn.TEXTJOIN(";",1,IF(AP168="","",101),IF(AQ168="","",102),IF(AR168="","",103),IF(AS168="","",106),IF(AT168="","",107),IF(AU168="","",108),IF(AV168="","",109),IF(AW168="","",110)) -> 102 | T168: =_xlfn.TEXTJOIN(";",1,AP168:AW168) -> 5 | U168: 1215 | V168: 5 | X168: 3 | Y168: =ROUND(异常状态效果值!H10*(1-(AK168+AL168)-AM168*0.1)/AI168,0) -> 67 | AE168: =CONCATENATE(CHOOSE(S168-100,"生命","攻击","防御"),"+",V168,"%") -> 攻击+5% | AF168: 落石·贰 | AH168: 201 | AI168: 3 | AJ168: 67 | AQ168: 5
A169: 15042 | B169: 13024 | C169: 225 | D169: 438 | E169: 861 | F169: 落石 | G169: 从天而降{0}枚落石，对敌人造成{1}%伤害。 | H169: 16 | I169: icon_s1504 | J169: S1504 | K169: 1504 | L169: 1504_timeline_TD | M169: 1 | N169: 1 | O169: 1 | P169: 3 | Q169: 3;83 | R169: 2 | S169: 102 | T169: 5 | U169: 1216 | V169: 1 | X169: 3 | Y169: =ROUND(异常状态效果值!H11*(1-(AK169+AL169)-AM169*0.1)/AI169,0) -> 83 | AE169: =CONCATENATE("落石数量+",V169) -> 落石数量+1 | AF169: 落石·叁 | AH169: 249 | AI169: 3 | AJ169: 83 | AQ169: 5
A170: 15043 | B170: 13024 | C170: 337.5 | D170: 439 | E170: 862 | F170: 落石 | G170: 从天而降{0}枚落石，对敌人造成{1}%伤害。 | H170: 16 | I170: icon_s1504 | J170: S1504 | K170: 1504 | L170: 1504_timeline_TD | M170: 1 | N170: 1 | O170: 1 | P170: 4 | Q170: 3;100 | R170: 2 | S170: 102 | T170: 10 | U170: 1217 | V170: 5 | X170: 3 | Y170: =ROUND(异常状态效果值!H12*(1-(AK170+AL170)-AM170*0.1)/AI170,0) -> 100 | AE170: =CONCATENATE(CHOOSE(S170-100,"生命","攻击","防御"),"+",V170,"%") -> 攻击+5% | AF170: 落石·肆 | AH170: 300 | AI170: 3 | AJ170: 100 | AQ170: 10
A171: 15044 | B171: 13024 | C171: 506.25 | D171: 440 | E171: 863 | F171: 落石 | G171: 从天而降{0}枚落石，对敌人造成{1}%伤害。 | H171: 16 | I171: icon_s1504 | J171: S1504 | K171: 1504 | L171: 1504_timeline_TD | M171: 1 | N171: 1 | O171: 1 | P171: 5 | Q171: 3;117 | R171: 2 | S171: 102 | T171: 10 | U171: 1218 | V171: 1 | X171: 3 | Y171: =ROUND(异常状态效果值!H13*(1-(AK171+AL171)-AM171*0.1)/AI171,0) -> 117 | AE171: =CONCATENATE("落石数量+",V171) -> 落石数量+1 | AF171: 落石·伍 | AH171: 351 | AI171: 3 | AJ171: 117 | AQ171: 10
A172: 15045 | B172: 13024 | C172: 759.375 | D172: 441 | E172: 864 | F172: 落石 | G172: 从天而降{0}枚落石，对敌人造成{1}%伤害。 | H172: 16 | I172: icon_s1504 | J172: S1504 | K172: 1504 | L172: 1504_timeline_TD | M172: 1 | N172: 1 | O172: 1 | P172: 6 | Q172: 3;133 | R172: 2 | S172: 102 | T172: 15 | U172: 1219 | V172: 5 | X172: 3 | Y172: =ROUND(异常状态效果值!H14*(1-(AK172+AL172)-AM172*0.1)/AI172,0) -> 133 | AE172: =CONCATENATE(CHOOSE(S172-100,"生命","攻击","防御"),"+",V172,"%") -> 攻击+5% | AF172: 落石·陆 | AH172: 399 | AI172: 3 | AJ172: 133 | AQ172: 15
I173: icon_s | N173: 1
A174: =K174*10+P174-1 -> 15050 | B174: =B167+1 -> 13025 | C174: 100 | D174: 442 | E174: 865 | F174: 小石头 | G174: 发射{0}枚小石头，对敌人造成{1}%伤害。 | H174: 16 | I174: icon_s1505 | J174: =CONCATENATE("S",K174) -> S1505 | K174: 1505 | L174: 1505_timeline_TD | M174: 1 | N174: 1 | O174: 1 | P174: 1 | Q174: =_xlfn.TEXTJOIN(";",1,X174:AD174) -> 4;38 | R174: 2 | S174: =_xlfn.TEXTJOIN(";",1,IF(AP174="","",101),IF(AQ174="","",102),IF(AR174="","",103),IF(AS174="","",106),IF(AT174="","",107),IF(AU174="","",108),IF(AV174="","",109),IF(AW174="","",110)) ->  | T174: =_xlfn.TEXTJOIN(";",1,AP174:AW174) ->  | U174: -1 | X174: 4 | Y174: =ROUND(异常状态效果值!H9*(1-(AK174+AL174)-AM174*0.1)/AI174,0) -> 38 | AF174: 小石头·壹 | AH174: =IF(A174="","",AI174*AJ174/(1-AK174-AL174)) -> 152 | AI174: =X174 -> 4 | AJ174: =Y174 -> 38
A175: =K175*10+P175-1 -> 15051 | B175: =B168+1 -> 13025 | C175: 150 | D175: 443 | E175: 866 | F175: 小石头 | G175: 发射{0}枚小石头，对敌人造成{1}%伤害。 | H175: 16 | I175: icon_s1505 | J175: =CONCATENATE("S",K175) -> S1505 | K175: 1505 | L175: 1505_timeline_TD | M175: 1 | N175: 1 | O175: 1 | P175: 2 | Q175: =_xlfn.TEXTJOIN(";",1,X175:AD175) -> 4;50 | R175: 2 | S175: =_xlfn.TEXTJOIN(";",1,IF(AP175="","",101),IF(AQ175="","",102),IF(AR175="","",103),IF(AS175="","",106),IF(AT175="","",107),IF(AU175="","",108),IF(AV175="","",109),IF(AW175="","",110)) -> 101 | T175: =_xlfn.TEXTJOIN(";",1,AP175:AW175) -> 5 | U175: 1220 | V175: 5 | X175: 4 | Y175: =ROUND(异常状态效果值!H10*(1-(AK175+AL175)-AM175*0.1)/AI175,0) -> 50 | AE175: =CONCATENATE(CHOOSE(S175-100,"生命","攻击","防御"),"+",V175,"%") -> 生命+5% | AF175: 小石头·贰 | AH175: 200 | AI175: 4 | AJ175: 50 | AP175: 5
A176: 15052 | B176: 13025 | C176: 225 | D176: 444 | E176: 867 | F176: 小石头 | G176: 发射{0}枚小石头，对敌人造成{1}%伤害。 | H176: 16 | I176: icon_s1505 | J176: S1505 | K176: 1505 | L176: 1505_timeline_TD | M176: 1 | N176: 1 | O176: 1 | P176: 3 | Q176: 4;63 | R176: 2 | S176: 101 | T176: 5 | U176: 1221 | V176: 3 | X176: 4 | Y176: =ROUND(异常状态效果值!H11*(1-(AK176+AL176)-AM176*0.1)/AI176,0) -> 63 | AE176: =CONCATENATE("小石头数量+",V176) -> 小石头数量+3 | AF176: 小石头·叁 | AH176: 252 | AI176: 4 | AJ176: 63 | AP176: 5
A177: 15053 | B177: 13025 | C177: 337.5 | D177: 445 | E177: 868 | F177: 小石头 | G177: 发射{0}枚小石头，对敌人造成{1}%伤害。 | H177: 16 | I177: icon_s1505 | J177: S1505 | K177: 1505 | L177: 1505_timeline_TD | M177: 1 | N177: 1 | O177: 1 | P177: 4 | Q177: 4;75 | R177: 2 | S177: 101 | T177: 10 | U177: 1222 | V177: 5 | X177: 4 | Y177: =ROUND(异常状态效果值!H12*(1-(AK177+AL177)-AM177*0.1)/AI177,0) -> 75 | AE177: =CONCATENATE(CHOOSE(S177-100,"生命","攻击","防御"),"+",V177,"%") -> 生命+5% | AF177: 小石头·肆 | AH177: 300 | AI177: 4 | AJ177: 75 | AP177: 10
A178: 15054 | B178: 13025 | C178: 506.25 | D178: 446 | E178: 869 | F178: 小石头 | G178: 发射{0}枚小石头，对敌人造成{1}%伤害。 | H178: 16 | I178: icon_s1505 | J178: S1505 | K178: 1505 | L178: 1505_timeline_TD | M178: 1 | N178: 1 | O178: 1 | P178: 5 | Q178: 4;88 | R178: 2 | S178: 101 | T178: 10 | U178: 1223 | V178: 3 | X178: 4 | Y178: =ROUND(异常状态效果值!H13*(1-(AK178+AL178)-AM178*0.1)/AI178,0) -> 88 | AE178: =CONCATENATE("小石头数量+",V178) -> 小石头数量+3 | AF178: 小石头·伍 | AH178: 352 | AI178: 4 | AJ178: 88 | AP178: 10
A179: 15055 | B179: 13025 | C179: 759.375 | D179: 447 | E179: 870 | F179: 小石头 | G179: 发射{0}枚小石头，对敌人造成{1}%伤害。 | H179: 16 | I179: icon_s1505 | J179: S1505 | K179: 1505 | L179: 1505_timeline_TD | M179: 1 | N179: 1 | O179: 1 | P179: 6 | Q179: 4;100 | R179: 2 | S179: 101 | T179: 15 | U179: 1224 | V179: 5 | X179: 4 | Y179: =ROUND(异常状态效果值!H14*(1-(AK179+AL179)-AM179*0.1)/AI179,0) -> 100 | AE179: =CONCATENATE(CHOOSE(S179-100,"生命","攻击","防御"),"+",V179,"%") -> 生命+5% | AF179: 小石头·陆 | AH179: 400 | AI179: 4 | AJ179: 100 | AP179: 15
I180: icon_s | N180: 1
B181: 英雄-被动功法区域 | I181: icon_s | N181: 1
A182: =K182*10+P182-1 -> 20010 | B182: 13006 | C182: 100 | D182: 448 | E182: 871 | F182: 天衍星辰诀 | G182: 引星辰之力入体，增强玩家体魄， 让后方槽位的功法无视防御性护盾（功法法宝带来的防护罩、自身护盾） | H182: 0 | I182: icon_s2001 | J182: =CONCATENATE("S",K182) -> S2001 | K182: 2001 | M182: 1 | N182: 0.5 | O182: 2 | P182: 1 | Q182: =_xlfn.TEXTJOIN(";",1,X182:AD182) ->  | R182: 0 | S182: =_xlfn.TEXTJOIN(";",1,IF(AP182="","",101),IF(AQ182="","",102),IF(AR182="","",103),IF(AS182="","",106),IF(AT182="","",107),IF(AU182="","",108),IF(AV182="","",109),IF(AW182="","",110)) ->  | T182: =_xlfn.TEXTJOIN(";",1,AP182:AW182) ->  | U182: -1 | W182: 0;-1 | AF182: 天衍星辰诀·壹 | AH182: 0
A183: =K183*10+P183-1 -> 20011 | B183: 13006 | C183: 150 | D183: 449 | E183: 872 | F183: 天衍星辰诀 | G183: 引星辰之力入体，增强玩家体魄， 让后方槽位的功法无视防御性护盾（功法法宝带来的防护罩、自身护盾） | H183: 0 | I183: icon_s2001 | J183: =CONCATENATE("S",K183) -> S2001 | K183: 2001 | M183: 1 | N183: 0.5 | O183: 2 | P183: 2 | Q183: =_xlfn.TEXTJOIN(";",1,X183:AD183) ->  | R183: 0 | S183: =_xlfn.TEXTJOIN(";",1,IF(AP183="","",101),IF(AQ183="","",102),IF(AR183="","",103),IF(AS183="","",106),IF(AT183="","",107),IF(AU183="","",108),IF(AV183="","",109),IF(AW183="","",110)) -> 103 | T183: =_xlfn.TEXTJOIN(";",1,AP183:AW183) -> 3 | U183: 1225 | V183: 3 | W183: 0;-1 | AE183: =CONCATENATE(CHOOSE(S183-100,"生命","攻击","防御"),"+",V183,"%") -> 防御+3% | AF183: 天衍星辰诀·贰 | AH183: 0 | AR183: 3
A184: 20012 | B184: 13006 | C184: 225 | D184: 450 | E184: 873 | F184: 天衍星辰诀 | G184: 引星辰之力入体，增强玩家体魄， 让后方槽位的功法无视防御性护盾（功法法宝带来的防护罩、自身护盾） | H184: 0 | I184: icon_s2001 | J184: S2001 | K184: 2001 | M184: 1 | N184: 0.5 | O184: 2 | P184: 3 | R184: 0 | S184: 103 | T184: 6 | U184: 1226 | V184: 3 | W184: 0;-1 | AE184: =CONCATENATE(CHOOSE(S184-100,"生命","攻击","防御"),"+",V184,"%") -> 防御+3% | AF184: 天衍星辰诀·叁 | AH184: 0 | AR184: 6
A185: 20013 | B185: 13006 | C185: 337.5 | D185: 451 | E185: 874 | F185: 天衍星辰诀 | G185: 引星辰之力入体，增强玩家体魄， 让后方槽位的功法无视防御性护盾（功法法宝带来的防护罩、自身护盾） | H185: 0 | I185: icon_s2001 | J185: S2001 | K185: 2001 | M185: 1 | N185: 0.5 | O185: 2 | P185: 4 | R185: 0 | S185: 103 | T185: 9 | U185: 1227 | V185: 3 | W185: 0;-1 | AE185: =CONCATENATE(CHOOSE(S185-100,"生命","攻击","防御"),"+",V185,"%") -> 防御+3% | AF185: 天衍星辰诀·肆 | AH185: 0 | AR185: 9
A186: 20014 | B186: 13006 | C186: 506.25 | D186: 452 | E186: 875 | F186: 天衍星辰诀 | G186: 引星辰之力入体，增强玩家体魄， 让后方槽位的功法无视防御性护盾（功法法宝带来的防护罩、自身护盾） | H186: 0 | I186: icon_s2001 | J186: S2001 | K186: 2001 | M186: 1 | N186: 0.5 | O186: 2 | P186: 5 | R186: 0 | S186: 103 | T186: 12 | U186: 1228 | V186: 3 | W186: 0;-1 | AE186: =CONCATENATE(CHOOSE(S186-100,"生命","攻击","防御"),"+",V186,"%") -> 防御+3% | AF186: 天衍星辰诀·伍 | AH186: 0 | AR186: 12
A187: 20015 | B187: 13006 | C187: 759.375 | D187: 453 | E187: 876 | F187: 天衍星辰诀 | G187: 引星辰之力入体，增强玩家体魄， 让后方槽位的功法无视防御性护盾（功法法宝带来的防护罩、自身护盾） | H187: 0 | I187: icon_s2001 | J187: S2001 | K187: 2001 | M187: 1 | N187: 0.5 | O187: 2 | P187: 6 | R187: 0 | S187: 103 | T187: 12 | U187: 1229 | W187: 0;-1 | AE187: 穿过护盾时额外对护盾照成等额伤害 | AF187: 天衍星辰诀·陆 | AH187: 0 | AR187: 12
I188: icon_s | N188: 0.5
A189: =K189*10+P189-1 -> 20020 | B189: 13006 | C189: 100 | D189: 454 | E189: 877 | F189: 法宝秘籍 | G189: 后方槽位技能在击中目标时，为法宝提供{0}%充能 | H189: 0 | I189: icon_s2002 | J189: =CONCATENATE("S",K189) -> S2002 | K189: =K182+1 -> 2002 | M189: 1 | N189: 0.5 | O189: 2 | P189: 1 | Q189: =_xlfn.TEXTJOIN(";",1,X189:AD189) -> 1 | R189: 0 | S189: =_xlfn.TEXTJOIN(";",1,IF(AP189="","",101),IF(AQ189="","",102),IF(AR189="","",103),IF(AS189="","",106),IF(AT189="","",107),IF(AU189="","",108),IF(AV189="","",109),IF(AW189="","",110)) ->  | T189: =_xlfn.TEXTJOIN(";",1,AP189:AW189) ->  | U189: -1 | W189: 0;-1 | X189: 1 | AF189: 法宝秘籍·壹 | AH189: 0
A190: =K190*10+P190-1 -> 20021 | B190: 13006 | C190: 150 | D190: 455 | E190: 878 | F190: 法宝秘籍 | G190: 后方槽位技能在击中目标时，为法宝提供{0}%充能 | H190: 0 | I190: icon_s2002 | J190: =CONCATENATE("S",K190) -> S2002 | K190: =K183+1 -> 2002 | M190: 1 | N190: 0.5 | O190: 2 | P190: 2 | Q190: =_xlfn.TEXTJOIN(";",1,X190:AD190) -> 1 | R190: 0 | S190: =_xlfn.TEXTJOIN(";",1,IF(AP190="","",101),IF(AQ190="","",102),IF(AR190="","",103),IF(AS190="","",106),IF(AT190="","",107),IF(AU190="","",108),IF(AV190="","",109),IF(AW190="","",110)) -> 102 | T190: =_xlfn.TEXTJOIN(";",1,AP190:AW190) -> 3 | U190: 1230 | V190: 3 | W190: 0;-1 | X190: 1 | AE190: =CONCATENATE(CHOOSE(S190-100,"生命","攻击","防御"),"+",V190,"%") -> 攻击+3% | AF190: 法宝秘籍·贰 | AH190: 0 | AQ190: 3
A191: 20022 | B191: 13006 | C191: 225 | D191: 456 | E191: 879 | F191: 法宝秘籍 | G191: 后方槽位技能在击中目标时，为法宝提供{0}%充能 | H191: 0 | I191: icon_s2002 | J191: S2002 | K191: 2002 | M191: 1 | N191: 0.5 | O191: 2 | P191: 3 | Q191: 1 | R191: 0 | S191: 102 | T191: 6 | U191: 1231 | V191: 3 | W191: 0;-1 | X191: 1 | AE191: =CONCATENATE(CHOOSE(S191-100,"生命","攻击","防御"),"+",V191,"%") -> 攻击+3% | AF191: 法宝秘籍·叁 | AH191: 0 | AQ191: 6
A192: 20023 | B192: 13006 | C192: 337.5 | D192: 457 | E192: 880 | F192: 法宝秘籍 | G192: 后方槽位技能在击中目标时，为法宝提供{0}%充能 | H192: 0 | I192: icon_s2002 | J192: S2002 | K192: 2002 | M192: 1 | N192: 0.5 | O192: 2 | P192: 4 | Q192: 1 | R192: 0 | S192: 102 | T192: 9 | U192: 1232 | V192: 3 | W192: 0;-1 | X192: 1 | AE192: =CONCATENATE(CHOOSE(S192-100,"生命","攻击","防御"),"+",V192,"%") -> 攻击+3% | AF192: 法宝秘籍·肆 | AH192: 0 | AQ192: 9
A193: 20024 | B193: 13006 | C193: 506.25 | D193: 458 | E193: 881 | F193: 法宝秘籍 | G193: 后方槽位技能在击中目标时，为法宝提供{0}%充能 | H193: 0 | I193: icon_s2002 | J193: S2002 | K193: 2002 | M193: 1 | N193: 0.5 | O193: 2 | P193: 5 | Q193: 1 | R193: 0 | S193: 102 | T193: 12 | U193: 1233 | V193: 3 | W193: 0;-1 | X193: 1 | AE193: =CONCATENATE(CHOOSE(S193-100,"生命","攻击","防御"),"+",V193,"%") -> 攻击+3% | AF193: 法宝秘籍·伍 | AH193: 0 | AQ193: 12
A194: 20025 | B194: 13006 | C194: 759.375 | D194: 459 | E194: 882 | F194: 法宝秘籍 | G194: 后方槽位技能在击中目标时，为法宝提供{0}%充能。 法宝可以瞬间施放，且规避法宝对拼。 | H194: 0 | I194: icon_s2002 | J194: S2002 | K194: 2002 | M194: 1 | N194: 0.5 | O194: 2 | P194: 6 | Q194: 3 | R194: 0 | S194: 102 | T194: 12 | U194: 1234 | W194: 0;-1 | X194: 3 | AE194: 充能增效，法宝瞬发且不对拼 | AF194: 法宝秘籍·陆 | AH194: 0 | AQ194: 12
I195: =CONCATENATE("icon_s",K195) -> icon_s | N195: 0.5
A196: =K196*10+P196-1 -> 20030 | B196: 13011 | C196: 100 | D196: 460 | E196: 883 | F196: 崩脉决 | G196: 前方功法造成伤害时有{0}%概率施加一层对应属性的伤势 | H196: 0 | I196: icon_s2003 | J196: =CONCATENATE("S",K196) -> S2003 | K196: =K189+1 -> 2003 | M196: 1 | N196: 0.5 | O196: 2 | P196: 1 | Q196: =_xlfn.TEXTJOIN(";",1,X196:AD196) -> 50 | R196: 0 | S196: =_xlfn.TEXTJOIN(";",1,IF(AP196="","",101),IF(AQ196="","",102),IF(AR196="","",103),IF(AS196="","",106),IF(AT196="","",107),IF(AU196="","",108),IF(AV196="","",109),IF(AW196="","",110)) ->  | T196: =_xlfn.TEXTJOIN(";",1,AP196:AW196) ->  | U196: -1 | W196: 0;1 | X196: 50 | AF196: 崩脉决·壹 | AH196: 0
A197: =K197*10+P197-1 -> 20031 | B197: 13011 | C197: 150 | D197: 461 | E197: 884 | F197: 崩脉决 | G197: 前方功法造成伤害时有{0}%概率施加一层对应属性的伤势 | H197: 0 | I197: icon_s2003 | J197: =CONCATENATE("S",K197) -> S2003 | K197: =K190+1 -> 2003 | M197: 1 | N197: 0.5 | O197: 2 | P197: 2 | Q197: =_xlfn.TEXTJOIN(";",1,X197:AD197) -> 50 | R197: 0 | S197: =_xlfn.TEXTJOIN(";",1,IF(AP197="","",101),IF(AQ197="","",102),IF(AR197="","",103),IF(AS197="","",106),IF(AT197="","",107),IF(AU197="","",108),IF(AV197="","",109),IF(AW197="","",110)) -> 103 | T197: =_xlfn.TEXTJOIN(";",1,AP197:AW197) -> 3 | U197: 1235 | V197: 3 | W197: 0;1 | X197: 50 | AE197: =CONCATENATE(CHOOSE(S197-100,"生命","攻击","防御"),"+",V197,"%") -> 防御+3% | AF197: 崩脉决·贰 | AH197: 0 | AR197: 3
A198: 20032 | B198: 13011 | C198: 225 | D198: 462 | E198: 885 | F198: 崩脉决 | G198: 前方功法造成伤害时有{0}%概率施加一层对应属性的伤势 | H198: 0 | I198: icon_s2003 | J198: S2003 | K198: 2003 | M198: 1 | N198: 0.5 | O198: 2 | P198: 3 | Q198: 50 | R198: 0 | S198: 103 | T198: 6 | U198: 1236 | V198: 3 | W198: 0;1 | X198: 50 | AE198: =CONCATENATE(CHOOSE(S198-100,"生命","攻击","防御"),"+",V198,"%") -> 防御+3% | AF198: 崩脉决·叁 | AH198: 0 | AR198: 6
A199: 20033 | B199: 13011 | C199: 337.5 | D199: 463 | E199: 886 | F199: 崩脉决 | G199: 前方功法造成伤害时有{0}%概率施加一层对应属性的伤势 | H199: 0 | I199: icon_s2003 | J199: S2003 | K199: 2003 | M199: 1 | N199: 0.5 | O199: 2 | P199: 4 | Q199: 50 | R199: 0 | S199: 103 | T199: 9 | U199: 1237 | V199: 3 | W199: 0;1 | X199: 50 | AE199: =CONCATENATE(CHOOSE(S199-100,"生命","攻击","防御"),"+",V199,"%") -> 防御+3% | AF199: 崩脉决·肆 | AH199: =IF(A199="","",AI199*AJ199/(1-AK199-AL199)) -> 0 | AR199: 9
A200: 20034 | B200: 13011 | C200: 506.25 | D200: 464 | E200: 887 | F200: 崩脉决 | G200: 前方功法造成伤害时有{0}%概率施加一层对应属性的伤势 | H200: 0 | I200: icon_s2003 | J200: S2003 | K200: 2003 | M200: 1 | N200: 0.5 | O200: 2 | P200: 5 | Q200: 50 | R200: 0 | S200: 103 | T200: 12 | U200: 1238 | V200: 3 | W200: 0;1 | X200: 50 | AE200: =CONCATENATE(CHOOSE(S200-100,"生命","攻击","防御"),"+",V200,"%") -> 防御+3% | AF200: 崩脉决·伍 | AH200: 0 | AR200: 12
... 401 more rows

Sheet SkillPowerupConfig
A1: ID | B1: MainPower | C1: SkillPower1 | D1: LevelupItem | E1: LevelupItemNum | J1: PlayerLevelLimit
A2: int | B2: float | C2: float | D2: int[] | E2: int[] | J2: int
A4: 等级 | B4: 功法对拼标准强度 | C4: 标准强度百分比 | D4: 功法升级所需道具 | E4: 攻击升级所需道具数量 | F4: 道具1 | G4: 数量1 | H4: 道具2 | I4: 数量2 | J4: 升级所需境界 | K4: 1.1225 | L4: 100 | M4: 100
A5: 1 | B5: 100 | C5: 100 | D5: =_xlfn.TEXTJOIN(";",1,F5,H5) -> 1001;1005 | E5: =_xlfn.TEXTJOIN(";",1,G5,I5) -> 1125;188 | F5: 1001 | G5: =ROUND(20*VLOOKUP(J5,[1]ResourceLevelConfig!$A:$G,3,FALSE)/8,0) -> 1125 | H5: 1005 | I5: =ROUND(50*VLOOKUP(J5,[1]ResourceLevelConfig!$A:$G,7,FALSE)/8,0) -> 188 | J5: 6
A6: 2 | B6: =ROUND(B5*K$4,2) -> 112.25 | C6: =ROUND(C$5+(M$4*A5/60),2) -> 101.67 | D6: =_xlfn.TEXTJOIN(";",1,F6,H6) -> 1001;1005 | E6: 1500;250 | F6: 1001 | G6: =ROUND(20*VLOOKUP(J6,[1]ResourceLevelConfig!$A:$G,3,FALSE)/8,0) -> 1500 | H6: 1005 | I6: =ROUND(50*VLOOKUP(J6,[1]ResourceLevelConfig!$A:$G,7,FALSE)/8,0) -> 250 | J6: 11
A7: 3 | B7: =ROUND(B6*K$4,2) -> 126 | C7: =ROUND(C$5+(M$4*A6/60),2) -> 103.33 | D7: 1001;1005 | E7: 1875;313 | F7: 1001 | G7: =ROUND(20*VLOOKUP(J7,[1]ResourceLevelConfig!$A:$G,3,FALSE)/8,0) -> 1875 | H7: 1005 | I7: =ROUND(50*VLOOKUP(J7,[1]ResourceLevelConfig!$A:$G,7,FALSE)/8,0) -> 313 | J7: 16
A8: 4 | B8: 141.44 | C8: 105 | D8: 1001;1005 | E8: 2250;375 | F8: 1001 | G8: =ROUND(20*VLOOKUP(J8,[1]ResourceLevelConfig!$A:$G,3,FALSE)/8,0) -> 2250 | H8: 1005 | I8: =ROUND(50*VLOOKUP(J8,[1]ResourceLevelConfig!$A:$G,7,FALSE)/8,0) -> 375 | J8: 21
A9: 5 | B9: 158.77 | C9: 106.67 | D9: 1001;1005 | E9: 2625;438 | F9: 1001 | G9: =ROUND(20*VLOOKUP(J9,[1]ResourceLevelConfig!$A:$G,3,FALSE)/8,0) -> 2625 | H9: 1005 | I9: =ROUND(50*VLOOKUP(J9,[1]ResourceLevelConfig!$A:$G,7,FALSE)/8,0) -> 438 | J9: 26
A10: 6 | B10: 178.22 | C10: 108.33 | D10: 1001;1005 | E10: 3000;500 | F10: 1001 | G10: =ROUND(20*VLOOKUP(J10,[1]ResourceLevelConfig!$A:$G,3,FALSE)/8,0) -> 3000 | H10: 1005 | I10: =ROUND(50*VLOOKUP(J10,[1]ResourceLevelConfig!$A:$G,7,FALSE)/8,0) -> 500 | J10: 31
A11: 7 | B11: 200.05 | C11: 110 | D11: 1001;1005 | E11: 3375;563 | F11: 1001 | G11: =ROUND(20*VLOOKUP(J11,[1]ResourceLevelConfig!$A:$G,3,FALSE)/8,0) -> 3375 | H11: 1005 | I11: =ROUND(50*VLOOKUP(J11,[1]ResourceLevelConfig!$A:$G,7,FALSE)/8,0) -> 563 | J11: 36
A12: 8 | B12: 224.56 | C12: 111.67 | D12: 1001;1005 | E12: 3750;625 | F12: 1001 | G12: =ROUND(20*VLOOKUP(J12,[1]ResourceLevelConfig!$A:$G,3,FALSE)/8,0) -> 3750 | H12: 1005 | I12: =ROUND(50*VLOOKUP(J12,[1]ResourceLevelConfig!$A:$G,7,FALSE)/8,0) -> 625 | J12: 41
A13: 9 | B13: 252.07 | C13: 113.33 | D13: 1001;1005 | E13: 4140;688 | F13: 1001 | G13: =ROUND(20*VLOOKUP(J13,[1]ResourceLevelConfig!$A:$G,3,FALSE)/8,0) -> 4140 | H13: 1005 | I13: =ROUND(50*VLOOKUP(J13,[1]ResourceLevelConfig!$A:$G,7,FALSE)/8,0) -> 688 | J13: 46
A14: 10 | B14: 282.95 | C14: 115 | D14: 1001;1005 | E14: 4570;750 | F14: 1001 | G14: =ROUND(20*VLOOKUP(J14,[1]ResourceLevelConfig!$A:$G,3,FALSE)/8,0) -> 4570 | H14: 1005 | I14: =ROUND(50*VLOOKUP(J14,[1]ResourceLevelConfig!$A:$G,7,FALSE)/8,0) -> 750 | J14: 51
A15: 11 | B15: 317.61 | C15: 116.67 | D15: 1001;1005 | E15: 5048;825 | F15: 1001 | G15: =ROUND(20*VLOOKUP(J15,[1]ResourceLevelConfig!$A:$G,3,FALSE)/8,0) -> 5048 | H15: 1005 | I15: =ROUND(50*VLOOKUP(J15,[1]ResourceLevelConfig!$A:$G,7,FALSE)/8,0) -> 825 | J15: 56
A16: 12 | B16: 356.52 | C16: 118.33 | D16: 1001;1005 | E16: 5573;919 | F16: 1001 | G16: =ROUND(20*VLOOKUP(J16,[1]ResourceLevelConfig!$A:$G,3,FALSE)/8,0) -> 5573 | H16: 1005 | I16: =ROUND(50*VLOOKUP(J16,[1]ResourceLevelConfig!$A:$G,7,FALSE)/8,0) -> 919 | J16: 61
A17: 13 | B17: 400.19 | C17: 120 | D17: 1001;1005 | E17: 6150;1013 | F17: 1001 | G17: =ROUND(20*VLOOKUP(J17,[1]ResourceLevelConfig!$A:$G,3,FALSE)/8,0) -> 6150 | H17: 1005 | I17: =ROUND(50*VLOOKUP(J17,[1]ResourceLevelConfig!$A:$G,7,FALSE)/8,0) -> 1013 | J17: 66
A18: 14 | B18: 449.21 | C18: 121.67 | D18: 1001;1005 | E18: 6788;1106 | F18: 1001 | G18: =ROUND(20*VLOOKUP(J18,[1]ResourceLevelConfig!$A:$G,3,FALSE)/8,0) -> 6788 | H18: 1005 | I18: =ROUND(50*VLOOKUP(J18,[1]ResourceLevelConfig!$A:$G,7,FALSE)/8,0) -> 1106 | J18: 71
A19: 15 | B19: 504.24 | C19: 123.33 | D19: 1001;1005 | E19: 7493;1231 | F19: 1001 | G19: =ROUND(20*VLOOKUP(J19,[1]ResourceLevelConfig!$A:$G,3,FALSE)/8,0) -> 7493 | H19: 1005 | I19: =ROUND(50*VLOOKUP(J19,[1]ResourceLevelConfig!$A:$G,7,FALSE)/8,0) -> 1231 | J19: 76
A20: 16 | B20: 566.01 | C20: 125 | D20: 1001;1005 | E20: 8273;1356 | F20: 1001 | G20: =ROUND(20*VLOOKUP(J20,[1]ResourceLevelConfig!$A:$G,3,FALSE)/8,0) -> 8273 | H20: 1005 | I20: =ROUND(50*VLOOKUP(J20,[1]ResourceLevelConfig!$A:$G,7,FALSE)/8,0) -> 1356 | J20: 81
A21: 17 | B21: 635.35 | C21: 126.67 | D21: 1001;1005 | E21: 9135;1500 | F21: 1001 | G21: =ROUND(20*VLOOKUP(J21,[1]ResourceLevelConfig!$A:$G,3,FALSE)/8,0) -> 9135 | H21: 1005 | I21: =ROUND(50*VLOOKUP(J21,[1]ResourceLevelConfig!$A:$G,7,FALSE)/8,0) -> 1500 | J21: 86
A22: 18 | B22: 713.18 | C22: 128.33 | D22: 1001;1005 | E22: 10088;1656 | F22: 1001 | G22: =ROUND(20*VLOOKUP(J22,[1]ResourceLevelConfig!$A:$G,3,FALSE)/8,0) -> 10088 | H22: 1005 | I22: =ROUND(50*VLOOKUP(J22,[1]ResourceLevelConfig!$A:$G,7,FALSE)/8,0) -> 1656 | J22: 91
A23: 19 | B23: 800.54 | C23: 130 | D23: 1001;1005 | E23: 11138;1831 | F23: 1001 | G23: =ROUND(20*VLOOKUP(J23,[1]ResourceLevelConfig!$A:$G,3,FALSE)/8,0) -> 11138 | H23: 1005 | I23: =ROUND(50*VLOOKUP(J23,[1]ResourceLevelConfig!$A:$G,7,FALSE)/8,0) -> 1831 | J23: 96
A24: 20 | B24: 898.61 | C24: 131.67 | D24: 1001;1005 | E24: 12298;2019 | F24: 1001 | G24: =ROUND(20*VLOOKUP(J24,[1]ResourceLevelConfig!$A:$G,3,FALSE)/8,0) -> 12298 | H24: 1005 | I24: =ROUND(50*VLOOKUP(J24,[1]ResourceLevelConfig!$A:$G,7,FALSE)/8,0) -> 2019 | J24: 101
A25: 21 | B25: 1008.69 | C25: 133.33 | D25: 1001;1005 | E25: 13573;2231 | F25: 1001 | G25: =ROUND(20*VLOOKUP(J25,[1]ResourceLevelConfig!$A:$G,3,FALSE)/8,0) -> 13573 | H25: 1005 | I25: =ROUND(50*VLOOKUP(J25,[1]ResourceLevelConfig!$A:$G,7,FALSE)/8,0) -> 2231 | J25: 106
A26: 22 | B26: 1132.25 | C26: 135 | D26: 1001;1005 | E26: 14988;2463 | F26: 1001 | G26: =ROUND(20*VLOOKUP(J26,[1]ResourceLevelConfig!$A:$G,3,FALSE)/8,0) -> 14988 | H26: 1005 | I26: =ROUND(50*VLOOKUP(J26,[1]ResourceLevelConfig!$A:$G,7,FALSE)/8,0) -> 2463 | J26: 111
A27: 23 | B27: 1270.95 | C27: 136.67 | D27: 1001;1005 | E27: 16548;2719 | F27: 1001 | G27: =ROUND(20*VLOOKUP(J27,[1]ResourceLevelConfig!$A:$G,3,FALSE)/8,0) -> 16548 | H27: 1005 | I27: =ROUND(50*VLOOKUP(J27,[1]ResourceLevelConfig!$A:$G,7,FALSE)/8,0) -> 2719 | J27: 116
A28: 24 | B28: 1426.64 | C28: 138.33 | D28: 1001;1005 | E28: 18268;3000 | F28: 1001 | G28: =ROUND(20*VLOOKUP(J28,[1]ResourceLevelConfig!$A:$G,3,FALSE)/8,0) -> 18268 | H28: 1005 | I28: =ROUND(50*VLOOKUP(J28,[1]ResourceLevelConfig!$A:$G,7,FALSE)/8,0) -> 3000 | J28: 121
A29: 25 | B29: 1601.4 | C29: 140 | D29: 1001;1005 | E29: 20168;3313 | F29: 1001 | G29: =ROUND(20*VLOOKUP(J29,[1]ResourceLevelConfig!$A:$G,3,FALSE)/8,0) -> 20168 | H29: 1005 | I29: =ROUND(50*VLOOKUP(J29,[1]ResourceLevelConfig!$A:$G,7,FALSE)/8,0) -> 3313 | J29: 126
A30: 26 | B30: 1797.57 | C30: 141.67 | D30: 1001;1005 | E30: 22268;3656 | F30: 1001 | G30: =ROUND(20*VLOOKUP(J30,[1]ResourceLevelConfig!$A:$G,3,FALSE)/8,0) -> 22268 | H30: 1005 | I30: =ROUND(50*VLOOKUP(J30,[1]ResourceLevelConfig!$A:$G,7,FALSE)/8,0) -> 3656 | J30: 131
A31: 27 | B31: 2017.77 | C31: 143.33 | D31: 1001;1005 | E31: 24585;4038 | F31: 1001 | G31: =ROUND(20*VLOOKUP(J31,[1]ResourceLevelConfig!$A:$G,3,FALSE)/8,0) -> 24585 | H31: 1005 | I31: =ROUND(50*VLOOKUP(J31,[1]ResourceLevelConfig!$A:$G,7,FALSE)/8,0) -> 4038 | J31: 136
A32: 28 | B32: 2264.95 | C32: 145 | D32: 1001;1005 | E32: 27148;4456 | F32: 1001 | G32: =ROUND(20*VLOOKUP(J32,[1]ResourceLevelConfig!$A:$G,3,FALSE)/8,0) -> 27148 | H32: 1005 | I32: =ROUND(50*VLOOKUP(J32,[1]ResourceLevelConfig!$A:$G,7,FALSE)/8,0) -> 4456 | J32: 141
A33: 29 | B33: 2542.41 | C33: 146.67 | D33: 1001;1005 | E33: 29973;4919 | F33: 1001 | G33: =ROUND(20*VLOOKUP(J33,[1]ResourceLevelConfig!$A:$G,3,FALSE)/8,0) -> 29973 | H33: 1005 | I33: =ROUND(50*VLOOKUP(J33,[1]ResourceLevelConfig!$A:$G,7,FALSE)/8,0) -> 4919 | J33: 146
A34: 30 | B34: 2853.86 | C34: 148.33 | D34: 1001;1005 | E34: 33093;5431 | F34: 1001 | G34: =ROUND(20*VLOOKUP(J34,[1]ResourceLevelConfig!$A:$G,3,FALSE)/8,0) -> 33093 | H34: 1005 | I34: =ROUND(50*VLOOKUP(J34,[1]ResourceLevelConfig!$A:$G,7,FALSE)/8,0) -> 5431 | J34: 151
A35: 31 | B35: 3203.46 | C35: 150 | D35: 1001;1005 | E35: 36538;5994 | F35: 1001 | G35: =ROUND(20*VLOOKUP(J35,[1]ResourceLevelConfig!$A:$G,3,FALSE)/8,0) -> 36538 | H35: 1005 | I35: =ROUND(50*VLOOKUP(J35,[1]ResourceLevelConfig!$A:$G,7,FALSE)/8,0) -> 5994 | J35: 156
A36: 32 | B36: 3595.88 | C36: 151.67 | D36: 1001;1005 | E36: 40338;6619 | F36: 1001 | G36: =ROUND(20*VLOOKUP(J36,[1]ResourceLevelConfig!$A:$G,3,FALSE)/8,0) -> 40338 | H36: 1005 | I36: =ROUND(50*VLOOKUP(J36,[1]ResourceLevelConfig!$A:$G,7,FALSE)/8,0) -> 6619 | J36: 161
A37: 33 | B37: 4036.38 | C37: 153.33 | D37: 1001;1005 | E37: 44535;7306 | F37: 1001 | G37: =ROUND(20*VLOOKUP(J37,[1]ResourceLevelConfig!$A:$G,3,FALSE)/8,0) -> 44535 | H37: 1005 | I37: =ROUND(50*VLOOKUP(J37,[1]ResourceLevelConfig!$A:$G,7,FALSE)/8,0) -> 7306 | J37: 166
A38: 34 | B38: 4530.84 | C38: 155 | D38: 1001;1005 | E38: 49170;8063 | F38: 1001 | G38: =ROUND(20*VLOOKUP(J38,[1]ResourceLevelConfig!$A:$G,3,FALSE)/8,0) -> 49170 | H38: 1005 | I38: =ROUND(50*VLOOKUP(J38,[1]ResourceLevelConfig!$A:$G,7,FALSE)/8,0) -> 8063 | J38: 171
A39: 35 | B39: 5085.87 | C39: 156.67 | D39: 1001;1005 | E39: 54285;8900 | F39: 1001 | G39: =ROUND(20*VLOOKUP(J39,[1]ResourceLevelConfig!$A:$G,3,FALSE)/8,0) -> 54285 | H39: 1005 | I39: =ROUND(50*VLOOKUP(J39,[1]ResourceLevelConfig!$A:$G,7,FALSE)/8,0) -> 8900 | J39: 176
A40: 36 | B40: 5708.89 | C40: 158.33 | D40: 1001;1005 | E40: 59935;9825 | F40: 1001 | G40: =ROUND(20*VLOOKUP(J40,[1]ResourceLevelConfig!$A:$G,3,FALSE)/8,0) -> 59935 | H40: 1005 | I40: =ROUND(50*VLOOKUP(J40,[1]ResourceLevelConfig!$A:$G,7,FALSE)/8,0) -> 9825 | J40: 181
A41: 37 | B41: 6408.23 | C41: 160 | D41: 1001;1005 | E41: 66173;10844 | F41: 1001 | G41: =ROUND(20*VLOOKUP(J41,[1]ResourceLevelConfig!$A:$G,3,FALSE)/8,0) -> 66173 | H41: 1005 | I41: =ROUND(50*VLOOKUP(J41,[1]ResourceLevelConfig!$A:$G,7,FALSE)/8,0) -> 10844 | J41: 186
A42: 38 | B42: 7193.24 | C42: 161.67 | D42: 1001;1005 | E42: 73060;11975 | F42: 1001 | G42: =ROUND(20*VLOOKUP(J42,[1]ResourceLevelConfig!$A:$G,3,FALSE)/8,0) -> 73060 | H42: 1005 | I42: =ROUND(50*VLOOKUP(J42,[1]ResourceLevelConfig!$A:$G,7,FALSE)/8,0) -> 11975 | J42: 191
A43: 39 | B43: 8074.41 | C43: 163.33 | D43: 1001;1005 | E43: 80663;13219 | F43: 1001 | G43: =ROUND(20*VLOOKUP(J43,[1]ResourceLevelConfig!$A:$G,3,FALSE)/8,0) -> 80663 | H43: 1005 | I43: =ROUND(50*VLOOKUP(J43,[1]ResourceLevelConfig!$A:$G,7,FALSE)/8,0) -> 13219 | J43: 196
A44: 40 | B44: 9063.53 | C44: 165 | D44: 1001;1005 | E44: 89055;14594 | F44: 1001 | G44: =ROUND(20*VLOOKUP(J44,[1]ResourceLevelConfig!$A:$G,3,FALSE)/8,0) -> 89055 | H44: 1005 | I44: =ROUND(50*VLOOKUP(J44,[1]ResourceLevelConfig!$A:$G,7,FALSE)/8,0) -> 14594 | J44: 201
A45: 41 | B45: 10173.81 | C45: 166.67 | D45: 1001;1005 | E45: 98323;16125 | F45: 1001 | G45: =ROUND(20*VLOOKUP(J45,[1]ResourceLevelConfig!$A:$G,3,FALSE)/8,0) -> 98323 | H45: 1005 | I45: =ROUND(50*VLOOKUP(J45,[1]ResourceLevelConfig!$A:$G,7,FALSE)/8,0) -> 16125 | J45: 206
A46: 42 | B46: 11420.1 | C46: 168.33 | D46: 1001;1005 | E46: 108555;17813 | F46: 1001 | G46: =ROUND(20*VLOOKUP(J46,[1]ResourceLevelConfig!$A:$G,3,FALSE)/8,0) -> 108555 | H46: 1005 | I46: =ROUND(50*VLOOKUP(J46,[1]ResourceLevelConfig!$A:$G,7,FALSE)/8,0) -> 17813 | J46: 211
A47: 43 | B47: 12819.06 | C47: 170 | D47: 1001;1005 | E47: 119855;19663 | F47: 1001 | G47: =ROUND(20*VLOOKUP(J47,[1]ResourceLevelConfig!$A:$G,3,FALSE)/8,0) -> 119855 | H47: 1005 | I47: =ROUND(50*VLOOKUP(J47,[1]ResourceLevelConfig!$A:$G,7,FALSE)/8,0) -> 19663 | J47: 216
A48: 44 | B48: 14389.39 | C48: 171.67 | D48: 1001;1005 | E48: 132333;21706 | F48: 1001 | G48: =ROUND(20*VLOOKUP(J48,[1]ResourceLevelConfig!$A:$G,3,FALSE)/8,0) -> 132333 | H48: 1005 | I48: =ROUND(50*VLOOKUP(J48,[1]ResourceLevelConfig!$A:$G,7,FALSE)/8,0) -> 21706 | J48: 221
A49: 45 | B49: 16152.09 | C49: 173.33 | D49: 1001;1005 | E49: 146105;23963 | F49: 1001 | G49: =ROUND(20*VLOOKUP(J49,[1]ResourceLevelConfig!$A:$G,3,FALSE)/8,0) -> 146105 | H49: 1005 | I49: =ROUND(50*VLOOKUP(J49,[1]ResourceLevelConfig!$A:$G,7,FALSE)/8,0) -> 23963 | J49: 226
A50: 46 | B50: 18130.72 | C50: 175 | D50: 1001;1005 | E50: 161310;26456 | F50: 1001 | G50: =ROUND(20*VLOOKUP(J50,[1]ResourceLevelConfig!$A:$G,3,FALSE)/8,0) -> 161310 | H50: 1005 | I50: =ROUND(50*VLOOKUP(J50,[1]ResourceLevelConfig!$A:$G,7,FALSE)/8,0) -> 26456 | J50: 231
A51: 47 | B51: 20351.73 | C51: 176.67 | D51: 1001;1005 | E51: 178098;29213 | F51: 1001 | G51: =ROUND(20*VLOOKUP(J51,[1]ResourceLevelConfig!$A:$G,3,FALSE)/8,0) -> 178098 | H51: 1005 | I51: =ROUND(50*VLOOKUP(J51,[1]ResourceLevelConfig!$A:$G,7,FALSE)/8,0) -> 29213 | J51: 236
A52: 48 | B52: 22844.82 | C52: 178.33 | D52: 1001;1005 | E52: 196633;32244 | F52: 1001 | G52: =ROUND(20*VLOOKUP(J52,[1]ResourceLevelConfig!$A:$G,3,FALSE)/8,0) -> 196633 | H52: 1005 | I52: =ROUND(50*VLOOKUP(J52,[1]ResourceLevelConfig!$A:$G,7,FALSE)/8,0) -> 32244 | J52: 241
A53: 49 | B53: 25643.31 | C53: 180 | D53: 1001;1005 | E53: 217100;35594 | F53: 1001 | G53: =ROUND(20*VLOOKUP(J53,[1]ResourceLevelConfig!$A:$G,3,FALSE)/8,0) -> 217100 | H53: 1005 | I53: =ROUND(50*VLOOKUP(J53,[1]ResourceLevelConfig!$A:$G,7,FALSE)/8,0) -> 35594 | J53: 246
A54: 50 | B54: 28784.62 | C54: 181.67 | D54: 1001;1005 | E54: 239698;39300 | F54: 1001 | G54: =ROUND(20*VLOOKUP(J54,[1]ResourceLevelConfig!$A:$G,3,FALSE)/8,0) -> 239698 | H54: 1005 | I54: =ROUND(50*VLOOKUP(J54,[1]ResourceLevelConfig!$A:$G,7,FALSE)/8,0) -> 39300 | J54: 251
A55: 51 | B55: 32310.74 | C55: 183.33 | D55: 1001;1005 | E55: 264648;43388 | F55: 1001 | G55: =ROUND(20*VLOOKUP(J55,[1]ResourceLevelConfig!$A:$G,3,FALSE)/8,0) -> 264648 | H55: 1005 | I55: =ROUND(50*VLOOKUP(J55,[1]ResourceLevelConfig!$A:$G,7,FALSE)/8,0) -> 43388 | J55: 256
A56: 52 | B56: 36268.81 | C56: 185 | D56: 1001;1005 | E56: 292195;47900 | F56: 1001 | G56: =ROUND(20*VLOOKUP(J56,[1]ResourceLevelConfig!$A:$G,3,FALSE)/8,0) -> 292195 | H56: 1005 | I56: =ROUND(50*VLOOKUP(J56,[1]ResourceLevelConfig!$A:$G,7,FALSE)/8,0) -> 47900 | J56: 261
A57: 53 | B57: 40711.74 | C57: 186.67 | D57: 1001;1005 | E57: 322608;52881 | F57: 1001 | G57: =ROUND(20*VLOOKUP(J57,[1]ResourceLevelConfig!$A:$G,3,FALSE)/8,0) -> 322608 | H57: 1005 | I57: =ROUND(50*VLOOKUP(J57,[1]ResourceLevelConfig!$A:$G,7,FALSE)/8,0) -> 52881 | J57: 266
A58: 54 | B58: 45698.93 | C58: 188.33 | D58: 1001;1005 | E58: 356185;58388 | F58: 1001 | G58: =ROUND(20*VLOOKUP(J58,[1]ResourceLevelConfig!$A:$G,3,FALSE)/8,0) -> 356185 | H58: 1005 | I58: =ROUND(50*VLOOKUP(J58,[1]ResourceLevelConfig!$A:$G,7,FALSE)/8,0) -> 58388 | J58: 271
A59: 55 | B59: 51297.05 | C59: 190 | D59: 1001;1005 | E59: 393255;64463 | F59: 1001 | G59: =ROUND(20*VLOOKUP(J59,[1]ResourceLevelConfig!$A:$G,3,FALSE)/8,0) -> 393255 | H59: 1005 | I59: =ROUND(50*VLOOKUP(J59,[1]ResourceLevelConfig!$A:$G,7,FALSE)/8,0) -> 64463 | J59: 276
A60: 56 | B60: 57580.94 | C60: 191.67 | D60: 1001;1005 | E60: 434185;71169 | F60: 1001 | G60: =ROUND(20*VLOOKUP(J60,[1]ResourceLevelConfig!$A:$G,3,FALSE)/8,0) -> 434185 | H60: 1005 | I60: =ROUND(50*VLOOKUP(J60,[1]ResourceLevelConfig!$A:$G,7,FALSE)/8,0) -> 71169 | J60: 281
A61: 57 | B61: 64634.61 | C61: 193.33 | D61: 1001;1005 | E61: 479375;78581 | F61: 1001 | G61: =ROUND(20*VLOOKUP(J61,[1]ResourceLevelConfig!$A:$G,3,FALSE)/8,0) -> 479375 | H61: 1005 | I61: =ROUND(50*VLOOKUP(J61,[1]ResourceLevelConfig!$A:$G,7,FALSE)/8,0) -> 78581 | J61: 286
A62: 58 | B62: 72552.35 | C62: 195 | D62: 1001;1005 | E62: 529270;86756 | F62: 1001 | G62: =ROUND(20*VLOOKUP(J62,[1]ResourceLevelConfig!$A:$G,3,FALSE)/8,0) -> 529270 | H62: 1005 | I62: =ROUND(50*VLOOKUP(J62,[1]ResourceLevelConfig!$A:$G,7,FALSE)/8,0) -> 86756 | J62: 291
A63: 59 | B63: 81440.01 | C63: 196.67 | D63: 1001;1005 | E63: 584355;95794 | F63: 1001 | G63: =ROUND(20*VLOOKUP(J63,[1]ResourceLevelConfig!$A:$G,3,FALSE)/8,0) -> 584355 | H63: 1005 | I63: =ROUND(50*VLOOKUP(J63,[1]ResourceLevelConfig!$A:$G,7,FALSE)/8,0) -> 95794 | J63: 296
A64: 60 | B64: 91416.41 | C64: 198.33 | D64: 1001;1005 | E64: 632525;103694 | F64: 1001 | G64: =ROUND(20*VLOOKUP(J64,[1]ResourceLevelConfig!$A:$G,3,FALSE)/8,0) -> 632525 | H64: 1005 | I64: =ROUND(50*VLOOKUP(J64,[1]ResourceLevelConfig!$A:$G,7,FALSE)/8,0) -> 103694 | J64: 300
A65: 61 | B65: =ROUND(B64*K$4,2) -> 102614.92 | C65: 200 | D65: 1001;1005 | E65: 9999999;999999 | F65: 1001 | G65: 9999999 | H65: 1005 | I65: 999999 | J65: -1

Sheet SkillConstant
A1: ID | C1: SkilltoPieceNum | D1: SkillPromoteNeedPieceNum
A2: int | C2: int[] | D2: int[]
C4: 重复功法自动转碎片的数量 | D4: 功法升到对应星级所需碎片数量
A5: 1 | C5: =_xlfn.TEXTJOIN(";",1,C8:C17) -> 1;5;20;100;200;300;500;700;1000;1300 | D5: =_xlfn.TEXTJOIN(";",1,1,D8:D16) -> 1;4;15;80;100;100;200;200;300;300
E6: 升星所需数量
C7: 碎片数量 | D7: 升星所需碎片 | E7: 1星 | F7: 2星 | G7: 3星 | H7: 4星 | I7: 权重 | J7: 标准概率 | K7: 预设概率
B8: 1 | C8: 1 | D8: =C9-C8 -> 4 | E8: =D8/C$8 -> 4 | I8: =C$8*C$9*C$10*C$11/C8 -> 10000 | J8: =I8/SUM(I$8:I$11) -> 0.7936507937 | K8: =1-SUM(K9:K11) -> 0.825
B9: 2 | C9: 5 | D9: =C10-C9 -> 15 | E9: =D9/C$8 -> 15 | F9: =D9/C$9 -> 3 | I9: =C$8*C$9*C$10*C$11/C9 -> 2000 | J9: =I9/SUM(I$8:I$11) -> 0.1587301587 | K9: 0.14 | L9: =K9/J9 -> 0.882
B10: 3 | C10: 20 | D10: 80 | E10: 80 | F10: =D10/C$9 -> 16 | G10: =D10/C$10 -> 4 | I10: 500 | J10: 0.03968253968 | K10: 0.03 | L10: 0.756
B11: 4 | C11: 100 | D11: 100 | E11: 100 | F11: 20 | G11: =D11/C$10 -> 5 | H11: =D11/C$11 -> 1 | I11: 100 | J11: 0.007936507937 | K11: 0.005 | L11: 0.63
B12: 5 | C12: 200 | D12: 100 | E12: 100 | F12: 20 | G12: 5 | H12: =D12/C$11 -> 1
B13: 6 | C13: =C12+D12 -> 300 | D13: 200 | E13: 200 | F13: 40 | G13: 10 | H13: 2
B14: 7 | C14: =C13+D13 -> 500 | D14: 200 | E14: 200 | F14: 40 | G14: 10 | H14: 2
B15: 8 | C15: 700 | D15: 300 | E15: 300 | F15: 60 | G15: 15 | H15: 3
B16: 9 | C16: 1000 | D16: 300 | E16: 300 | F16: 60 | G16: 15 | H16: 3
B17: 10 | C17: 1300
E18: =SUM(E8:E16)+1 -> 1300 | F18: =SUM(F8:F16)+1 -> 260 | G18: =SUM(G8:G16)+1 -> 65 | H18: =SUM(H8:H16)+1 -> 13

Sheet 技能设计
C1: 生命 | D1: 攻击 | E1: 防御 | G1: 金 | H1: 水 | I1: 木 | J1: 火 | K1: 土
B2: 星级 | C2: 101 | D2: 102 | E2: 103 | G2: 106 | H2: 107 | I2: 108 | J2: 109 | K2: 110
A3: 0星 | B3: 1 | C3: =SUMIFS(SkillConfig!AP5:AP10095,SkillConfig!$A5:$A10095,"<>"&"",SkillConfig!$P5:$P10095,$B3) -> 0 | D3: =SUMIFS(SkillConfig!AQ5:AQ10095,SkillConfig!$A5:$A10095,"<>"&"",SkillConfig!$P5:$P10095,$B3) -> 0 | E3: =SUMIFS(SkillConfig!AR5:AR10095,SkillConfig!$A5:$A10095,"<>"&"",SkillConfig!$P5:$P10095,$B3) -> 0 | G3: =SUMIFS(SkillConfig!AS5:AS10095,SkillConfig!$A5:$A10095,"<>"&"",SkillConfig!$P5:$P10095,$B3) -> 0 | H3: =SUMIFS(SkillConfig!AT5:AT10095,SkillConfig!$A5:$A10095,"<>"&"",SkillConfig!$P5:$P10095,$B3) -> 0 | I3: =SUMIFS(SkillConfig!AU5:AU10095,SkillConfig!$A5:$A10095,"<>"&"",SkillConfig!$P5:$P10095,$B3) -> 0 | J3: =SUMIFS(SkillConfig!AV5:AV10095,SkillConfig!$A5:$A10095,"<>"&"",SkillConfig!$P5:$P10095,$B3) -> 0 | K3: =SUMIFS(SkillConfig!AW5:AW10095,SkillConfig!$A5:$A10095,"<>"&"",SkillConfig!$P5:$P10095,$B3) -> 0
A4: 1星 | B4: 2 | C4: =SUMIFS(SkillConfig!AP6:AP10096,SkillConfig!$A6:$A10096,"<>"&"",SkillConfig!$P6:$P10096,$B4) -> 21 | D4: =SUMIFS(SkillConfig!AQ6:AQ10096,SkillConfig!$A6:$A10096,"<>"&"",SkillConfig!$P6:$P10096,$B4) -> 62 | E4: =SUMIFS(SkillConfig!AR6:AR10096,SkillConfig!$A6:$A10096,"<>"&"",SkillConfig!$P6:$P10096,$B4) -> 24 | G4: =SUMIFS(SkillConfig!AS6:AS10096,SkillConfig!$A6:$A10096,"<>"&"",SkillConfig!$P6:$P10096,$B4) -> 5 | H4: =SUMIFS(SkillConfig!AT6:AT10096,SkillConfig!$A6:$A10096,"<>"&"",SkillConfig!$P6:$P10096,$B4) -> 0 | I4: =SUMIFS(SkillConfig!AU6:AU10096,SkillConfig!$A6:$A10096,"<>"&"",SkillConfig!$P6:$P10096,$B4) -> 5 | J4: =SUMIFS(SkillConfig!AV6:AV10096,SkillConfig!$A6:$A10096,"<>"&"",SkillConfig!$P6:$P10096,$B4) -> 5 | K4: =SUMIFS(SkillConfig!AW6:AW10096,SkillConfig!$A6:$A10096,"<>"&"",SkillConfig!$P6:$P10096,$B4) -> 0
A5: 2星 | B5: 3 | C5: =SUMIFS(SkillConfig!AP7:AP10097,SkillConfig!$A7:$A10097,"<>"&"",SkillConfig!$P7:$P10097,$B5) -> 77 | D5: =SUMIFS(SkillConfig!AQ7:AQ10097,SkillConfig!$A7:$A10097,"<>"&"",SkillConfig!$P7:$P10097,$B5) -> 139 | E5: =SUMIFS(SkillConfig!AR7:AR10097,SkillConfig!$A7:$A10097,"<>"&"",SkillConfig!$P7:$P10097,$B5) -> 78 | G5: =SUMIFS(SkillConfig!AS7:AS10097,SkillConfig!$A7:$A10097,"<>"&"",SkillConfig!$P7:$P10097,$B5) -> 5 | H5: =SUMIFS(SkillConfig!AT7:AT10097,SkillConfig!$A7:$A10097,"<>"&"",SkillConfig!$P7:$P10097,$B5) -> 5 | I5: =SUMIFS(SkillConfig!AU7:AU10097,SkillConfig!$A7:$A10097,"<>"&"",SkillConfig!$P7:$P10097,$B5) -> 10 | J5: =SUMIFS(SkillConfig!AV7:AV10097,SkillConfig!$A7:$A10097,"<>"&"",SkillConfig!$P7:$P10097,$B5) -> 10 | K5: =SUMIFS(SkillConfig!AW7:AW10097,SkillConfig!$A7:$A10097,"<>"&"",SkillConfig!$P7:$P10097,$B5) -> 5
A6: 3星 | B6: 4 | C6: =SUMIFS(SkillConfig!AP8:AP10098,SkillConfig!$A8:$A10098,"<>"&"",SkillConfig!$P8:$P10098,$B6) -> 103 | D6: =SUMIFS(SkillConfig!AQ8:AQ10098,SkillConfig!$A8:$A10098,"<>"&"",SkillConfig!$P8:$P10098,$B6) -> 211 | E6: =SUMIFS(SkillConfig!AR8:AR10098,SkillConfig!$A8:$A10098,"<>"&"",SkillConfig!$P8:$P10098,$B6) -> 102 | G6: =SUMIFS(SkillConfig!AS8:AS10098,SkillConfig!$A8:$A10098,"<>"&"",SkillConfig!$P8:$P10098,$B6) -> 10 | H6: =SUMIFS(SkillConfig!AT8:AT10098,SkillConfig!$A8:$A10098,"<>"&"",SkillConfig!$P8:$P10098,$B6) -> 5 | I6: =SUMIFS(SkillConfig!AU8:AU10098,SkillConfig!$A8:$A10098,"<>"&"",SkillConfig!$P8:$P10098,$B6) -> 10 | J6: =SUMIFS(SkillConfig!AV8:AV10098,SkillConfig!$A8:$A10098,"<>"&"",SkillConfig!$P8:$P10098,$B6) -> 10 | K6: =SUMIFS(SkillConfig!AW8:AW10098,SkillConfig!$A8:$A10098,"<>"&"",SkillConfig!$P8:$P10098,$B6) -> 5
A7: 4星 | B7: 5 | C7: =SUMIFS(SkillConfig!AP9:AP10099,SkillConfig!$A9:$A10099,"<>"&"",SkillConfig!$P9:$P10099,$B7) -> 159 | D7: =SUMIFS(SkillConfig!AQ9:AQ10099,SkillConfig!$A9:$A10099,"<>"&"",SkillConfig!$P9:$P10099,$B7) -> 288 | E7: =SUMIFS(SkillConfig!AR9:AR10099,SkillConfig!$A9:$A10099,"<>"&"",SkillConfig!$P9:$P10099,$B7) -> 151 | G7: =SUMIFS(SkillConfig!AS9:AS10099,SkillConfig!$A9:$A10099,"<>"&"",SkillConfig!$P9:$P10099,$B7) -> 10 | H7: =SUMIFS(SkillConfig!AT9:AT10099,SkillConfig!$A9:$A10099,"<>"&"",SkillConfig!$P9:$P10099,$B7) -> 10 | I7: =SUMIFS(SkillConfig!AU9:AU10099,SkillConfig!$A9:$A10099,"<>"&"",SkillConfig!$P9:$P10099,$B7) -> 20 | J7: =SUMIFS(SkillConfig!AV9:AV10099,SkillConfig!$A9:$A10099,"<>"&"",SkillConfig!$P9:$P10099,$B7) -> 20 | K7: =SUMIFS(SkillConfig!AW9:AW10099,SkillConfig!$A9:$A10099,"<>"&"",SkillConfig!$P9:$P10099,$B7) -> 10
A8: 5星 | B8: 6 | C8: =SUMIFS(SkillConfig!AP10:AP10100,SkillConfig!$A10:$A10100,"<>"&"",SkillConfig!$P10:$P10100,$B8) -> 174 | D8: =SUMIFS(SkillConfig!AQ10:AQ10100,SkillConfig!$A10:$A10100,"<>"&"",SkillConfig!$P10:$P10100,$B8) -> 308 | E8: =SUMIFS(SkillConfig!AR10:AR10100,SkillConfig!$A10:$A10100,"<>"&"",SkillConfig!$P10:$P10100,$B8) -> 166 | G8: =SUMIFS(SkillConfig!AS10:AS10100,SkillConfig!$A10:$A10100,"<>"&"",SkillConfig!$P10:$P10100,$B8) -> 10 | H8: =SUMIFS(SkillConfig!AT10:AT10100,SkillConfig!$A10:$A10100,"<>"&"",SkillConfig!$P10:$P10100,$B8) -> 10 | I8: =SUMIFS(SkillConfig!AU10:AU10100,SkillConfig!$A10:$A10100,"<>"&"",SkillConfig!$P10:$P10100,$B8) -> 20 | J8: =SUMIFS(SkillConfig!AV10:AV10100,SkillConfig!$A10:$A10100,"<>"&"",SkillConfig!$P10:$P10100,$B8) -> 20 | K8: =SUMIFS(SkillConfig!AW10:AW10100,SkillConfig!$A10:$A10100,"<>"&"",SkillConfig!$P10:$P10100,$B8) -> 10
Z18: 金 | AA18: 高速，低伤害
M19: 20 | V19: 血祭神通 | W19: 为所有流血状态附加上血祭， 流血带来的伤害会充能血祭，充能满后 对敌人照成大量伤害 | AA19: 流血
V20: 金煞决 | W20: 前方功法对敌人照成伤害时额外附加一层流血 | AA20: 放血
V24: 毒瘴领域 | W24: 前方功法在击中目标时，额外施加 一层毒，对流血中的目标额外施加一层 | Z24: 木 | AA24: 高范围，高异常伤害
V25: 毒爆 | W25: 后方功法击中目标后让目标身上 的毒气爆炸开来，对目标照成额外的20%伤害，如果范围内其敌人也有毒，则对其他敌人照成等额的伤害 | AA25: 毒
V27: 异常转移 | W27: 对目标照成的以上状态有20%概率转移到 周围的敌人身上
V29: 阴水 | W29: 后方水系功法会让目标沾染上水，如果目标身上有寒气则会让会 变为冰冻值，冰冻值满后会冰冻住敌人，敌人受到灼烧的概率下降50% | Z29: 水 | AA29: 高控
AA30: 寒气
AA31: 控制
V34: 灵油 | W34: 后方功法附加上灵气汇聚的油， 火属性功法提升30%伤害，额外获得3层灼烧 | Z34: 火 | AA34: 高爆发，高伤害
AA35: 燃烧
V39: 厚土护体 | W39: 每使用一个土系功法获得3点土系值 ，土系值达到100时获得20%防御，持续10秒，每对敌人施加一次细尘额外获得1点 | Z39: 土 | AA39: 高防
V40: 金沙 | W40: 后方功法命中目标额外施加1层土沙，命中目标后将敌人的土沙升级为金沙，效果提升20% | AA40: 加防
AA41: 减防

Sheet 异常状态效果值
A1: 流血buff效果值 | B1: 2
A2: 寒气buff转换为伤害值 | B2: 1
A3: 毒的转换值 | B3: 2
A4: 燃烧转换值 | B4: 2
A5: 细尘转换值 | B5: 1
A6: 感电转换值 | B6: 1
A7: 鼠疫转换值 | B7: 3
G8: s功法伤害强度 | H8: 普通
G9: 150 | H9: 150
G10: 200 | H10: 200
G11: 260 | H11: 250
G12: 340 | H12: 300
G13: 410 | H13: 350
G14: 520 | H14: 400 | L14: 天衍星辰诀 | M14: 引星辰之力入体，增强玩家体魄让后方槽位的功法无视防御性护盾（功法法宝带来的防护罩、自身护盾），
L17: 法宝秘籍 | M17: 后方槽位第一个技能在击中目前时为法宝提供1%充能
L19: 崩脉决 | M19: 前方功法照成伤害时有{0}%概率施加一层对应属性的伤势
Y20: 85 | AK20: =AI20*异常状态效果值!B1/100 -> 0
L21: 两仪决 | M21: 前后方法宝如果相生则功法效果增强，（具体效果值取决于技能） | Y21: 85 | AA21: 25 | AK21: =AI21*异常状态效果值!B1/100 -> 0 | AM21: =AA21/100 -> 0.25
AK22: =AI22*异常状态效果值!B1/100 -> 0
L23: 火焰决 | M23: 每层经过火经脉时使火系功法伤害提升1%，最多叠加20层 | AK23: =AI23*异常状态效果值!B1/100 -> 0
AK24: =AI24*异常状态效果值!B1/100 -> 0
L25: 乾坤巨灵诀 | M25: 后方槽位第一个技能体型巨大化体型提升{0}%，且在对碰中强度增加{1}% | AK25: =AI25*异常状态效果值!B1/100 -> 0
L27: 天风迅灵法 | M27: 前后槽位技能在催动时获得转盘加速{0}%,持续{1}秒
L29: 太虚剑意 | M29: 后方槽位的功法在释放时额外释放一道剑气，对敌人照成100%伤害，并无视护盾类效果
L31: 青莲净体诀 | M31: 前方槽位功法在命中目标时会获得青莲之气，青莲气体达到{0}层时清除自己{1}个随机debuff,并恢复{2}%最大生命
L33: 碧霄回春术 | M33: 功法在经过木系区域时会触发生机，为角色治疗{0}生命值
L34: 血祭神通 | M34: 所有流血状态照成的伤害会转换成充能值，2圈后对全体敌人造成{0}%充能值的伤害
L36: 金煞决 | M36: 前方功法对敌人照成伤害时额施加一层流血
L38: 毒瘴领域 | M38: 前方功法击中目标时额外施加一层毒，对流血中的敌人再额外施加一层
L40: 毒爆 | M40: 后方功法击中目标后，如果目标升上有{0}层毒时对目标额外照成{1}%伤害的伤害，并对周围的敌人照成该伤害的{2}伤害
L42: 异常转移 | M42: 对目标造成的异常状态有{0}%概率转移到下一个目标，不会来回转移
L44: 阴水 | M44: 前方功法会让目标扎染上阴水。如果目标身上有寒气则会将阴水转换为冰冻值(冰冻值到达一定程度会冰冻敌人)
L46: 灵油 | M46: 前方功法附加上灵气汇聚而成的可燃物质，火属性伤害提升{0}%并额外施加一层灼烧
L48: 厚土护体 | M48: 每使用一个土系功法时获得{0}点土系值，达到100时获得{1}%防御。持续{2}秒，每对敌人施加一次细尘额外获得{3}点
L50: 金沙 | M50: 前方功法命中目标时额外施加1层细尘。并将细尘的的品质提升为金沙，效果提升{0}%
